Workbook

Sheet Inhalt
A1: Liste aller Tabellen
A2: BatchDest
A3: Behälter
A4: Beisp1a
A5: Bilanz
A6: Biot-Savart
A7: Brennstoffzelle
A8: Dateien
A9: Daten
A10: Dreiecksdiagramm
A11: Einheiten
A12: Fourier
A13: Funktionen
A14: Gasgleichung
A15: Gauss
A16: Gleichgewicht
A17: Grafik1
A18: Halbschritt
A19: Interpolation
A20: IntWärme
A21: Kinetik
A22: Kompression
A23: Kubische Gleichung
A24: LLE
A25: Makro
A26: Masseinheiten
A27: Matrix
A28: Menüs
A29: Mischung
A30: Molekül
A31: Molgewicht
A32: Newton
A33: Polymer
A34: Polynom
A35: Regression
A36: RungeKutta
A37: Simpson
A38: SLE
A39: Steigung
A40: Verbrennung
A41: VLE
A42: WatStoff
A43: Tabelle1
A44: Tabelle2

Sheet BatchDest
A1: Batchdestillation
A2: Ausgangsdaten
A3: Komp. | B3: Molbruch Anfang | E3: Flüchtigkeiten | G3: Schittweite
A4: N | B4: x10 | C4: x20 | D4: x30 | E4: α13 | F4: α23 | G4: dB
A5: 3 | B5: 0.33 | C5: 0.33 | D5: =1-B5-C5 -> 0.34 | E5: 4 | F5: 2 | G5: 0.01
A6: Rechenwerte | C6: Blase | F6: Dampf
A7: B/B0 | B7: x1 | C7: x2 | D7: x3 | E7: y1 | F7: y2 | G7: y3
A8: 1 | B8: 0.33 | C8: 0.33 | D8: 0.34 | E8: 0.5689655172 | F8: 0.2844827586 | G8: 0.1465517241
A9: 0.99 | B9: 0.3275987626 | C9: 0.3304536088 | D9: 0.341947631 | E9: 0.5664736227 | F9: 0.2857050671 | G9: 0.1478213102
A10: 0.98 | B10: 0.3251741356 | C10: 0.3309039332 | D10: 0.3439219337 | E10: 0.5639445398 | F10: 0.2869408202 | G10: 0.14911464
A11: 0.97 | B11: 0.3227257846 | C11: 0.3313507328 | D11: 0.3459234851 | E11: 0.5613774167 | F11: 0.2881902025 | G11: 0.1504323808
A12: 0.96 | B12: 0.320253369 | C12: 0.3317937546 | D12: 0.3479528789 | E12: 0.5587713755 | F12: 0.2894533994 | G12: 0.1517752251
A13: 0.95 | B13: 0.3177565435 | C13: 0.3322327329 | D13: 0.3500107263 | E13: 0.5561255122 | F13: 0.2907305963 | G13: 0.1531438915
A14: 0.94 | B14: 0.3152349573 | C14: 0.3326673886 | D14: 0.3520976567 | E14: 0.5534388957 | F14: 0.292021979 | G14: 0.1545391253
A15: 0.93 | B15: 0.3126882553 | C15: 0.3330974288 | D15: 0.3542143186 | E15: 0.5507105669 | F15: 0.2933277325 | G15: 0.1559617006
A16: 0.92 | B16: 0.3101160771 | C16: 0.3335225457 | D16: 0.3563613799 | E16: 0.5479395376 | F16: 0.2946480415 | G16: 0.1574124208
A17: 0.91 | B17: 0.3075180576 | C17: 0.3339424163 | D17: 0.3585395289 | E17: 0.5451247898 | F17: 0.2959830894 | G17: 0.1588921207
A18: 0.9 | B18: 0.3048938271 | C18: 0.3343567006 | D18: 0.3607494751 | E18: 0.5422652744 | F18: 0.2973330581 | G18: 0.1604016675
A19: 0.89 | B19: 0.302243011 | C19: 0.3347650419 | D19: 0.36299195 | E19: 0.53935991 | F19: 0.2986981275 | G19: 0.1619419625
A20: 0.88 | B20: 0.2995652304 | C20: 0.3351670649 | D20: 0.3652677077 | E20: 0.5364075822 | F20: 0.3000784749 | G20: 0.1635139429
A21: 0.87 | B21: 0.2968601018 | C21: 0.3355623751 | D21: 0.3675775262 | E21: 0.5334071423 | F21: 0.3014742744 | G21: 0.1651185833
A22: 0.86 | B22: 0.2941272375 | C22: 0.3359505576 | D22: 0.369922208 | E22: 0.5303574059 | F22: 0.3028856963 | G22: 0.1667568977
A23: 0.85 | B23: 0.2913662457 | C23: 0.3363311762 | D23: 0.3723025813 | E23: 0.5272571521 | F23: 0.3043129065 | G23: 0.1684299414
A24: 0.84 | B24: 0.2885767307 | C24: 0.3367037718 | D24: 0.3747195007 | E24: 0.5241051219 | F24: 0.3057560652 | G24: 0.1701388129
A25: 0.83 | B25: 0.2857582931 | C25: 0.3370678612 | D25: 0.3771738489 | E25: 0.520900017 | F25: 0.3072153265 | G25: 0.1718846566
A26: 0.82 | B26: 0.2829105303 | C26: 0.3374229361 | D26: 0.3796665369 | E26: 0.5176404986 | F26: 0.3086908372 | G26: 0.1736686642
A27: 0.81 | B27: 0.2800330362 | C27: 0.337768461 | D27: 0.3821985061 | E27: 0.5143251861 | F27: 0.3101827358 | G27: 0.1754920781
A28: 0.8 | B28: 0.2771254023 | C28: 0.3381038723 | D28: 0.3847707288 | E28: 0.5109526555 | F28: 0.3116911512 | G28: 0.1773561933
A29: 0.79 | B29: 0.2741872175 | C29: 0.3384285759 | D29: 0.38738421 | E29: 0.507521438 | F29: 0.3132162014 | G29: 0.1792623605
A30: 0.78 | B30: 0.2712180689 | C30: 0.3387419462 | D30: 0.3900399885 | E30: 0.504030019 | F30: 0.314757992 | G30: 0.1812119889
A31: 0.77 | B31: 0.268217542 | C31: 0.3390433234 | D31: 0.3927391382 | E31: 0.5004768361 | F31: 0.3163166147 | G31: 0.1832065492
A32: 0.76 | B32: 0.2651852215 | C32: 0.3393320123 | D32: 0.3954827699 | E32: 0.4968602777 | F32: 0.3178921453 | G32: 0.185247577
A33: 0.75 | B33: 0.2621206915 | C33: 0.3396072794 | D33: 0.3982720328 | E33: 0.4931786821 | F33: 0.3194846419 | G33: 0.187336676
A34: 0.74 | B34: 0.2590235367 | C34: 0.3398683511 | D34: 0.401108116 | E34: 0.489430335 | F34: 0.3210941428 | G34: 0.1894755222
A35: 0.73 | B35: 0.2558933429 | C35: 0.340114411 | D35: 0.40399225 | E35: 0.485613469 | F35: 0.3227206638 | G35: 0.1916658673
A36: 0.72 | B36: 0.2527296976 | C36: 0.340344597 | D36: 0.4069257093 | E36: 0.4817262612 | F36: 0.3243641959 | G36: 0.1939095429
A37: 0.71 | B37: 0.2495321913 | C37: 0.3405579993 | D37: 0.4099098134 | E37: 0.4777668326 | F37: 0.3260247021 | G37: 0.1962084653
A38: 0.7 | B38: 0.2463004183 | C38: 0.3407536564 | D38: 0.4129459294 | E38: 0.4737332458 | F38: 0.3277021143 | G38: 0.1985646399
A39: 0.69 | B39: 0.2430339779 | C39: 0.3409305525 | D39: 0.4160354738 | E39: 0.4696235041 | F39: 0.3293963298 | G39: 0.2009801661
A40: 0.68 | B40: 0.2397324757 | C40: 0.3410876137 | D40: 0.4191799149 | E40: 0.4654355498 | F40: 0.3311072073 | G40: 0.2034572429
A41: 0.67 | B41: 0.2363955247 | C41: 0.3412237047 | D41: 0.4223807749 | E41: 0.4611672632 | F41: 0.3328345624 | G41: 0.2059981743
A42: 0.66 | B42: 0.2330227473 | C42: 0.3413376241 | D42: 0.4256396329 | E42: 0.4568164612 | F42: 0.3345781632 | G42: 0.2086053756
A43: 0.65 | B43: 0.2296137767 | C43: 0.341428101 | D43: 0.4289581267 | E43: 0.4523808962 | F43: 0.3363377245 | G43: 0.2112813793
A44: 0.64 | B44: 0.2261682587 | C44: 0.3414937897 | D44: 0.4323379562 | E44: 0.447858255 | F44: 0.3381129024 | G44: 0.2140288427
A45: 0.63 | B45: 0.2226858539 | C45: 0.341533265 | D45: 0.4357808858 | E45: 0.4432461582 | F45: 0.3399032874 | G45: 0.2168505544
A46: 0.62 | B46: 0.2191662399 | C46: 0.341545017 | D46: 0.4392887478 | E46: 0.4385421596 | F46: 0.3417083978 | G46: 0.2197494426
A47: 0.61 | B47: 0.2156091138 | C47: 0.3415274455 | D47: 0.4428634454 | E47: 0.4337437458 | F47: 0.3435276711 | G47: 0.2227285831
A48: 0.6 | B48: 0.2120141952 | C48: 0.3414788534 | D48: 0.4465069562 | E48: 0.4288483361 | F48: 0.3453604557 | G48: 0.2257912083
A49: 0.59 | B49: 0.2083812286 | C49: 0.3413974408 | D49: 0.4502213355 | E49: 0.4238532828 | F49: 0.3472060008 | G49: 0.2289407164
A50: 0.58 | B50: 0.2047099873 | C50: 0.3412812972 | D50: 0.4540087205 | E50: 0.4187558721 | F50: 0.3490634461 | G50: 0.2321806818
A51: 0.57 | B51: 0.2010002769 | C51: 0.3411283943 | D51: 0.4578713338 | E51: 0.4135533252 | F51: 0.3509318095 | G51: 0.2355148653
A52: 0.56 | B52: 0.1972519394 | C52: 0.3409365776 | D52: 0.4618114881 | E52: 0.4082428001 | F52: 0.3528099738 | G52: 0.2389472261
A53: 0.55 | B53: 0.1934648572 | C53: 0.3407035578 | D53: 0.4658315902 | E53: 0.4028213941 | F53: 0.3546966724 | G53: 0.2424819336
A54: 0.54 | B54: 0.1896389585 | C54: 0.3404269006 | D54: 0.4699341461 | E54: 0.397286147 | F54: 0.3565904725 | G54: 0.2461233805 | I54: alpha | J54: 200
A55: 0.53 | B55: 0.1857742226 | C55: 0.340104017 | D55: 0.4741217656 | E55: 0.3916340454 | F55: 0.3584897575 | G55: 0.2498761971
A56: 0.52 | B56: 0.1818706854 | C56: 0.3397321518 | D56: 0.4783971682 | E56: 0.385862028 | F56: 0.3603927064 | G56: 0.2537452656
A57: 0.51 | B57: 0.177928446 | C57: 0.3393083715 | D57: 0.4827631879 | E57: 0.3799669917 | F57: 0.3622972719 | G57: 0.2577357364 | I57: x3/x30 | J57: B/B0 | K57: x1/x10 | L57: x1/x10 | M57: x3/x30*B/B0 | N57: ^200*B/B^-1
A58: 0.5 | B58: 0.1739476741 | C58: 0.3388295514 | D58: 0.4872227799 | E58: 0.3739458002 | F58: 0.3642011552 | G58: 0.2618530446 | I58: =D58/D5 -> 1.433008176 | J58: =A58 -> 0.5 | K58: =(J58*I58)^(E5)*J58^-1 -> 0.527114164 | M58: =(I58*J58)^E5/J58 -> 0.527114164
A59: 0.49 | B59: 0.1699286173 | C59: 0.3382923615 | D59: 0.4917790266 | E59: 0.3677952926 | F59: 0.3661017787 | G59: 0.2661029287 | I59: =I58^E5 -> 4.216913312 | J59: =J58^(E5-1) -> 0.125 | K59: =I59*J59 -> 0.527114164 | L59: =B59/B5 -> 0.514935204
A60: 0.48 | B60: 0.16587161 | C60: 0.3376932512 | D60: 0.4964351443 | E60: 0.3615122959 | F60: 0.3679962548 | G60: 0.2704914493
A61: 0.47 | B61: 0.1617770825 | C61: 0.3370284325 | D61: 0.5011944906 | E61: 0.3550936377 | F61: 0.3698813524 | G61: 0.27502501
A62: 0.46 | B62: 0.1576455712 | C62: 0.3362938625 | D62: 0.5060605719 | E62: 0.3485361629 | F62: 0.371753458 | G62: 0.2797103791
A63: 0.45 | B63: 0.1534777302 | C63: 0.3354852239 | D63: 0.5110370514 | E63: 0.3418367527 | F63: 0.3736085339 | G63: 0.2845547135
A64: 0.44 | B64: 0.1492743432 | C64: 0.334597904 | D64: 0.5161277584 | E64: 0.3349923464 | F64: 0.3754420706 | G64: 0.289565583
A65: 0.43 | B65: 0.1450363369 | C65: 0.3336269717 | D65: 0.5213366969 | E65: 0.3279999681 | F65: 0.3772490343 | G65: 0.2947509976
A66: 0.42 | B66: 0.1407647962 | C66: 0.332567153 | D66: 0.5266680564 | E66: 0.3208567568 | F66: 0.379023808 | G66: 0.3001194352
A67: 0.41 | B67: 0.1364609794 | C67: 0.3314128042 | D67: 0.532126222 | E67: 0.3135600016 | F67: 0.3807601261 | G67: 0.3056798723
A68: 0.4 | B68: 0.1321263364 | C68: 0.3301578827 | D68: 0.5377157865 | E68: 0.3061071827 | F68: 0.3824510014 | G68: 0.3114418158
A69: 0.39 | B69: 0.1277625274 | C69: 0.3287959154 | D69: 0.5434415627 | E69: 0.2984960189 | F69: 0.3840886438 | G69: 0.3174153373
A70: 0.38 | B70: 0.1233714438 | C70: 0.3273199643 | D70: 0.5493085974 | E70: 0.2907245215 | F70: 0.385664369 | G70: 0.3236111095
A71: 0.37 | B71: 0.1189552302 | C71: 0.3257225895 | D71: 0.5553221858 | E71: 0.2827910576 | F71: 0.3871684978 | G71: 0.3300404446
A72: 0.36 | B72: 0.1145163094 | C72: 0.3239958081 | D72: 0.5614878879 | E72: 0.2746944213 | F72: 0.3885902428 | G72: 0.3367153359
A73: 0.35 | B73: 0.1100574086 | C73: 0.3221310506 | D73: 0.5678115462 | E73: 0.2664339163 | F73: 0.3899175826 | G73: 0.3436485011
A74: 0.34 | B74: 0.1055815872 | C74: 0.3201191128 | D74: 0.5742993053 | E74: 0.2580094497 | F74: 0.3911371212 | G74: 0.3508534291
A75: 0.33 | B75: 0.1010922683 | C75: 0.3179501035 | D75: 0.5809576335 | E75: 0.2494216385 | F75: 0.392233932 | G75: 0.3583444295
A76: 0.32 | B76: 0.09659327063 | C76: 0.3156133874 | D76: 0.587793347 | E76: 0.240671931 | F76: 0.3931913834 | G76: 0.3661366857
A77: 0.31 | B77: 0.09208884386 | C77: 0.3130975241 | D77: 0.594813637 | E77: 0.2317627437 | F77: 0.393990945 | G77: 0.3742463113
A78: 0.3 | B78: 0.08758370544 | C78: 0.3103901996 | D78: 0.6020260999 | E78: 0.222697616 | F78: 0.3946119722 | G78: 0.3826904118
A79: 0.29 | B79: 0.08308307961 | C79: 0.3074781533 | D79: 0.6094387719 | E79: 0.2134813835 | F79: 0.3950314665 | G79: 0.39148715
A80: 0.28 | B80: 0.07859273825 | C80: 0.3043470976 | D80: 0.6170601688 | E80: 0.2041203722 | F80: 0.3952238097 | G80: 0.4006558181
A81: 0.27 | B81: 0.07411904313 | C81: 0.30098163 | D81: 0.6248993313 | E81: 0.1946226142 | F81: 0.3951604688 | G81: 0.410216917
A82: 0.26 | B82: 0.06966898924 | C82: 0.2973651372 | D82: 0.6329658779 | E82: 0.184998086 | F82: 0.3948096694 | G82: 0.4201922447
A83: 0.25 | B83: 0.0652502485 | C83: 0.2934796893 | D83: 0.6412700663 | E83: 0.1752589708 | F83: 0.3941360338 | G83: 0.4306049954
A84: 0.24 | B84: 0.06087121295 | C84: 0.2893059242 | D84: 0.6498228667 | E84: 0.1654199436 | F84: 0.3931001812 | G84: 0.4414798752
A85: 0.23 | B85: 0.05654103636 | C85: 0.2848229198 | D85: 0.6586360475 | E85: 0.1554984787 | F85: 0.3916582856 | G85: 0.4528432357
A86: 0.22 | B86: 0.05226967279 | C86: 0.280008052 | D86: 0.6677222787 | E86: 0.1455151772 | F86: 0.3897615877 | G86: 0.464723235
A87: 0.21 | B87: 0.04806791002 | C87: 0.2748368374 | D87: 0.6770952559 | E87: 0.1354941106 | F87: 0.3873558558 | G87: 0.4771500335
A88: 0.2 | B88: 0.04394739572 | C88: 0.2692827565 | D88: 0.6867698508 | E88: 0.1254631739 | F88: 0.3843807893 | G88: 0.4901560367
A89: 0.19 | B89: 0.03992065316 | C89: 0.2633170547 | D89: 0.696762295 | E89: 0.1154544395 | F89: 0.380769358 | G89: 0.5037762025
A90: 0.18 | B90: 0.03600108277 | C90: 0.256908515 | D90: 0.7070904048 | E90: 0.1055044983 | F90: 0.3764470663 | G90: 0.5180484354
A91: 0.17 | B91: 0.03220294494 | C91: 0.2500231969 | D91: 0.7177738605 | E91: 0.09565477167 | F91: 0.3713311292 | G91: 0.5330140991
A92: 0.16 | B92: 0.02854131848 | C92: 0.2426241319 | D92: 0.7288345518 | E92: 0.08595176973 | F92: 0.3653295402 | G92: 0.5487186901
A93: 0.15 | B93: 0.02503202776 | C93: 0.2346709634 | D93: 0.7402970107 | E93: 0.07644726683 | F93: 0.358340002 | G93: 0.5652127311
A94: 0.14 | B94: 0.02169153015 | C94: 0.2261195157 | D94: 0.7521889559 | E94: 0.06719835545 | F94: 0.3502486796 | G94: 0.582552965
A95: 0.13 | B95: 0.01853675364 | C95: 0.2169212672 | D95: 0.7645419807 | E95: 0.05826732998 | F95: 0.3409287112 | G95: 0.6008039588
A96: 0.12 | B96: 0.01558487199 | C96: 0.2070226992 | D96: 0.7773924302 | E96: 0.04972133977 | F96: 0.3302383867 | G96: 0.6200402735
A97: 0.11 | B97: 0.01285300219 | C97: 0.1963644738 | D97: 0.7907825251 | E97: 0.04163173633 | F97: 0.3180188518 | G97: 0.6403494119
A98: 0.1 | B98: 0.01035780468 | C98: 0.1848803814 | D98: 0.8047618148 | E98: 0.03407302057 | F98: 0.3040911291 | G98: 0.6618358503
A99: 0.09 | B99: 0.008114961576 | C99: 0.1724959684 | D99: 0.8193890708 | E99: 0.02712127197 | F99: 0.2882521395 | G99: 0.6846265885
A100: 0.08 | B100: 0.006138500139 | C100: 0.1591267202 | D100: 0.8347347803 | E100: 0.02085190672 | F100: 0.2702692393 | G100: 0.708878854
A101: 0.07 | B101: 0.004439916246 | C101: 0.1446756155 | D101: 0.8508844687 | E101: 0.01533655965 | F101: 0.2498725296 | G101: 0.7347909107
A102: 0.06 | B102: 0.003027033437 | C102: 0.1290297791 | D102: 0.8679431878 | E102: 0.01063879976 | F102: 0.2267437759 | G102: 0.7626174243
A103: 0.05 | B103: 0.001902500996 | C103: 0.112055819 | D103: 0.8860416803 | E103: 0.006808242703 | F103: 0.2005000822 | G103: 0.7926916751
A104: 0.04 | B104: 0.001061780393 | C104: 0.09359320619 | D104: 0.9053450136 | E104: 0.00387236018 | F104: 0.1706692867 | G104: 0.8254583531
A105: 0.03 | B105: 0.0004903744587 | C105: 0.07344466655 | D105: 0.9260649591 | E105: 0.001824792093 | F105: 0.1366519447 | G105: 0.8615232632
A106: 0.02 | B106: 0.0001598813316 | C106: 0.05136187274 | D106: 0.948478246 | E106: 0.000608005404 | F106: 0.09766085844 | G106: 0.9017311362
A107: 0.01 | B107: 2.212932782e-05 | C107: 0.02702346791 | D107: 0.9729544028 | E107: 8.618263608e-05 | F107: 0.0526214289 | G107: 0.9472923885

Sheet Behälter
A1: Füllvolumen von Kugelbehältern, horizontalen und vertikalen zylindrischen Behältern mit elliptischen Böden
A3: Kugelbehälter | B3: standard | C3: numerisch | D3: Formel | E3: Füllhöhe | F3: Radius | G3: Länge | H3: Bodenhöhe | K3: standard | L3: numerisch | M3: Formel
A4: Radius r | B4: =10-F4 -> 1 | E4: 50 | F4: 9
A5: Füllhöhe | B5: =2*B4*(100-E4)/100 -> 1
A6: Füllvolumen | B6: =kugelBehVol(B5,B4) -> 2.094395102 | C6: =IntSimpBehF(B5,0,10,B4,0,0,"Kugel") -> 2.094395102 | D6: =KugelPrismoid(B5,B4) -> 2.094395102
A7: TotalVolumen | B7: =B6/(D7+1E-20) -> 0.5 | C7: =IntSimpBehF(B4,0,10,B4,0,0,"Kugel")*2 -> 4.188790205 | D7: =4/3*PI()*B4^3 -> 4.188790205
A9: Horizontal Behälter Ellipse | J9: Ellipse vertikal
A10: Radius | B10: =10-F10 -> 1 | E10: 50 | F10: 9 | G10: 8 | H10: 0 | J10: Füllvolumen | K10: =VertikalEllipse(B13,B10,0,B12) -> 2.094395102 | L10: =IntSimpBehF(B13,0,100,B10,0,B12,"EllipseVertikal") -> 2.094395102 | M10: =K10/(M11+1E-20) -> 0.5
A11: Länge | B11: =10-G10 -> 2 | J11: TotalVolumen | K11: =VertikalEllipse(B10*2,B10,0,B12) -> 4.188790205 | L11: =IntSimpBehF(B10*2,0,4,B10,0,B12,"EllipseVertikal") -> 4.188790205 | M11: =4/3*PI()*B10*B10*B12 -> 4.188790205
A12: Bodenhöhe | B12: =B10*(100-H10)/100 -> 1
A13: Füllhöhe | B13: =2*B10*(100-E10)/100 -> 1 | J13: Kreisabschnitt | K13: =Kreisabschnitt(B13,B10) -> 1.570796327 | L13: =IntSimpBehF(B13,0,1000,B10,0,0,"Kreisabschnitt") -> 1.570789065
A14: Füllvolumen | B14: =B18+K10 -> 5.235987756 | C14: =C18+L10 -> 5.235973233 | D14: =B14/(D15+1E-20) -> 0.5 | J14: Kreisabschnitt Prismoid | K14: =KreisPrismoid(B13,B10) -> 1.583333333
A15: TotalVolumen | B15: =B19+K11 -> 10.47197551 | C15: =C19+L11 -> 10.47189335 | D15: =D19+M11 -> 10.47197551 | J15: Kreisab. D | K15: =KreisabschnittD(B13,B10) -> 1.570796371
J16: Kreisab. B | K16: =KreisabschnittB(B13,B10) -> 1.570796327
A17: Horizonal Behälter flach
A18: Füllvolumen | B18: =HorizontalZylinder(B13,B10,B11,0) -> 3.141592654 | C18: =IntSimpBehF(B13,0,1000,B10,B11,0,"HorizontalZylinder") -> 3.14157813 | D18: =B18/(D19+1E-20) -> 0.5
A19: TotalVolumen | B19: =HorizontalZylinder(2*B10,B10,B11,0) -> 6.283185307 | C19: =IntSimpBehF(B10*2,0,1000,B10,B11,0,"HorizontalZylinder") -> 6.283103147 | D19: =B10*B10*PI()*B11 -> 6.283185307
A21: Vertikal Behälter Ellipse | J21: Ellipsenhälfte horizontal
A22: Radius | B22: =10-F22 -> 1 | E22: 61 | F22: 9 | G22: 8 | H22: 40 | J22: Füllvolumen | K22: =HorizontalEllipse(B25,B22,0,B24) -> 1.256637061 | L22: =IntSimpBehF(L24,0,100,B22,0,B24,"EllipseHorizontal") -> 1.256637061 | M22: =K22/(M23+1E-20) -> 1
A23: Länge | B23: =10-G22 -> 2 | J23: TotalVolumen | K23: =HorizontalEllipse(B24,B22,0,B24) -> 1.256637061 | L23: =IntSimpBehF(B24,0,100,B22,0,B24,"EllipseHorizontal") -> 1.256637061 | M23: =2*PI()*B22*B22*B24/3 -> 1.256637061
A24: Bodenhöhe | B24: =B22*(100-H22)/100 -> 0.6 | J24: Bodenfüllhöhe | L24: =IF(B25<B24,B25,B24) -> 0.6
A25: Füllhöhe ges. | B25: =(B23+B24)*(100-E22)/100 -> 1.014
A26: Füllvolumen | B26: =B30+K22 -> 3.857875779 | C26: =C30+L22 -> 2.55725642 | D26: =B26/(D27+1E-20) -> 0.5116666667
A27: TotalVolumen | B27: =B31+K23 -> 7.539822369 | C27: =C31+L23 -> 4.398229715 | D27: =D31+M23 -> 7.539822369
A29: Vertikal Behälter flach
A30: Füllvolumen | B30: =VertikalZylinder(B32,B22,B23,B24) -> 2.601238717 | C30: =IntSimpBehF(B32,0,100,B22,B23,0,"VertikalZylinder") -> 1.300619359 | D30: =B30/(D31+1E-20) -> 0.414
A31: TotalVolumen | B31: =VertikalZylinder(B22,B22,B23,B24) -> 6.283185307 | C31: =IntSimpBehF(B22,0,100,B22,B23,0,"VertikalZylinder") -> 3.141592654 | D31: =B22*B22*PI()*B23 -> 6.283185307
A32: Füllhöhe Zylinder: | B32: =IF(B25<B24,0,B25-B24) -> 0.414

Sheet Beisp1a
A1: Einheitentabelle | C1: wird nicht benötigt
A2: Nr. | B2: Arbeit | C2: Wert für 1 J | I2: Nr. | J2: Arbeit | K2: Wert für 1 J
A3: 1 | B3: Btu | C3: 0.000947817 | I3: 1 | J3: Btu | K3: 0.000947817
A4: 2 | B4: kBtu | C4: 9.47817e-07 | I4: 2 | J4: kBtu | K4: 9.47817e-07
A5: 3 | B5: MMBtu | C5: 9.47817e-10 | I5: 3 | J5: MMBtu | K5: 9.47817e-10
A6: 4 | B6: J | C6: 1 | I6: 4 | J6: J | K6: 1
A7: 5 | B7: kJ | C7: 0.001 | I7: 5 | J7: kJ | K7: 0.001
A8: 6 | B8: MJ | C8: 1e-06 | I8: 6 | J8: MJ | K8: 1e-06
A9: 7 | B9: cal | C9: 0.2388458966 | I9: 7 | J9: cal | K9: 0.2388458966
A10: 8 | B10: kcal | C10: 0.0002388458966 | I10: 8 | J10: kcal | K10: 0.0002388458966
A11: 9 | B11: Mcal | C11: 2.3884589e-07 | I11: 9 | J11: Mcal | K11: 2.3884589e-07
A12: 10 | B12: Ws | C12: 1 | I12: 10 | J12: Ws | K12: 1
A13: 11 | B13: Wh | C13: 0.000277777778 | I13: 11 | J13: Wh | K13: 0.000277777778
A14: 12 | B14: kWh | C14: 2.777777e-07 | I14: 12 | J14: kWh | K14: 2.777777e-07
A15: 13 | B15: MWh | C15: 2.7777777e-10 | I15: 13 | J15: MWh | K15: 2.7777777e-10
A16: 14 | B16: PSh | C16: 3.72506e-07 | I16: 14 | J16: PSh | K16: 3.72506e-07
I20: Kap1a

Sheet Bilanz
A1: Massenbilanz einer Mischung
A4: Beispiel 1 | D4: Menge 1 | E4: 2 | F4: 3
D5: % | E5: % | F5: % | G5: mges | H5: mi | I5: Kontrolle
C6: Stoff1 | D6: 0.1 | E6: 0.6 | F6: 0.2 | G6: 100 | H6: =MMULT(MINVERSE(D6:F8),G6:G8) -> 322.2222222 | I6: =$D$9*D6+$E$9*E6+$F$9*F6 -> 100
C7: 2 | D7: 0.2 | E7: 0.3 | F7: 0.4 | G7: 150 | H7: 55.55555556 | I7: =$D$9*D7+$E$9*E7+$F$9*F7 -> 150
C8: 3 | D8: 0.7 | E8: 0.1 | F8: 0.4 | G8: 300 | H8: 172.2222222 | I8: 300
C9: mi | D9: =H6 -> 322.2222222 | E9: =H7 -> 55.55555556 | F9: =H8 -> 172.2222222 | G9: =SUM(G6:G8) -> 550 | H9: =SUM(H6:H8) -> 550
A13: Beispiel 2: m(ges)=m(Lösung)-m(Extra)
D14: Menge 1 | E14: 2 | F14: 3 | G14: 4 | H14: 5
D15: % | E15: % | F15: % | G15: % | H15: % | I15: m(Matrix) | J15: Matrix | K15: m(Extra) | L15: m(ges)
C16: Stoff1 | D16: 0.1 | E16: 0.6 | F16: 0.2 | G16: 0.5 | H16: 0.2 | I16: 100 | J16: =MMULT(MINVERSE(D16:F18),I16:I18) -> 322.2222222 | K16: =G19*G16+H19*H16 -> 40.7 | L16: =G19*G16+H19*H16+I16 -> 140.7
C17: 2 | D17: 0.2 | E17: 0.3 | F17: 0.4 | G17: 0.3 | H17: 0.5 | I17: 150 | J17: 55.55555556 | K17: =G19*G17+H19*H17 -> 49.5 | L17: =G19*G17+H19*H17+I17 -> 199.5
C18: 3 | D18: 0.7 | E18: 0.1 | F18: 0.4 | G18: 0.2 | H18: 0.3 | I18: 300 | J18: 172.2222222 | K18: =G19*G18+H19*H18 -> 30.8 | L18: =G19*G18+H19*H18+I18 -> 330.8
C19: m | D19: =J16 -> 322.2222222 | E19: =J17 -> 55.55555556 | F19: =J18 -> 172.2222222 | G19: 55 | H19: 66 | I19: =SUM(I16:I18) -> 550 | K19: =SUM(K16:K18) -> 121 | L19: =SUM(L16:L18) -> 671
A23: Beispiel 3: 6*6 Matrix
D24: x1m1 | E24: x1m2 | F24: x3m3 | G24: x4m4 | H24: x5m5 | I24: mges | J24: mi
C25: x1 | D25: 0.1 | E25: 0.6 | F25: 0.2 | G25: 0.5 | H25: 0.2 | I25: 140.7 | J25: =MMULT(MINVERSE(D25:H29),I25:I29) -> 322.2222222
C26: x3 | D26: 0.2 | E26: 0.3 | F26: 0.4 | G26: 0.3 | H26: 0.5 | I26: 199.5 | J26: 55.55555556
C27: x4 | D27: 0.7 | E27: 0.1 | F27: 0.4 | G27: 0.2 | H27: 0.3 | I27: 330.8 | J27: 172.2222222
C28: x5 | D28: 0 | E28: 0 | F28: 0 | G28: 1 | H28: 0 | I28: 55 | J28: 55
C29: x6 | D29: 0 | E29: 0 | F29: 0 | G29: 0 | H29: 1 | I29: 66 | J29: 66
C30: mi | D30: =J25 -> 322.2222222 | E30: =J26 -> 55.55555556 | F30: =J27 -> 172.2222222 | G30: =J28 -> 55 | H30: =J29 -> 66

Sheet Biot-Savart
A1: Magnetfeld nach Biot-Savart und Simpson
A2: Einzelberechnung
A3: R [m] | B3: 0.5
A4: I [A] | B4: 5
A5: x [m] | B5: 0
A6: z [m] | B6: 0.1
A7: n | B7: 10
A8: Hx | B8: =IntSimpBSF(B7,B5,B6,B3,B4,1) -> -2.906557082e-17
A9: Hy | B9: =IntSimpBSF(B7,B5,B6,B3,B4,2) -> 3.928630084e-18
A10: Hz | B10: =IntSimpBSF(B7,B5,B6,B3,B4,3) -> 4.714330172
A12: Feldstärkevektoren
A13: Nr. | B13: x | C13: z
A14: 1 | B14: 0 | C14: 0.1
B15: -1.233073194e-19 | C15: 0.12
A17: 2 | B17: 0 | C17: 0.2
B18: 0 | C18: 0.22
A20: 3 | B20: 0 | C20: 0.3
B21: -5.900613773e-19 | C21: 0.32
A23: 4 | B23: 0 | C23: 0.4
B24: -4.883538496e-19 | C24: 0.42
A26: 5 | B26: 0 | C26: 0.5
B27: -5.261430329e-19 | C27: 0.52
A29: 6 | B29: 0 | C29: 0.6
B30: -7.089956489e-19 | C30: 0.62
A32: 7 | B32: 0 | C32: 0.7
B33: -9.473193254e-19 | C33: 0.72
A35: 8 | B35: 0 | C35: 0.8
B36: -7.809331249e-19 | C36: 0.82
A38: 9 | B38: 0 | C38: 0.9
B39: -1.015050461e-18 | C39: 0.92
A41: 10 | B41: 0 | C41: 1
B42: -3.119644423e-18 | C42: 1.02
A44: 11 | B44: 0.1 | C44: 0.1
B45: 0.1011980042 | C45: 0.1199640874
A47: 12 | B47: 0.1 | C47: 0.2
B48: 0.1021275144 | C48: 0.2198865201
A50: 13 | B50: 0.1 | C50: 0.3
B51: 0.1026941549 | C51: 0.3198177075
A53: 14 | B53: 0.1 | C53: 0.4
B54: 0.1029551014 | C54: 0.4197804797
A56: 15 | B56: 0.1 | C56: 0.5
B57: 0.1030129272 | C57: 0.5197717543
A59: 16 | B59: 0.1 | C59: 0.6
B60: 0.1029540809 | C60: 0.6197806321
A62: 17 | B62: 0.1 | C62: 0.7
B63: 0.1028358756 | C63: 0.7197979244
A65: 18 | B65: 0.1 | C65: 0.8
B66: 0.1026922213 | C66: 0.8198179702
A68: 19 | B68: 0.1 | C68: 0.9
B69: 0.1025418694 | C69: 0.9198378149
A71: 20 | B71: 0.1 | C71: 1
B72: 0.1023946103 | C72: 1.019856129
A74: 21 | B74: 0.2 | C74: 0.1
B75: 0.2026733407 | C75: 0.119820526
A77: 22 | B77: 0.2 | C77: 0.2
B78: 0.2045953557 | C78: 0.2194649096
A80: 23 | B80: 0.2 | C80: 0.3
B81: 0.2056403375 | C81: 0.3191881889
A83: 24 | B83: 0.2 | C83: 0.4
B84: 0.2060493719 | C84: 0.419063187
A86: 25 | B86: 0.2 | C86: 0.5
B87: 0.2060815826 | C87: 0.5190529356
A89: 26 | B89: 0.2 | C89: 0.6
B90: 0.2059142838 | C90: 0.6191055292
A92: 27 | B92: 0.2 | C92: 0.7
B93: 0.2056523001 | C93: 0.7191846685
A95: 28 | B95: 0.2 | C95: 0.8
B96: 0.2053537807 | C96: 0.8192701072
A98: 29 | B98: 0.2 | C98: 0.9
B99: 0.2050496772 | C99: 0.9193520221
A101: 30 | B101: 0.2 | C101: 1
B102: 0.2047556969 | C102: 1.019426357
A104: 31 | B104: 0.3 | C104: 0.1
B105: 0.3049923048 | C105: 0.119366902
A107: 32 | B107: 0.3 | C107: 0.2
B108: 0.3078329323 | C108: 0.2184023143
A110: 33 | B110: 0.3 | C110: 0.3
B111: 0.3090203892 | C111: 0.3178502823
A113: 34 | B113: 0.3 | C113: 0.4
B114: 0.3093264145 | C114: 0.4176923145
A116: 35 | B116: 0.3 | C116: 0.5
B117: 0.3091898372 | C117: 0.5177636396
A119: 36 | B119: 0.3 | C119: 0.6
B120: 0.3088419734 | C120: 0.6179393285
A122: 37 | B122: 0.3 | C122: 0.7
B123: 0.3084042446 | C123: 0.7181485171
A125: 38 | B125: 0.3 | C125: 0.8
B126: 0.3079400879 | C126: 0.8183563342
A128: 39 | B128: 0.3 | C128: 0.9
B129: 0.3074820502 | C129: 0.9185477472
A131: 40 | B131: 0.3 | C131: 1
B132: 0.3070460572 | C132: 1.018717721
A134: 41 | B134: 0.4 | C134: 0.1
B135: 0.410429355 | C135: 0.1170654199
A137: 42 | B137: 0.4 | C137: 0.2
B138: 0.4125146233 | C138: 0.2156007757
A140: 43 | B140: 0.4 | C140: 0.3
B141: 0.4128699527 | C141: 0.315308962
A143: 44 | B143: 0.4 | C143: 0.4
B144: 0.4126840252 | C144: 0.41546336
A146: 45 | B146: 0.4 | C146: 0.5
B147: 0.4122278034 | C147: 0.515826586
A149: 46 | B149: 0.4 | C149: 0.6
B150: 0.4116448437 | C150: 0.6162603079
A152: 47 | B152: 0.4 | C152: 0.7
B153: 0.4110175619 | C153: 0.7166917144
A155: 48 | B155: 0.4 | C155: 0.8
B156: 0.4103914055 | C156: 0.8170885544
A158: 49 | B158: 0.4 | C158: 0.9
B159: 0.4097901495 | C159: 0.917439982
A161: 50 | B161: 0.4 | C161: 1
B162: 0.4092251482 | C162: 1.017745327
A164: 51 | B164: 0.5 | C164: 0.1
B165: 0.519559863 | C165: 0.1041727399
A167: 52 | B167: 0.5 | C167: 0.2
B168: 0.5178391275 | C168: 0.2090424294
A170: 53 | B170: 0.5 | C170: 0.3
B171: 0.5166526548 | C171: 0.3110765107
A173: 54 | B173: 0.5 | C173: 0.4
B174: 0.5157986146 | C174: 0.4122639217
A176: 55 | B176: 0.5 | C176: 0.5
B177: 0.5149932207 | C177: 0.5132364396
A179: 56 | B179: 0.5 | C179: 0.6
B180: 0.5141895781 | C180: 0.6140945335
A182: 57 | B182: 0.5 | C182: 0.7
B183: 0.5133995471 | C183: 0.7148476307
A185: 58 | B185: 0.5 | C185: 0.8
B186: 0.5126399918 | C186: 0.8154993744
A188: 59 | B188: 0.5 | C188: 0.9
B189: 0.511922288 | C189: 0.9160579902
A191: 60 | B191: 0.5 | C191: 1
B192: 0.5112521005 | C192: 1.016534516
A194: 61 | B194: 0.6 | C194: 0.1
B195: 0.6171759678 | C195: 0.08975372606
A197: 62 | B197: 0.6 | C197: 0.2
B198: 0.6199931304 | C198: 0.2005241537
A200: 63 | B200: 0.6 | C200: 0.3
B201: 0.6191925008 | C201: 0.3056256476
A203: 64 | B203: 0.6 | C203: 0.4
B204: 0.6181918628 | C204: 0.4083100017
A206: 65 | B206: 0.6 | C206: 0.5
B207: 0.617245511 | C207: 0.5101287882
A209: 66 | B209: 0.6 | C209: 0.6
B210: 0.6163357889 | C210: 0.6115387175
A212: 67 | B212: 0.6 | C212: 0.7
B213: 0.6154592048 | C213: 0.7126890893
A215: 68 | B215: 0.6 | C215: 0.8
B216: 0.6146221383 | C216: 0.8136452582
A218: 69 | B218: 0.6 | C218: 0.9
B219: 0.6138311675 | C219: 0.9144464115
A221: 70 | B221: 0.6 | C221: 1
B222: 0.6130901714 | C222: 1.015121092
A224: 71 | B224: 0.7 | C224: 0.1
B225: 0.7135308709 | C225: 0.08527194745
A227: 72 | B227: 0.7 | C227: 0.2
B228: 0.7191201779 | C228: 0.1941332464
A230: 73 | B230: 0.7 | C230: 0.3
B231: 0.7199978146 | C231: 0.300295657
A233: 74 | B233: 0.7 | C233: 0.4
B234: 0.7195677171 | C234: 0.4041357522
A236: 75 | B236: 0.7 | C236: 0.5
B237: 0.7188190071 | C237: 0.5067708915
A239: 76 | B239: 0.7 | C239: 0.6
B240: 0.7179834484 | C240: 0.6087518904
A242: 77 | B242: 0.7 | C242: 0.7
B243: 0.7171304755 | C243: 0.7103221514
A245: 78 | B245: 0.7 | C245: 0.8
B246: 0.7162907549 | C246: 0.8116022112
A248: 79 | B248: 0.7 | C248: 0.9
B249: 0.715481157 | C249: 0.9126622974
A251: 80 | B251: 0.7 | C251: 1
B252: 0.7147111505 | C252: 1.013549245
A254: 81 | B254: 0.8 | C254: 0.1
B255: 0.8110593084 | C255: 0.08333591596
A257: 82 | B257: 0.8 | C257: 0.2
B258: 0.8173097913 | C258: 0.189981461
A260: 83 | B260: 0.8 | C260: 0.3
B261: 0.8195723774 | C261: 0.2958863589
A263: 84 | B263: 0.8 | C263: 0.4
B264: 0.8199985182 | C264: 0.4002434526
A266: 85 | B266: 0.8 | C266: 0.5
B267: 0.819699616 | C267: 0.5034532778
A269: 86 | B269: 0.8 | C269: 0.6
B270: 0.8191058357 | C270: 0.6059132938
A272: 87 | B272: 0.8 | C272: 0.7
B273: 0.8183880398 | C273: 0.7078663837
A275: 88 | B275: 0.8 | C275: 0.8
B276: 0.8176238181 | C276: 0.809455212
A278: 89 | B278: 0.8 | C278: 0.9
B279: 0.816853204 | C279: 0.9107689143
A281: 90 | B281: 0.8 | C281: 1
B282: 0.8160983889 | C282: 1.011867682
A284: 91 | B284: 0.9 | C284: 0.1
B285: 0.9092059352 | C285: 0.08224469775
A287: 92 | B287: 0.9 | C287: 0.2
B288: 0.9154162099 | C288: 0.18725871
A290: 93 | B290: 0.9 | C290: 0.3
B291: 0.9185363966 | C291: 0.2924898734
A293: 94 | B293: 0.9 | C293: 0.4
B294: 0.9197561527 | C294: 0.3968864122
... 12 more rows

Sheet Brennstoffzelle
A1: Wasserstoff-Sauerstoff-Brennstoffzelle
A2: Modul | B2: keine
B11: Eingabe:
B12: Pa | C12: 50000 | D12: W
B13: Ua | C13: 100 | D13: V
B14: Ri | C14: 0.01 | D14: Ω
B15: Zellenspannung | C15: 1.24 | D15: V
B17: Ausgabe:
B18: Ia | C18: =C12/C13 -> 500 | D18: A
B19: Ra | C19: =C13/C18 -> 0.2 | D19: Ω
B20: Rges | C20: =C14+C19 -> 0.21 | D20: Ω
B21: Ui | C21: =C14*C18 -> 5 | D21: V
B22: Pi | C22: =C21*C18 -> 2500 | D22: W
B23: U0 | C23: =C13+C21 -> 105 | D23: V
B24: P0 | C24: =C23*C18 -> 52500 | D24: W
B25: Zellen | C25: =(C23/C15) -> 84.67741935 | D25: =ROUND(C25+0.499999,0) -> 85
B26: H2 | C26: =C18*C25/C34 -> 0.438858169 | D26: mol/s
B27: O2 | C27: =0.5*C18*C25/C34 -> 0.2194290845 | D27: mol/s
B28: H2 | C28: =C26*C35*3600/1000 -> 3.159778817 | D28: kg/h
B29: O2 | C29: =C27*C36*3600/1000 -> 25.27823053 | D29: kg/h
B31: Konstanten:
B32: Elektronladung | C32: 1.602e-19 | D32: C
B33: Avogrado | C33: 6.022141e+23 | D33: mol-1
B34: Faraday | C34: =C32*C33 -> 96474.69882 | D34: C/mol
B35: MGH2 | C35: 2 | D35: g/mol
B36: MGO2 | C36: 32 | D36: g/mol

Sheet Dateien
A1: Lesen und Schreiben von Daten am Beispiel einer Grafik
L2: erzeugte Daten
A3: Lfd. Nr. | B3: x | C3: Logarithmus | M3: Quadrat | N3: Wurzel | O3: Logarithmus | P3: Kubik
A4: 1 | B4: 1 | C4: 0 | L4: 1 | M4: =L4*L4/10 -> 0.1 | N4: 3.16227766 | O4: =LOG(L4)*10 -> 0 | P4: =M4^3/100 -> 1e-05
A5: 2 | B5: 2 | C5: 3.010299957 | L5: 2 | M5: =L5*L5/10 -> 0.4 | N5: 4.472135955 | O5: =LOG(L5)*10 -> 3.010299957 | P5: 0.00064
A6: 3 | B6: 3 | C6: 4.771212547 | L6: 3 | M6: 0.9 | N6: 5.477225575 | O6: 4.771212547 | P6: 0.00729
A7: 4 | B7: 4 | C7: 6.020599913 | L7: 4 | M7: 1.6 | N7: 6.32455532 | O7: 6.020599913 | P7: 0.04096
A8: 5 | B8: 5 | C8: 6.989700043 | L8: 5 | M8: 2.5 | N8: 7.071067812 | O8: 6.989700043 | P8: 0.15625
A9: 6 | B9: 6 | C9: 7.781512504 | L9: 6 | M9: 3.6 | N9: 7.745966692 | O9: 7.781512504 | P9: 0.46656
A10: 7 | B10: 7 | C10: 8.4509804 | L10: 7 | M10: 4.9 | N10: 8.366600265 | O10: 8.4509804 | P10: 1.17649
A11: 8 | B11: 8 | C11: 9.03089987 | L11: 8 | M11: 6.4 | N11: 8.94427191 | O11: 9.03089987 | P11: 2.62144
A12: 9 | B12: 9 | C12: 9.542425094 | L12: 9 | M12: 8.1 | N12: 9.486832981 | O12: 9.542425094 | P12: 5.31441
A13: 10 | B13: 10 | C13: 10 | L13: 10 | M13: 10 | N13: 10 | O13: 10 | P13: =M13^3/100 -> 10
L18: Datei erstellen | N18: Daten schreiben

Sheet Daten
A1: Übertragen von Daten zwischen Tabelle und VBA
A3: Beispiele: | D3: Kreisgrafik
A4: Beispiel 1 | D4: Lfd. Nr. | E4: x | F4: y
A5: a | B5: 1.5 | D5: 1 | E5: 0 | F5: 1
A6: b | B6: 2.3 | D6: 2 | E6: 0.06279051953 | F6: 0.9980267284
A7: c | B7: 5 | D7: 3 | E7: 0.1253332336 | F7: 0.9921147013
A8: x | B8: 3.2 | D8: 4 | E8: 0.1873813146 | F8: 0.9822872507
A9: y | B9: =Beispiel1(B5,B6,B7,B8) -> 60.06 | D9: 5 | E9: 0.2486898872 | F9: 0.9685831611
D10: 6 | E10: 0.3090169944 | F10: 0.9510565163
D11: 7 | E11: 0.3681245527 | F11: 0.9297764859
D12: 8 | E12: 0.4257792916 | F12: 0.9048270525
A13: Beispiel2 | D13: 9 | E13: 0.4817536741 | F13: 0.87630668
A14: a | B14: 0.12 | D14: 10 | E14: 0.535826795 | F14: 0.8443279255
A15: b | B15: 1.2 | D15: 11 | E15: 0.5877852523 | F15: 0.8090169944
A16: c | B16: 23.8 | D16: 12 | E16: 0.6374239897 | F16: 0.7705132428
A17: x | B17: 15 | D17: 13 | E17: 0.6845471059 | F17: 0.7289686274
A18: y | B18: 5373.12 | D18: 14 | E18: 0.7289686274 | F18: 0.6845471059
D19: 15 | E19: 0.7705132428 | F19: 0.6374239897
D20: 16 | E20: 0.8090169944 | F20: 0.5877852523
D21: 17 | E21: 0.8443279255 | F21: 0.535826795
A22: Beispiel3 und 4 | D22: 18 | E22: 0.87630668 | F22: 0.4817536741
A23: a | B23: 0.12 | D23: 19 | E23: 0.9048270525 | F23: 0.4257792916
A24: b | B24: 1.2 | D24: 20 | E24: 0.9297764859 | F24: 0.3681245527
A25: c | B25: 23.8 | D25: 21 | E25: 0.9510565163 | F25: 0.3090169944
A26: x | B26: 15 | D26: 22 | E26: 0.9685831611 | F26: 0.2486898872
A27: y | B27: 5373.12 | D27: 23 | E27: 0.9822872507 | F27: 0.1873813146
D28: 24 | E28: 0.9921147013 | F28: 0.1253332336
D29: 25 | E29: 0.9980267284 | F29: 0.06279051953
D30: 26 | E30: 1 | F30: -6.049034971e-16
D31: 27 | E31: 0.9980267284 | F31: -0.06279051953
D32: 28 | E32: 0.9921147013 | F32: -0.1253332336
D33: 29 | E33: 0.9822872507 | F33: -0.1873813146
D34: 30 | E34: 0.9685831611 | F34: -0.2486898872
D35: 31 | E35: 0.9510565163 | F35: -0.3090169944
D36: 32 | E36: 0.9297764859 | F36: -0.3681245527
D37: 33 | E37: 0.9048270525 | F37: -0.4257792916
D38: 34 | E38: 0.87630668 | F38: -0.4817536741
D39: 35 | E39: 0.8443279255 | F39: -0.535826795
D40: 36 | E40: 0.8090169944 | F40: -0.5877852523
D41: 37 | E41: 0.7705132428 | F41: -0.6374239897
D42: 38 | E42: 0.7289686274 | F42: -0.6845471059
D43: 39 | E43: 0.6845471059 | F43: -0.7289686274
D44: 40 | E44: 0.6374239897 | F44: -0.7705132428
D45: 41 | E45: 0.5877852523 | F45: -0.8090169944
D46: 42 | E46: 0.535826795 | F46: -0.8443279255
D47: 43 | E47: 0.4817536741 | F47: -0.87630668
D48: 44 | E48: 0.4257792916 | F48: -0.9048270525
D49: 45 | E49: 0.3681245527 | F49: -0.9297764859
D50: 46 | E50: 0.3090169944 | F50: -0.9510565163
D51: 47 | E51: 0.2486898872 | F51: -0.9685831611
D52: 48 | E52: 0.1873813146 | F52: -0.9822872507
D53: 49 | E53: 0.1253332336 | F53: -0.9921147013
D54: 50 | E54: 0.06279051953 | F54: -0.9980267284
D55: 51 | E55: -2.542074624e-15 | F55: -1
D56: 52 | E56: -0.06279051953 | F56: -0.9980267284
D57: 53 | E57: -0.1253332336 | F57: -0.9921147013
D58: 54 | E58: -0.1873813146 | F58: -0.9822872507
D59: 55 | E59: -0.2486898872 | F59: -0.9685831611
D60: 56 | E60: -0.3090169944 | F60: -0.9510565163
D61: 57 | E61: -0.3681245527 | F61: -0.9297764859
D62: 58 | E62: -0.4257792916 | F62: -0.9048270525
D63: 59 | E63: -0.4817536741 | F63: -0.87630668
D64: 60 | E64: -0.535826795 | F64: -0.8443279255
D65: 61 | E65: -0.5877852523 | F65: -0.8090169944
D66: 62 | E66: -0.6374239897 | F66: -0.7705132428
D67: 63 | E67: -0.6845471059 | F67: -0.7289686274
D68: 64 | E68: -0.7289686274 | F68: -0.6845471059
D69: 65 | E69: -0.7705132428 | F69: -0.6374239897
D70: 66 | E70: -0.8090169944 | F70: -0.5877852523
D71: 67 | E71: -0.8443279255 | F71: -0.535826795
D72: 68 | E72: -0.87630668 | F72: -0.4817536741
D73: 69 | E73: -0.9048270525 | F73: -0.4257792916
D74: 70 | E74: -0.9297764859 | F74: -0.3681245527
D75: 71 | E75: -0.9510565163 | F75: -0.3090169944
D76: 72 | E76: -0.9685831611 | F76: -0.2486898872
D77: 73 | E77: -0.9822872507 | F77: -0.1873813146
D78: 74 | E78: -0.9921147013 | F78: -0.1253332336
D79: 75 | E79: -0.9980267284 | F79: -0.06279051953
D80: 76 | E80: -1 | F80: -1.836909531e-16
D81: 77 | E81: -0.9980267284 | F81: 0.06279051953
D82: 78 | E82: -0.9921147013 | F82: 0.1253332336
D83: 79 | E83: -0.9822872507 | F83: 0.1873813146
D84: 80 | E84: -0.9685831611 | F84: 0.2486898872
D85: 81 | E85: -0.9510565163 | F85: 0.3090169944
D86: 82 | E86: -0.9297764859 | F86: 0.3681245527
D87: 83 | E87: -0.9048270525 | F87: 0.4257792916
D88: 84 | E88: -0.87630668 | F88: 0.4817536741
D89: 85 | E89: -0.8443279255 | F89: 0.535826795
D90: 86 | E90: -0.8090169944 | F90: 0.5877852523
D91: 87 | E91: -0.7705132428 | F91: 0.6374239897
D92: 88 | E92: -0.7289686274 | F92: 0.6845471059
D93: 89 | E93: -0.6845471059 | F93: 0.7289686274
D94: 90 | E94: -0.6374239897 | F94: 0.7705132428
D95: 91 | E95: -0.5877852523 | F95: 0.8090169944
D96: 92 | E96: -0.535826795 | F96: 0.8443279255
D97: 93 | E97: -0.4817536741 | F97: 0.87630668
D98: 94 | E98: -0.4257792916 | F98: 0.9048270525
D99: 95 | E99: -0.3681245527 | F99: 0.9297764859
D100: 96 | E100: -0.3090169944 | F100: 0.9510565163
D101: 97 | E101: -0.2486898872 | F101: 0.9685831611
D102: 98 | E102: -0.1873813146 | F102: 0.9822872507
D103: 99 | E103: -0.1253332336 | F103: 0.9921147013
D104: 100 | E104: -0.06279051953 | F104: 0.9980267284

Sheet Dreiecksdiagramm
A1: Dreiecksdiagramm
A2: Dreieck: x | B2: y
A3: 0 | B3: 0
A4: 50 | B4: 100
A5: 100 | B5: 0
A6: Funktion | G6: Konoden
A7: x | B7: y | C7: z | D7: X | E7: Y | G7: x | H7: y | I7: z | J7: X | K7: Y
A8: 0 | B8: 0.001 | C8: =100-A8-B8 -> 99.999 | D8: =A8+B8/2 -> 0.0005 | E8: =B8 -> 0.001 | G8: 10 | H8: =B9 -> 15 | I8: =100-G8-H8 -> 75 | J8: =G8+H8/2 -> 17.5 | K8: =H8 -> 15
A9: 10 | B9: 15 | C9: 75 | D9: 17.5 | E9: 15 | G9: =A17 -> 89.1 | H9: =B17 -> 11 | I9: =100-G9-H9 -> -0.1 | J9: =G9+H9/2 -> 94.6 | K9: =H9 -> 11
A10: 20 | B10: 28.5 | C10: 51.5 | D10: 34.25 | E10: 28.5
A11: 30 | B11: 36.6 | C11: 33.4 | D11: 48.3 | E11: 36.6 | G11: =A10 -> 20 | H11: =B10 -> 28.5 | I11: =100-G11-H11 -> 51.5 | J11: =G11+H11/2 -> 34.25 | K11: =H11 -> 28.5
A12: 40 | B12: 40 | C12: 20 | D12: 60 | E12: 40 | G12: =A16 -> 80 | H12: =B16 -> 19 | I12: =100-G12-H12 -> 1 | J12: =G12+H12/2 -> 89.5 | K12: =H12 -> 19
A13: 50 | B13: 38 | C13: 12 | D13: 69 | E13: 38
A14: 59.1 | B14: 33.5 | C14: 7.4 | D14: 75.85 | E14: 33.5 | G14: =A11 -> 30 | H14: =B11 -> 36.6 | I14: =100-G14-H14 -> 33.4 | J14: =G14+H14/2 -> 48.3 | K14: =H14 -> 36.6
A15: 70 | B15: 26.5 | C15: 3.5 | D15: 83.25 | E15: 26.5 | G15: =A15 -> 70 | H15: =B15 -> 26.5 | I15: =100-G15-H15 -> 3.5 | J15: =G15+H15/2 -> 83.25 | K15: =H15 -> 26.5
A16: 80 | B16: 19 | C16: 1 | D16: 89.5 | E16: 19
A17: 89.1 | B17: 11 | C17: -0.1 | D17: 94.6 | E17: 11 | G17: =A12 -> 40 | H17: =B12 -> 40 | I17: =100-G17-H17 -> 20 | J17: =G17+H17/2 -> 60 | K17: =H17 -> 40
A18: 100 | B18: 0 | C18: 0 | D18: 100 | E18: 0 | G18: =A14 -> 59.1 | H18: =B14 -> 33.5 | I18: =100-G18-H18 -> 7.4 | J18: =G18+H18/2 -> 75.85 | K18: =H18 -> 33.5
A20: Linien | G20: Gerade
A21: 5 | B21: 10 | G21: x | H21: y | I21: z | J21: X | K21: Y
A22: 95 | B22: 10 | G22: 10 | H22: 40 | I22: =100-G22-H22 -> 50 | J22: =G22+H22/2 -> 30 | K22: =H22 -> 40
G23: 20 | H23: 50 | I23: =100-G23-H23 -> 30 | J23: =G23+H23/2 -> 45 | K23: =H23 -> 50
A24: 10 | B24: 20 | G24: 30 | H24: 60 | I24: =100-G24-H24 -> 10 | J24: =G24+H24/2 -> 60 | K24: =H24 -> 60
A25: 90 | B25: 20 | G25: 40 | H25: 60 | I25: =100-G25-H25 -> 0 | J25: =G25+H25/2 -> 70 | K25: =H25 -> 60
A27: 15 | B27: 30
A28: 85 | B28: 30
A30: 20 | B30: 40 | G30: x,y,z | H30: Wertepaare im karthesichen Koordinatensystem
A31: 80 | B31: 40 | G31: X,Y' | H31: wertepaare im Dreiecksdiagramm
A33: 25 | B33: 50 | G33: Umrechnung
A34: 75 | B34: 50 | G34: X = x +y/2
G35: Y= y
A36: 30 | B36: 60 | G36: z=100 - x -y
A37: 70 | B37: 60
G38: X = Horizontale von links nach rechts
A39: 35 | B39: 70 | G39: Y = Vertikale, schräge von rechts unten nach oben, identisch mit der Y Achse
A40: 65 | B40: 70 | G40: Z = Vertikale, schräg von oben nach unten
A42: 40 | B42: 80
A43: 60 | B43: 80
A45: 45 | B45: 90
A46: 55 | B46: 90
A48: 45 | B48: 90
A49: 90 | B49: 0
A51: 40 | B51: 80
A52: 80 | B52: 0
A54: 35 | B54: 70
A55: 70 | B55: 0
A57: 30 | B57: 60
A58: 60 | B58: 0
A60: 25 | B60: 50
A61: 50 | B61: 0
A63: 20 | B63: 40
A64: 40 | B64: 0
A66: 15 | B66: 30
A67: 30 | B67: 0
A69: 10 | B69: 20
A70: 20 | B70: 0
A72: 5 | B72: 10
A73: 10 | B73: 0
A75: 10 | B75: 0
A76: 55.5 | B76: 90
A78: 20 | B78: 0
A79: 60.5 | B79: 80
A81: 30 | B81: 0
A82: 65 | B82: 70
A84: 40 | B84: 0
A85: 70 | B85: 60
A87: 50 | B87: 0
A88: 75 | B88: 50
A90: 60 | B90: 0
A91: 80 | B91: 40
A93: 70 | B93: 0
A94: 85 | B94: 30
A96: 80 | B96: 0
A97: 90 | B97: 20
A99: 90 | B99: 0
A100: 95 | B100: 10

Sheet Einheiten
A1: Umrechnen von Energie
A2: Eingabe | E2: Ausgabe
A3: Eingabewert | B3: Einheit | C3: Faktor | D3: [J] | E3: Ausgabewert | F3: Maßeinheit | G3: Faktor | H3: [J]
A4: 10 | B4: J | C4: 1 | D4: 10 | E4: 0.002388458966 | F4: kcal | G4: 0.0002388458966 | H4: 10
B12: Einstellung in Listbox1
B16: Einstellung in Listbox2
A21: Einheitentabelle
A22: Nr. | B22: Arbeit | C22: Wert für 1 J
A23: 1 | B23: Btu | C23: 0.000947817
A24: 2 | B24: kBtu | C24: 9.47817e-07
A25: 3 | B25: MMBtu | C25: 9.47817e-10
A26: 4 | B26: J | C26: 1
A27: 5 | B27: kJ | C27: 0.001
A28: 6 | B28: MJ | C28: 1e-06
A29: 7 | B29: cal | C29: 0.2388458966
A30: 8 | B30: kcal | C30: 0.0002388458966
A31: 9 | B31: Mcal | C31: 2.3884589e-07
A32: 10 | B32: Ws | C32: 1
A33: 11 | B33: Wh | C33: 0.000277777778
A34: 12 | B34: kWh | C34: 2.777777e-07
A35: 13 | B35: MWh | C35: 2.7777777e-10
A36: 14 | B36: PSh | C36: 3.72506e-07

Sheet Fourier
A1: Fourier-Reihe als Lösung des 2. Fick'schen Gesetzes am Beispiel der instationären Wärmeleitung eines Stabes
A3: Eingabe
A4: Stelle x | B4: 2
A5: Zeit z | B5: 4
A6: Schrittzahl | B6: 70
A8: Ergebnis | D8: Länge | E8: Zeit | F8: T1 | G8: Zeit | H8: T2 | I8: Zeit | J8: T3 | K8: Zeit | L8: T4
A9: T °C | B9: =Fourierf(B4,B5,B6) -> 15.18629856 | D9: 0 | E9: 0.01 | F9: =Fourierf(D9,E9,$B$6) -> 10 | G9: 4 | H9: =Fourierf(D9,G9,$B$6) -> 10 | I9: 10 | J9: =Fourierf(D9,I9,$B$6) -> 10 | K9: 50 | L9: =Fourierf(D9,K9,$B$6) -> 10
D10: 0.1 | E10: 0.01 | F10: =Fourierf(D10,E10,$B$6) -> -3.663723539 | G10: 4 | H10: =Fourierf(D10,G10,$B$6) -> 8.03881023 | I10: 10 | J10: =Fourierf(D10,I10,$B$6) -> 9.115559653 | K10: 50 | L10: =Fourierf(D10,K10,$B$6) -> 10.3331241
D11: 0.2 | E11: 0.01 | F11: -3.067838431 | G11: 4 | H11: 6.256126162 | I11: 10 | J11: 8.277581414 | K11: 50 | L11: 10.67356348
D12: 0.3 | E12: 0.01 | F12: -2.14806496 | G12: 4 | H12: 4.798820572 | I12: 10 | J12: 7.529136152 | K12: 50 | L12: 11.0285524
D13: 0.4 | E13: 0.01 | F13: -1.066626259 | G13: 4 | H13: 3.759657619 | I13: 10 | J13: 6.906928734 | K13: 50 | L13: 11.40516407
D14: 0.5 | E14: 0.01 | F14: 0.04003198057 | G14: 4 | H14: 3.169493216 | I14: 10 | J14: 6.439087439 | K14: 50 | L14: 11.81023253
D15: 0.6 | E15: 0.01 | F15: 1.078897744 | G15: 4 | H15: 3.004216068 | I15: 10 | J15: 6.143942514 | K15: 50 | L15: 12.25027738
D16: 0.7 | E16: 0.01 | F16: 2.037697017 | G16: 4 | H16: 3.20177484 | I16: 10 | J16: 6.029867932 | K16: 50 | L16: 12.73143219
D17: 0.8 | E17: 0.01 | F17: 2.970931229 | G17: 4 | H17: 3.682504528 | I17: 10 | J17: 6.096111406 | K17: 50 | L17: 13.25937748
D18: 0.9 | E18: 0.01 | F18: 3.942537394 | G18: 4 | H18: 4.366736461 | I18: 10 | J18: 6.334417534 | K18: 50 | L18: 13.83927885
D19: 1 | E19: 0.01 | F19: 4.971942935 | G19: 4 | H19: 5.186298559 | I19: 10 | J19: 6.7311755 | K19: 50 | L19: 14.47573101
D20: 1.1 | E20: 0.01 | F20: 6.024575757 | G20: 4 | H20: 6.08942341 | I20: 10 | J20: 7.269801603 | K20: 50 | L20: 15.17270822
D21: 1.2 | E21: 0.01 | F21: 7.048917522 | G21: 4 | H21: 7.040598871 | I21: 10 | J21: 7.933091454 | K21: 50 | L21: 15.9335216
D22: 1.3 | E22: 0.01 | F22: 8.024177748 | G22: 4 | H22: 8.017631407 | I22: 10 | J22: 8.705332047 | K22: 50 | L22: 16.76078377
D23: 1.4 | E23: 0.01 | F23: 8.976797797 | G23: 4 | H23: 9.00792901 | I23: 10 | J23: 9.574030978 | K23: 50 | L23: 17.65638094
D24: 1.5 | E24: 0.01 | F24: 9.95346789 | G24: 4 | H24: 10.00530504 | I24: 10 | J24: 10.53118197 | K24: 50 | L24: 18.6214529
D25: 1.6 | E25: 0.01 | F25: 10.9767978 | G25: 4 | H25: 11.00792901 | I25: 10 | J25: 11.57403098 | K25: 50 | L25: 19.65638094
D26: 1.7 | E26: 0.01 | F26: 12.02417775 | G26: 4 | H26: 12.01763141 | I26: 10 | J26: 12.70533205 | K26: 50 | L26: 20.76078377
D27: 1.8 | E27: 0.01 | F27: 13.04891752 | G27: 4 | H27: 13.04059887 | I27: 10 | J27: 13.93309145 | K27: 50 | L27: 21.9335216
D28: 1.9 | E28: 0.01 | F28: 14.02457576 | G28: 4 | H28: 14.08942341 | I28: 10 | J28: 15.2698016 | K28: 50 | L28: 23.17270822
D29: 2 | E29: 0.01 | F29: 14.97194294 | G29: 4 | H29: 15.18629856 | I29: 10 | J29: 16.7311755 | K29: 50 | L29: 24.47573101
D30: 2.1 | E30: 0.01 | F30: 15.94253739 | G30: 4 | H30: 16.36673646 | I30: 10 | J30: 18.33441753 | K30: 50 | L30: 25.83927885
D31: 2.2 | E31: 0.01 | F31: 16.97093123 | G31: 4 | H31: 17.68250453 | I31: 10 | J31: 20.09611141 | K31: 50 | L31: 27.25937748
D32: 2.3 | E32: 0.01 | F32: 18.03769702 | G32: 4 | H32: 19.20177484 | I32: 10 | J32: 22.02986793 | K32: 50 | L32: 28.73143219
D33: 2.4 | E33: 0.01 | F33: 19.07889774 | G33: 4 | H33: 21.00421607 | I33: 10 | J33: 24.14394251 | K33: 50 | L33: 30.25027738
D34: 2.5 | E34: 0.01 | F34: 20.04003198 | G34: 4 | H34: 23.16949322 | I34: 10 | J34: 26.43908744 | K34: 50 | L34: 31.81023253
D35: 2.6 | E35: 0.01 | F35: 20.93337374 | G35: 4 | H35: 25.75965762 | I35: 10 | J35: 28.90692873 | K35: 50 | L35: 33.40516407
D36: 2.7 | E36: 0.01 | F36: 21.85193504 | G36: 4 | H36: 28.79882057 | I36: 10 | J36: 31.52913615 | K36: 50 | L36: 35.0285524
D37: 2.8 | E37: 0.01 | F37: 22.93216157 | G37: 4 | H37: 32.25612616 | I37: 10 | J37: 34.27758141 | K37: 50 | L37: 36.67356348
D38: 2.9 | E38: 0.01 | F38: 24.33627646 | G38: 4 | H38: 36.03881023 | I38: 10 | J38: 37.11555965 | K38: 50 | L38: 38.3331241
D39: 3 | E39: 0.01 | F39: 40 | G39: 4 | H39: 40 | I39: 10 | J39: 40 | K39: 50 | L39: 40

Sheet Funktionen
A1: Grafische Darstellung von Funktionen, eine Einführung | M1: Array von VBA an Excel übergeben
A2: Parameter | M2: 1. Bereich M10:N12 markieren
A3: a= | B3: 1 | M3: 2. Funktion arrTest aufrufen: schreibt 10 in M10
A4: b= | B4: 2 | M4: 3. F2, Strg+Shift+Enter
A5: c= | B5: 3 | M5: 4. Zum Löschen Bereich markieren, r.M. Inhalte löschen
A6: m= | B6: 4
A7: n= | B7: 5
A8: Fehlerindex | B8: 0
A9: Grafik
A10: Lfd. Nr | B10: x | C10: y | M10: =arrTest() -> 10 | N10: 111
A11: 1 | B11: 1 | C11: =Exponentialf($B$3,$B$4,$B$5,$B$6,$B$7,B11) -> 1.75 | M11: 11 | N11: 112
A12: 2 | B12: 2 | C12: =Exponentialf($B$3,$B$4,$B$5,$B$6,$B$7,B12) -> 1.514285714 | M12: 11 | N12: 113
A13: 3 | B13: 3 | C13: 1.337398374
A14: 4 | B14: 4 | C14: 1.251217137
A15: 5 | B15: 5 | C15: 1.20044757
A16: 6 | B16: 6 | C16: 1.166859494
A17: 7 | B17: 7 | C17: 1.142950625
A18: 8 | B18: 8 | C18: 1.125049587
A19: 9 | B19: 9 | C19: 1.111139335
A20: 10 | B20: 10 | C20: 1.100016999
A21: 11 | B21: 11 | C21: 1.090919816
A22: 12 | B22: 12 | C22: 1.083340366
A23: 13 | B23: 13 | C23: 1.076927842
A24: 14 | B24: 14 | C24: 1.071431892
A25: 15 | B25: 15 | C25: 1.066669037
A26: 16 | B26: 16 | C26: =Exponentialf($B$3,$B$4,$B$5,$B$6,$B$7,B26) -> 1.062501729
A27: 17 | B27: 17 | C27: 1.058824814
A28: 18 | B28: 18 | C28: 1.055556526
A29: 19 | B29: 19 | C29: 1.052632323
A30: 20 | B30: 20 | C30: 1.050000578

Sheet Gasgleichung
A1: Ideale und reale Gasgleichung | O1: van der Waals | S1: SRK
H2: kritische Daten | O2: V | P2: p | Q2: Va= | R2: 0.07 | S2: 0.05 | T2: V | U2: P
A3: Gasdichte | B3: ideal | C3: van der Waals | D3: SRK | F3: M | G3: g/mol | H3: Tk [K] | I3: Pk [bar] | J3: Vk [l/mol] | K3: Az. Faktor Omega | L3: s bzw. zkr | M3: 0.375 | O3: =+R2 -> 0.07 | P3: =vanderWaalspF($B$12,$H$10,$I$10,$J$10,$C$4,O3) -> 101.5614818 | Q3: Ve= | R3: 0.2 | S3: 0.2 | T3: =+S2 -> 0.05 | U3: =SRKpF($B$12,$H$10,$I$10,$J$10,$K$10,$D$4,T3) -> 131.6965288
A4: T [K] | B4: 273.15 | C4: 277 | D4: =C4 -> 277 | F4: O2 | G4: 32 | H4: 154.58 | I4: 50.6738 | J4: 0.0734 | K4: 0.019 | L4: =I4*J4/$B$12/H4 -> 0.2893867225 | M4: =($M$3-L4)/L4*100 -> 29.58438341 | O4: =O3+($R$3-$R$2)/$R$4 -> 0.0765 | P4: =vanderWaalspF($B$12,$H$10,$I$10,$J$10,$C$4,O4) -> 59.30800971 | Q4: Schritte= | R4: 20 | S4: 20 | T4: =T3+($R$3-$R$2)/$R$4 -> 0.0565 | U4: =SRKpF($B$12,$H$10,$I$10,$J$10,$K$10,$D$4,T4) -> 38.99136934
A5: p [bar] | B5: 2 | C5: =vanderWaalspF(K17,H5,I5,J5,B4,B9) -> 1.996216245 | F5: N2 | G5: 28 | H5: 126.2 | I5: 33.9388 | J5: 0.0886 | K5: 0.045 | L5: =I5*J5/$B$12/H5 -> 0.2865650492 | M5: =($M$3-L5)/L5*100 -> 30.86034081 | O5: =O4+($R$3-$R$2)/$R$4 -> 0.083 | P5: 42.63323928 | T5: =T4+($R$3-$R$2)/$R$4 -> 0.063 | U5: 7.555003145
A6: M [g/mol] | B6: 28 | F6: Luft | G6: 28.951 | H6: 132.45 | I6: 37.74 | J6: 0.0915 | K6: -0.0078798 | L6: 0.3135619802 | M6: 19.59358076 | O6: 0.0895 | P6: 37.06371859 | T6: 0.0695 | U6: -0.7487532244
A7: n [mol] | B7: 1 | F7: H2O | G7: 18 | H7: 647.35 | I7: 221.182 | J7: 0.063494 | K7: 0.348 | L7: 0.2609129813 | M7: 43.72607991 | O7: 0.096 | P7: 36.44788821 | T7: 0.076 | U7: 0.1763457503
A8: m [g] | B8: =B7*B6 -> 28 | F8: He | G8: 4 | H8: 5.19999 | I8: 2.275 | J8: 0.0573 | K8: -0.39 | L8: 0.3014990067 | M8: 24.37851922 | O8: 0.1025 | P8: 37.98070113 | T8: 0.0825 | U8: 4.670349797
A9: V [l] | B9: =B7*B12*B4/B5 -> 11.35582884 | C9: =RealVolumenF(B12,H5,I5,J5,B4,B5,B9) -> 11.33430446 | D9: =vanderWaalsCarF(B12,H5,I5,D4,B5) -> 11.4952022 | F9: Ar | G9: 39.948 | H9: 150.86 | I9: 48.9805 | J9: 0.0746 | K9: 0 | L9: 0.2912998825 | M9: 28.73331662 | O9: 0.109 | P9: 40.33122399 | T9: 0.089 | U9: 10.28901329
A10: Rho [g/l] | B10: =B8/B9 -> 2.465694085 | F10: CO2 | G10: 44 | H10: 304.2 | I10: 73.8152 | J10: 0.092863 | K10: 0.231 | L10: 0.2710077259 | M10: 38.37243891 | O10: 0.1155 | P10: 42.85983504 | T10: 0.0955 | U10: 15.95804409
A11: z | B11: =B5*B9/(B12*B4) -> 1 | C11: =ZFaktorF(B12,H5,I5,J5,B4,B9) -> 0.9981081226 | D11: =SRKzF(B12,H5,I5,J5,K5,B4,B9) -> 0.9994218885 | F11: NH3 | G11: 17 | H11: 405.65 | I11: 112.785 | J11: 0.07247 | K11: 0.252 | L11: 0.242331849 | M11: 54.74647741 | O11: 0.122 | P11: 45.26513583 | T11: 0.102 | U11: 21.22069282
A12: R [bar.l/mol.K] | B12: 0.0831472 | L12: =SUM(L4:L11) -> 2.256565197 | O12: 0.1285 | P12: 47.4154841 | T12: 0.1085 | U12: 25.90748931
O13: 0.135 | P13: 49.26520103 | T13: 0.115 | U13: 29.983473
F14: Gemischberechnung | G14: Vol% | H14: M [g/mol] | K14: Gaskonstante R | O14: 0.1415 | P14: 50.8116372 | T14: 0.1215 | U14: 33.47497993
F15: O2 | G15: 21 | H15: =VLOOKUP(F15,F$4:G$12,2,FALSE) -> 32 | I15: =G15*H15/100 -> 6.72 | K15: 0.08206 | L15: atm.l/mol.K | O15: 0.148 | P15: 52.07275334 | T15: 0.128 | U15: 36.43385389
F16: N2 | G16: 78 | H16: =VLOOKUP(F16,F$4:G$12,2,FALSE) -> 28 | I16: =G16*H16/100 -> 21.84 | K16: 82.06 | L16: atm.cm3/mol.K | O16: 0.1545 | P16: 53.0753228 | T16: 0.1345 | U16: 38.91990489
F17: Ar | G17: 0.99 | H17: =VLOOKUP(F17,F$4:G$12,2,FALSE) -> 39.948 | I17: 0.3954852 | K17: 0.0831472 | L17: bar.l/mol.K | O17: 0.161 | P17: 53.84876063 | T17: 0.141 | U17: 40.99248853
F18: CO2 | G18: 0.01 | H18: =VLOOKUP(F18,F$4:G$12,2,FALSE) -> 44 | I18: 0.0044 | K18: 83.1472 | L18: bar.cm3/mol.K | O18: 0.1675 | P18: 54.42197918 | T18: 0.1475 | U18: 42.70670851
G19: =SUM(G15:G18) -> 100 | I19: =SUM(I15:I18) -> 28.9598852 | K19: 8.314462 | L19: J/mol.K | O19: 0.174 | P19: 54.82188351 | T19: 0.154 | U19: 44.11196572
O20: 0.1805 | P20: 55.07275336 | T20: 0.1605 | U20: 45.25167996
F21: Volumen nach van der Waals für CO2 | J21: k= | K21: 1,380658*10^-23 | L21: J/K | O21: 0.187 | P21: 55.19609684 | T21: 0.167 | U21: 46.16357213
F22: Druck | G22: 55 | H22: Vergleich | J22: NL= | K22: 6,022141*10^23 | L22: mol-1 | O22: 0.1935 | P22: 55.21074592 | T22: 0.1735 | U22: 46.88018759
F23: Vgas [l/mol] | G23: =vanderWaalsCarF(B12,H10,I10,C4,G22) -> 0.2057065347 | H23: =RealVolumenF(B12,H10,I10,J10,C4,G22,1) -> 0.2058063228 | J23: daraus R | K23: 8.314517 | L23: J/K.mol | O23: 0.2 | P23: 55.13306638 | T23: 0.18 | U23: 47.42949603
F24: Vflüssig [l/mol] | G24: 0.07767435313 | J24: R= | K24: 0.08314517 | L24: bar.m3/mol.K | O24: 0.2065 | P24: 54.97721187 | T24: 0.1865 | U24: 47.83548535
F25: V2 | G25: 0.1782109127 | O25: 0.213 | P25: 54.75538486 | T25: 0.193 | U25: 48.1187116
F26: Flüssigdichte [g/l] | G26: =G10/G24 -> 566.4675433 | J26: PV=nRT | K26: V [m3], P [Pa] | O26: 0.2195 | P26: 54.47808492 | T26: 0.1995 | U26: 48.29678969
F27: Flüssigdichte SRK [g/l] | G27: =G10/T4 -> 778.7610619 | K27: 1 Pa = 100000 bar | O27: 0.226 | P27: 54.15433562 | T27: 0.206 | U27: 48.38482223
O28: 0.2325 | P28: 53.79188675 | T28: 0.2125 | U28: 48.39576919
O29: 0.239 | P29: 53.39739184 | T29: 0.219 | U29: 48.34076416
O30: 0.2455 | P30: 52.97656242 | T30: 0.2255 | U30: 48.22938351
O31: 0.252 | P31: 52.53430116 | T31: 0.232 | U31: 48.06987488
O32: 0.2585 | P32: 52.07481635 | T32: 0.2385 | U32: 47.86935084
O33: 0.265 | P33: 51.60172007 | T33: 0.245 | U33: 47.63395304
O34: =O33+($R$3-$R$2)/$R$4 -> 0.2715 | P34: 51.11811218 | T34: 0.2515 | U34: 47.36899128
O35: 0.278 | P35: 50.62665227 | T35: 0.258 | U35: 47.07906158
A36: T[K] Zustandsgleichung | O36: 0.2845 | P36: 50.12962111 | T36: 0.2645 | U36: 46.76814639
O37: 0.291 | P37: 49.62897333 | T37: 0.271 | U37: 46.4396999
O38: 0.2975 | P38: 49.12638243 | T38: 0.2775 | U38: 46.09672065
O39: 0.304 | P39: 48.62327947 | T39: 0.284 | U39: 45.74181353
O40: 0.3105 | P40: 48.12088613 | T40: 0.2905 | U40: 45.37724281
O41: 0.317 | P41: 47.62024322 | T41: 0.297 | U41: =SRKpF($B$12,$H$10,$I$10,$J$10,$K$10,$D$4,T41) -> 45.00497749
O42: 0.3235 | P42: 47.1222351 | T42: 0.3035 | U42: 44.62673031
O43: 0.33 | P43: 46.62761078 | T43: 0.31 | U43: 44.24399117
O44: 0.3365 | P44: 46.13700204 | T44: 0.3165 | U44: 43.85805603
O45: 0.343 | P45: 45.65093908 | T45: 0.323 | U45: 43.47005174
O46: 0.3495 | P46: 45.16986413 | T46: =T45+($R$3-$R$2)/$R$4 -> 0.3295 | U46: 43.08095754
O47: 0.356 | P47: 44.69414307 | T47: 0.336 | U47: 42.69162373
O48: 0.3625 | P48: 44.22407561 | T48: 0.3425 | U48: 42.30278775
O49: 0.369 | P49: 43.75990412 | T49: 0.349 | U49: 41.91508822
O50: 0.3755 | P50: 43.30182117 | T50: 0.3555 | U50: 41.52907714
O51: 0.382 | P51: 42.84997626 | T51: 0.362 | U51: 41.14523055
O52: 0.3885 | P52: 42.40448154 | T52: 0.3685 | U52: 40.76395772
O53: 0.395 | P53: 41.96541682 | T53: 0.375 | U53: 40.38560935
O54: 0.4015 | P54: 41.53283397 | T54: 0.3815 | U54: 40.01048459
O55: 0.408 | P55: 41.10676074 | T55: 0.388 | U55: 39.63883729
O56: 0.4145 | P56: 40.68720406 | T56: 0.3945 | U56: 39.2708814
O57: 0.421 | P57: 40.27415299 | T57: 0.401 | U57: 38.90679583
O58: 0.4275 | P58: 39.86758121 | T58: 0.4075 | U58: 38.54672859
O59: 0.434 | P59: 39.46744926 | T59: 0.414 | U59: 38.19080053
O60: 0.4405 | P60: 39.07370649 | T60: 0.4205 | U60: 37.83910858
O61: 0.447 | P61: 38.68629277 | T61: 0.427 | U61: 37.49172864
O62: 0.4535 | P62: 38.30513992 | T62: 0.4335 | U62: 37.14871811
O63: =O62+($R$3-$R$2)/$R$4 -> 0.46 | P63: 37.93017306 | T63: 0.44 | U63: 36.81011816
O64: 0.4665 | P64: 37.56131171 | T64: 0.4465 | U64: 36.47595568
O65: 0.473 | P65: 37.19847082 | T65: 0.453 | U65: 36.14624504
O66: 0.4795 | P66: 36.84156161 | T66: 0.4595 | U66: 35.82098965
O67: 0.486 | P67: 36.49049232 | T67: 0.466 | U67: 35.50018336
O68: 0.4925 | P68: =vanderWaalspF($B$12,$H$10,$I$10,$J$10,$C$4,O68) -> 36.1451689 | T68: 0.4725 | U68: =SRKpF($B$12,$H$10,$I$10,$J$10,$K$10,$D$4,T68) -> 35.18381163
O69: =O68+($R$3-$R$2)/$R$4 -> 0.499 | P69: 35.80549556 | T69: =T68+($R$3-$R$2)/$R$4 -> 0.479 | U69: 34.87185264
O70: 0.5055 | P70: 35.4713753 | T70: 0.4855 | U70: 34.56427826
O71: 0.512 | P71: 35.14271033 | T71: 0.492 | U71: =SRKpF($B$12,$H$10,$I$10,$J$10,$K$10,$D$4,T71) -> 34.26105486
O72: 0.5185 | P72: 34.81940243 | T72: 0.4985 | U72: =SRKpF($B$12,$H$10,$I$10,$J$10,$K$10,$D$4,T72) -> 33.96214411
O73: 0.525 | P73: 34.50135333 | T73: 0.505 | U73: 33.66750362
O74: 0.5315 | P74: 34.18846495 | T74: 0.5115 | U74: 33.37708756
O75: 0.538 | P75: 33.88063966 | T75: 0.518 | U75: 33.09084714
O76: 0.5445 | P76: 33.5777805 | T76: 0.5245 | U76: 32.80873114
O77: 0.551 | P77: 33.27979135 | T77: 0.531 | U77: 32.53068628
O78: 0.5575 | P78: 32.98657709 | T78: 0.5375 | U78: 32.2566576
O79: 0.564 | P79: 32.6980437 | T79: 0.544 | U79: 31.98658881
O80: =O79+($R$3-$R$2)/$R$4 -> 0.5705 | P80: 32.41409843 | T80: 0.5505 | U80: 31.72042254
O81: 0.577 | P81: 32.13464984 | T81: 0.557 | U81: 31.45810061
O82: 0.5835 | P82: 31.85960789 | T82: 0.5635 | U82: 31.19956429
O83: 0.59 | P83: 31.58888401 | T83: 0.57 | U83: 30.94475443
O84: 0.5965 | P84: 31.32239113 | T84: 0.5765 | U84: 30.69361171
O85: 0.603 | P85: 31.06004373 | T85: 0.583 | U85: 30.44607675
O86: 0.6095 | P86: 30.80175788 | T86: =T85+($R$3-$R$2)/$R$4 -> 0.5895 | U86: 30.20209025
O87: 0.616 | P87: 30.54745123 | T87: =T86+($R$3-$R$2)/$R$4 -> 0.596 | U87: 29.96159315
O88: 0.6225 | P88: 30.29704305 | T88: 0.6025 | U88: 29.72452665
O89: 0.629 | P89: 30.05045421 | T89: 0.609 | U89: 29.49083241
O90: 0.6355 | P90: 29.80760721 | T90: 0.6155 | U90: 29.26045254
O91: 0.642 | P91: 29.56842616 | T91: 0.622 | U91: 29.03332971
O92: 0.6485 | P92: 29.33283677 | T92: 0.6285 | U92: 28.8094072
O93: 0.655 | P93: 29.10076633 | T93: 0.635 | U93: 28.58862897
O94: 0.6615 | P94: 28.87214372 | T94: 0.6415 | U94: 28.37093965
O95: 0.668 | P95: 28.64689938 | T95: 0.648 | U95: 28.15628465
O96: 0.6745 | P96: 28.42496529 | T96: 0.6545 | U96: 27.94461012
O97: 0.681 | P97: 28.20627492 | T97: 0.661 | U97: 27.73586303
O98: 0.6875 | P98: 27.99076327 | T98: 0.6675 | U98: 27.52999116
O99: 0.694 | P99: 27.7783668 | T99: 0.674 | U99: 27.32694312
O100: 0.7005 | P100: 27.5690234 | T100: 0.6805 | U100: 27.12666835
O101: 0.707 | P101: 27.36267238 | T101: 0.687 | U101: =SRKpF($B$12,$H$10,$I$10,$J$10,$K$10,$D$4,T101) -> 26.92911718
O102: 0.7135 | P102: 27.15925446 | T102: 0.6935 | U102: =SRKpF($B$12,$H$10,$I$10,$J$10,$K$10,$D$4,T102) -> 26.73424076
O103: 0.72 | P103: 26.9587117 | T103: 0.7 | U103: 26.54199113
O104: 0.7265 | P104: 26.76098752 | T104: 0.7065 | U104: 26.35232118
O105: 0.733 | P105: 26.56602662 | T105: 0.713 | U105: 26.16518466
O106: 0.7395 | P106: 26.37377501 | T106: 0.7195 | U106: 25.98053619
O107: 0.746 | P107: 26.18417991 | T107: 0.726 | U107: 25.79833122
O108: 0.7525 | P108: 25.99718981 | T108: 0.7325 | U108: 25.61852607
O109: 0.759 | P109: 25.81275437 | T109: 0.739 | U109: 25.44107789

Sheet Gauss
A1: Lösen eines Gleichungssystem nach Gauß-Jordan
A3: Zahl der Gleichungen N | C3: 3
A5: Matrix | B5: j = 1 | C5: 2 | D5: 3 | E5: 4 (N+1) | G5: VBA | H5: Excel (MMULT(MINV))
A6: i = 1 | B6: 4 | C6: 7 | D6: 2 | E6: 24 | G6: =E89 -> 0.5096153846 | H6: =MMULT(MINVERSE(B6:D8),E6:E8) -> 0.5096153846
A7: 2 | B7: 6 | C7: 3 | D7: 4 | E7: 18 | G7: =E90 -> 2.634615385 | H7: 2.634615385
A8: 3 | B8: 5 | C8: -2 | D8: -3 | E8: -8 | G8: 1.759615385 | H8: 1.759615385
A10: Schrittweises Lösen einer Matrix | B10: Eingangsdaten
B11: 4 | C11: 7 | D11: 2 | E11: 24 | G11: MINV | J11: MMULT
B12: 6 | C12: 3 | D12: 4 | E12: 18 | G12: =MINVERSE(B6:D8) -> -0.004807692308 | H12: 0.08173076923 | I12: 0.1057692308 | J12: =MMULT(G12:I14,E6:E8) -> 0.5096153846
B13: 5 | C13: -2 | D13: -3 | E13: -8 | G13: 0.1826923077 | H13: -0.1057692308 | I13: -0.01923076923 | J13: 2.634615385
G14: -0.1298076923 | H14: 0.2067307692 | I14: -0.1442307692 | J14: 1.759615385
B16: Vertauschen | C16: Zeile i1 = 1 Zeile i2 = 1
B17: 4 | C17: 7 | D17: 2 | E17: 24 | G17: VBA
B18: 6 | C18: 3 | D18: 4 | E18: 18 | G18: -0.004807692308 | H18: 0.1826923077 | I18: -0.1298076923 | J18: 0.5096153846
B19: 5 | C19: -2 | D19: -3 | E19: -8 | G19: 0.08173076923 | H19: -0.1057692308 | I19: 0.2067307692 | J19: 2.634615385
G20: 0.1057692308 | H20: -0.01923076923 | I20: -0.1442307692 | J20: 1.759615385
B22: Normieren | C22: Zeile i = 1 Faktor 0,25
B23: 1 | C23: 1.75 | D23: 0.5 | E23: 6
B24: 6 | C24: 3 | D24: 4 | E24: 18
B25: 5 | C25: -2 | D25: -3 | E25: -8
B28: Nullsetzen | C28: Zeile i = 2 Faktor -6
B29: 1 | C29: 1.75 | D29: 0.5 | E29: 6
B30: 0 | C30: -7.5 | D30: 1 | E30: -18
B31: 5 | C31: -2 | D31: -3 | E31: -8
B34: Nullsetzen | C34: Zeile i = 3 Faktor -5
B35: 1 | C35: 1.75 | D35: 0.5 | E35: 6
B36: 0 | C36: -7.5 | D36: 1 | E36: -18
B37: 0 | C37: -10.75 | D37: -5.5 | E37: -38
B40: Vertauschen | C40: Zeile i1 = 2 Zeile i2 = 2
B41: 1 | C41: 1.75 | D41: 0.5 | E41: 6
B42: 0 | C42: -7.5 | D42: 1 | E42: -18
B43: 0 | C43: -10.75 | D43: -5.5 | E43: -38
B46: Normieren | C46: Zeile i = 2 Faktor -0,133333333333333
B47: 1 | C47: 1.75 | D47: 0.5 | E47: 6
B48: 0 | C48: 1 | D48: -0.1333333333 | E48: 2.4
B49: 0 | C49: -10.75 | D49: -5.5 | E49: -38
B52: Nullsetzen | C52: Zeile i = 1 Faktor -1,75
B53: 1 | C53: 0 | D53: 0.7333333333 | E53: 1.8
B54: 0 | C54: 1 | D54: -0.1333333333 | E54: 2.4
B55: 0 | C55: -10.75 | D55: -5.5 | E55: -38
B58: Nullsetzen | C58: Zeile i = 3 Faktor 10,75
B59: 1 | C59: 0 | D59: 0.7333333333 | E59: 1.8
B60: 0 | C60: 1 | D60: -0.1333333333 | E60: 2.4
B61: 0 | C61: 0 | D61: -6.933333333 | E61: -12.2
B64: Vertauschen | C64: Zeile i1 = 3 Zeile i2 = 3
B65: 1 | C65: 0 | D65: 0.7333333333 | E65: 1.8
B66: 0 | C66: 1 | D66: -0.1333333333 | E66: 2.4
B67: 0 | C67: 0 | D67: -6.933333333 | E67: -12.2
B70: Normieren | C70: Zeile i = 3 Faktor -0,144230769230769
B71: 1 | C71: 0 | D71: 0.7333333333 | E71: 1.8
B72: 0 | C72: 1 | D72: -0.1333333333 | E72: 2.4
B73: 0 | C73: 0 | D73: 1 | E73: 1.759615385
B76: Nullsetzen | C76: Zeile i = 1 Faktor -0,733333333333333
B77: 1 | C77: 0 | D77: 0 | E77: 0.5096153846
B78: 0 | C78: 1 | D78: -0.1333333333 | E78: 2.4
B79: 0 | C79: 0 | D79: 1 | E79: 1.759615385
B82: Nullsetzen | C82: Zeile i = 2 Faktor 0,133333333333333
B83: 1 | C83: 0 | D83: 0 | E83: 0.5096153846
B84: 0 | C84: 1 | D84: 0 | E84: 2.634615385
B85: 0 | C85: 0 | D85: 1 | E85: 1.759615385
B88: Ergebnis
B89: 1 | C89: 0 | D89: 0 | E89: 0.5096153846
B90: 0 | C90: 1 | D90: 0 | E90: 2.634615385
B91: 0 | C91: 0 | D91: 1 | E91: 1.759615385

Sheet Gleichgewicht
A1: Chemisches Gleichgewicht nach van't Hoff und Gibbs | J1: 10 | P1: 15 | U1: 20 | Z1: 25
A3: Esterreaktion | B3: Start | C3: Ergebnis | E3: Methanisierungsreaktion + Shift | F3: Start | G3: Ergebnis
B4: mol(0) | C4: mol | F4: mol(0) | G4: n | H4: x | I4: Pi | K4: Startwerte | O4: x1 | P4: f1(0) | Q4: f2(0) | S4: x2 | T4: K1 | U4: K2
A5: Ethanol | B5: 1 | C5: =GleichgewichtF($B$5,$B$6,$B$7,$B$8,$B$9,$B$10,1) -> 0.1539879275 | E5: CO | F5: 1 | G5: =MethanisierungF(F5,F6,F7,F8,F9,F10,F11,F12,F13,F14,F15,F18,1) -> 0.01585091552 | H5: =G5/SUM($F$5:$G$8) -> 0.002540825088 | I5: =H5*$F$13 -> 0.01270412544 | K5: x1max | L5: =Startwertex1x2(F5,F6,F7,F8,F9,1) -> 1 | O5: 0.4 | P5: -9.99003861 | Q5: -14.53770833 | S5: 0.19 | T5: -4.701610961 | U5: -11.49762572
A6: Essigsäure | B6: 1 | C6: =GleichgewichtF($B$5,$B$6,$B$7,$B$8,$B$9,$B$10,2) -> 0.1539879275 | E6: H2 | F6: 3 | G6: =MethanisierungF(F5,F6,F7,F8,F9,F10,F11,F12,F13,F14,F15,F18,2) -> 0.8747111131 | H6: =G6/SUM($F$5:$G$8) -> 0.1402119605 | I6: =H6*$F$13 -> 0.7010598027 | K6: x1min | L6: =Startwertex1x2(F5,F6,F7,F8,F9,2) -> 0 | O6: 0.42 | P6: -9.98701084 | Q6: -14.94075816 | S6: 0.192 | T6: -4.562497033 | U6: -11.15741183 | KM6: 0.56
A7: Ethylacetat | B7: 0 | C7: =GleichgewichtF($B$5,$B$6,$B$7,$B$8,$B$9,$B$10,3) -> 0.8460120725 | E7: CH4 | F7: 0 | G7: =MethanisierungF(F5,F6,F7,F8,F9,F10,F11,F12,F13,F14,F15,F18,3) -> 0.7773594928 | H7: 0.1246069667 | I7: 0.6230348334 | K7: x2max | L7: =Startwertex1x2(G5,G6,G7,G8,G9,3) -> 0.01585091552 | O7: 0.44 | P7: -9.983159077 | Q7: -15.2633573 | S7: 0.194 | T7: -4.414144487 | U7: -10.79462736
A8: Wasser | B8: 0 | C8: =GleichgewichtF($B$5,$B$6,$B$7,$B$8,$B$9,$B$10,4) -> 0.8460120725 | E8: H2O | F8: 0 | G8: =MethanisierungF(F5,F6,F7,F8,F9,F10,F11,F12,F13,F14,F15,F18,4) -> 0.5705699012 | H8: 0.09145959536 | I8: 0.4572979768 | K8: x2min | L8: =Startwertex1x2(G5,G6,G7,G8,G9,4) -> -0.2067895916 | O8: 0.46 | P8: -9.978242115 | Q8: -15.52269176 | S8: 0.196 | T8: -4.255619285 | U8: -10.40698597
A9: K (298K) | B9: 4 | C9: =GleichgewichtF($B$5,$B$6,$B$7,$B$8,$B$9,$B$10,5) -> 30.18420715 | E9: CO2 | F9: 0 | G9: =MethanisierungF(F5,F6,F7,F8,F9,F10,F11,F12,F13,F14,F15,F18,5) -> 0.2067895916 | H9: 0.03314737132 | I9: 0.1657368566 | K9: x1 | L9: =(L5+L6)/2 -> 0.5 | O9: 0.48 | P9: -9.971935651 | Q9: -15.73047082 | S9: 0.198 | T9: -4.085856931 | U9: -9.991881965
A10: T [°C] | B10: 80 | E10: K1 (298K) | F10: 10 | G10: =MethanisierungF(F5,F6,F7,F8,F9,F10,F11,F12,F13,F14,F15,F18,6) -> 10 | K10: x2 | L10: =(L7+L8)/2 -> -0.09546933806 | O10: 0.5 | P10: -9.963798 | Q10: -15.89465367 | S10: 0.2 | T10: -3.903638873 | U10: -9.546332545
E11: K2 (298K) | F11: 20 | G11: =MethanisierungF(F5,F6,F7,F8,F9,F10,F11,F12,F13,F14,F15,F18,7) -> 20 | O11: 0.52 | P11: -9.953218799 | Q11: -16.0204564 | S11: 0.202 | T11: -3.707563588 | U11: -9.066907051
E12: T [°C] | F12: 25 | O12: 0.54 | P12: -9.939340555 | Q12: -16.11091164 | S12: 0.204 | T12: -3.496010902 | U12: -8.549639609
E13: P [atm] | F13: 5 | O13: 0.56 | P13: -9.920935598 | Q13: -16.16711007 | S13: 0.206 | T13: -3.267097625 | U13: -7.98992053
E14: x1 | F14: 0.7773594928 | G14: 0.7773594928 | O14: 0.58 | P14: -9.896207362 | Q14: -16.18816365 | S14: 0.208 | T14: -3.018621917 | U14: -7.382360147
E15: x2 | F15: 0.2067895916 | G15: 0.2067895916 | J15: -dx | K15: xdirekt | L15: f(o) | O15: 0.6 | P15: -9.862458313 | Q15: -16.17085161 | S15: 0.21 | T15: -2.747992921 | U15: -6.720616555
E16: f1(0) | G16: =MethanisierungF(F5,F6,F7,F8,F9,F10,F11,F12,F13,F14,F15,F18,8) -> -1.953992523e-14 | H16: =G19 -> 799.0464274 | I16: =G21 -> 618.1937268 | J16: =MMULT(MINVERSE(H16:I17),G16:G17) -> -3.192085347e-17 | K16: =F14-J16 -> 0.7773594928 | L16: -1.953992523e-14 | O16: 0.62 | P16: -9.815512116 | Q16: -16.10880421 | S16: 0.212 | T16: -2.45214088 | U16: -5.997175601
E17: f2(0) | G17: =MethanisierungF(F5,F6,F7,F8,F9,F10,F11,F12,F13,F14,F15,F18,9) -> -2.486899575e-14 | H17: =G20 -> 1236.285613 | I17: =G22 -> 1512.172378 | J17: 9.651211962e-18 | K17: =F15-J17 -> 0.2067895916 | L17: -2.486899575e-14 | O17: 0.64 | P17: -9.748657602 | Q17: -15.99088096 | S17: 0.214 | T17: -2.127401128 | U17: -5.20306692
O18: 0.66 | P18: -9.650598341 | Q18: -15.7979559 | S18: 0.216 | T18: -1.769362639 | U18: -4.327493213
E19: df1dx1 | G19: =MethanisierungF(F5,F6,F7,F8,F9,F10,F11,F12,F13,F14,F15,F18,10) -> 799.0464274 | O19: 0.68 | P19: -9.501153393 | Q19: -15.49618597 | S19: 0.218 | T19: -1.372667829 | U19: -3.357340202
E20: df2dx1 | G20: =MethanisierungF(F5,F6,F7,F8,F9,F10,F11,F12,F13,F14,F15,F18,11) -> 1236.285613 | O20: 0.7 | P20: -9.261284332 | Q20: -15.02151783 | S20: 0.22 | T20: -0.9307442687 | U20: -2.276519916
E21: df1dx2 | G21: =MethanisierungF(F5,F6,F7,F8,F9,F10,F11,F12,F13,F14,F15,F18,12) -> 618.1937268 | O21: 0.72 | P21: -8.846502126 | Q21: -14.23871153 | S21: 0.222 | T21: -0.4354396509 | U21: -1.065077173
E22: df2dx2 | G22: =MethanisierungF(F5,F6,F7,F8,F9,F10,F11,F12,F13,F14,F15,F18,13) -> 1512.172378 | O22: 0.74 | P22: -8.039706742 | Q22: -12.80786518 | S22: 0.224 | T22: 0.1234832642 | U22: 0.3020466955
O23: 0.76 | P23: -6.087544049 | Q23: -9.568543079 | S23: 0.226 | T23: 0.7590586931 | U23: 1.856756781
E24: Schritte | F24: 50 | G24: =G16*G16 -> 3.818086781e-28 | O24: 0.78 | P24: 2.376291691 | Q24: 3.670715812 | S24: 0.228 | T24: 1.488143076 | U24: 3.640314188
G25: =G17*G17 -> 6.184669497e-28 | O25: 0.8 | P25: -40.66604261 | Q25: -61.4226302 | S25: 0.23 | T25: 2.332926968 | U25: 5.707036841
G26: =SUM(G24:G25) -> 1.000275628e-27 | O26: 0.82 | P26: -20.04030243 | Q26: -29.40051323 | S26: 0.232 | T26: 3.323226233 | U26: 8.129907835
A27: Gleichgewichtskonstanten | O27: 0.84 | P27: -17.55515029 | Q27: -24.79352721 | S27: 0.234 | T27: 4.500065186 | U27: 11.00934624
D28: vtHoff | O28: 0.86 | P28: -17.1024349 | Q28: -22.97090409 | S28: 0.236 | T28: 5.921489802 | U28: 14.48743664
B29: T[Cel] | C29: T[K] | D29: K1 | O29: 0.88 | P29: -17.52413197 | Q29: -22.00600546 | S29: 0.238 | T29: 7.672417635 | U29: 18.77203967
B30: 100 | C30: =B30+273.15 -> 373.15 | O30: 0.9 | P30: -18.68962566 | Q30: -21.41567114 | S30: 0.24 | T30: 9.882222761 | U30: 24.17983629
B31: 200 | C31: =B31+273.15 -> 473.15 | O31: 0.92 | P31: -20.82880075 | Q31: -21.02171661 | S31: 0.242 | T31: 12.75820951 | U31: 31.21826451
B32: 300 | C32: 573.15
B33: 400 | C33: 673.15
B34: 500 | C34: 773.15
B35: 600 | C35: 873.15
B36: 700 | C36: 973.15
B37: 800 | C37: 1073.15

Sheet Grafik1
A1: 3D Darstellung eines Würfels
A2: Grundkoordinaten | E2: Aktuelle Koordinaten | I2: Drehfunktionen
A3: x | B3: y | C3: z | E3: x' | F3: y' | G3: z' | I3: Drehung der X-Achse
A4: -1 | B4: -1 | C4: -1 | E4: =MMULT(A4:C4,$E$17:$G$19) -> -1.090540737 | F4: -1.032954133 | G4: -0.8623958831 | I4: 20 | J4: =RADIANS(I4) -> 0.3490658504 | V4: =MMULT(A4:C4,I5:K7) -> -1
A5: -1 | B5: 1 | C5: -1 | E5: =MMULT(A5:C5,$E$17:$G$19) -> -1.513482036 | F5: 0.8131078229 | G5: -0.2196082734 | I5: 1 | J5: 0 | K5: 0
A6: 1 | B6: 1 | C6: -1 | E6: =MMULT(A6:C6,$E$17:$G$19) -> 0.2525624067 | F6: 1.455895433 | G6: -0.90364856 | I6: 0 | J6: =COS(J4) -> 0.9396926208 | K6: =SIN(J4) -> 0.3420201433
A7: 1 | B7: -1 | C7: -1 | E7: =MMULT(A7:C7,$E$17:$G$19) -> 0.675503706 | F7: -0.3901665236 | G7: -1.54643617 | I7: 0 | J7: =-SIN(J4) -> -0.3420201433 | K7: =COS(J4) -> 0.9396926208
A8: -1 | B8: -1 | C8: 1 | E8: =MMULT(A8:C8,$E$17:$G$19) -> -0.2525624067 | F8: -1.455895433 | G8: 0.90364856
A9: -1 | B9: 1 | C9: 1 | E9: =MMULT(A9:C9,$E$17:$G$19) -> -0.675503706 | F9: 0.3901665236 | G9: 1.54643617 | I9: Drehung der Y-Achse
A10: 1 | B10: 1 | C10: 1 | E10: =MMULT(A10:C10,$E$17:$G$19) -> 1.090540737 | F10: 1.032954133 | G10: 0.8623958831 | I10: 20 | J10: =RADIANS(I10) -> 0.3490658504
A11: 1 | B11: -1 | C11: 1 | E11: =MMULT(A11:C11,$E$17:$G$19) -> 1.513482036 | F11: -0.8131078229 | G11: 0.2196082734 | I11: =COS(J10) -> 0.9396926208 | J11: 0 | K11: =-SIN(J10) -> -0.3420201433
I12: 0 | J12: 1 | K12: 0
I13: =SIN(J10) -> 0.3420201433 | J13: 0 | K13: =COS(J10) -> 0.9396926208
I15: Drehung der Z-Achse
F16: Kombinatins-Matrix | I16: 20 | J16: =RADIANS(I16) -> 0.3490658504
E17: =MMULT(MMULT(I5:K7,I11:K13),I17:K19) -> 0.8830222216 | F17: 0.3213938048 | G17: -0.3420201433 | I17: =COS(J16) -> 0.9396926208 | J17: =SIN(J16) -> 0.3420201433 | K17: 0
E18: -0.2114706496 | F18: 0.9230309781 | G18: 0.3213938048 | I18: =-SIN(J16) -> -0.3420201433 | J18: =COS(J16) -> 0.9396926208 | K18: 0
E19: 0.4189891652 | F19: -0.2114706496 | G19: 0.8830222216 | I19: 0 | J19: 0 | K19: 1
E21: =E4 -> -1.090540737 | F21: =F4 -> -1.032954133 | G21: =G4 -> -0.8623958831
E22: =E5 -> -1.513482036 | F22: 0.8131078229 | G22: =G5 -> -0.2196082734 | I22: =MMULT(A4:C4,E17:G19) -> -1.090540737 | J22: -1.032954133 | K22: -0.8623958831
E23: 0.2525624067 | F23: 1.455895433 | G23: -0.90364856
E24: 0.675503706 | F24: -0.3901665236 | G24: -1.54643617 | N24: x | O24: Horizontale
E25: =E21 -> -1.090540737 | F25: =F21 -> -1.032954133 | G25: 0.90364856 | N25: y | O25: Vertikale | S25: =J6 -> 0.9396926208
N26: z | O26: Draufsicht | S26: =F4 -> -1.032954133
E27: =E8 -> -0.2525624067 | F27: =F8 -> -1.455895433 | G27: =G8 -> 0.90364856
E28: =E9 -> -0.675503706 | F28: 0.3901665236 | G28: =G9 -> 1.54643617 | N28: Betrachter X = Drehung um die X-Achse
E29: 1.090540737 | F29: 1.032954133 | G29: 0.8623958831 | N29: Betrachter Y = Drehung um die Y-Achse
E30: 1.513482036 | F30: -0.8131078229 | G30: 0.2196082734 | N30: Betrachter Z = Drehung um die Z-Achse
E31: =E27 -> -0.2525624067 | F31: =F27 -> -1.455895433 | G31: 0
N32: Kombinationsmatrix = Multiplikation aller 3 Betrachter
E33: =E21 -> -1.090540737 | F33: =F21 -> -1.032954133 | G33: -0.8623958831
E34: =E27 -> -0.2525624067 | F34: =F27 -> -1.455895433 | G34: 0.90364856
N35: manuelle Berechung der Drehung der X-Achse
E36: =E22 -> -1.513482036 | F36: =F22 -> 0.8131078229 | G36: -0.2196082734 | N36: =E17 -> 0.8830222216 | O36: =F17 -> 0.3213938048 | P36: -0.3420201433 | R36: -1 | T36: =N36*R36+O36*R37+P36*R38 -> -0.8623958831 | U36: x'
E37: =E28 -> -0.675503706 | F37: =F28 -> 0.3901665236 | G37: 1.54643617 | N37: =E18 -> -0.2114706496 | O37: =F18 -> 0.9230309781 | P37: =G18 -> 0.3213938048 | Q37: X | R37: -1 | S37: = | T37: =N38*R36+O38*R37+P38*R38 -> -1.090540737 | U37: y'
N38: 0.4189891652 | O38: -0.2114706496 | P38: 0.8830222216 | R38: -1 | T38: =N37*R36+O37*R37+P37*R38 -> -1.032954133 | U38: z'
E39: =E23 -> 0.2525624067 | F39: =F23 -> 1.455895433 | G39: -0.90364856
E40: =E29 -> 1.090540737 | F40: =F29 -> 1.032954133 | G40: 0.8623958831
E42: =E24 -> 0.675503706 | F42: =F24 -> -0.3901665236 | G42: -1.54643617
E43: =E30 -> 1.513482036 | F43: =F30 -> -0.8131078229 | G43: 0.2196082734

Sheet Halbschritt
A1: Nullstellensuche nach dem Halbschrittverfahren (Zweiersuche, Bisection) + Regula Falsi
A2: Es wird die Wurzel aus 2 berechnet. | D2: Wurzel (2) = | E2: =SQRT(2) -> 1.414213562
A4: Eingabe
A5: Grenzwert A | B5: 1
A6: Grenzwert E | B6: 2
A7: Toleranz EP | B7: 1e-07
A9: Zwischenergebnis
A10: Grenzwert A | B10: 1.414213562 | D10: Y1 | E10: 1.022126828e-09
A11: Grenzwert E | B11: 1.414213753 | D11: Y2 | E11: -5.384575701e-07
A12: Mittelwert M | B12: 1.414213657 | D12: Y3 | E12: -2.68717713e-07
A14: Endergebnis
A15: Mittelwert | B15: 1.41421361
A16: Regula Falsi | B16: 1.414213562
A17: Schrittzahl | B17: 21

Sheet Interpolation

Sheet IntWärme
A1: Instationäre Wärmeleitung eines Quaders
A3: z-Ebene | B3: 5 | C3: ↗ | D3: a= | E3: 1
A4: Intervall | B4: 10 | D4: h= | E4: 1
A5: Zeit | B5: 0.8 | D5: dt= | E5: 0.01
D6: Anzeigen | E6: 1
A7: xy-Matrix
B8: y → | C8: 1 | D8: 2 | E8: 3 | F8: 4 | G8: 5 | H8: 6 | I8: 7 | J8: 8 | K8: 9 | L8: 10 | M8: 11
A9: x ↓ | C9: 10 | D9: 10 | E9: 10 | F9: 10 | G9: 10 | H9: 10 | I9: 10 | J9: 10 | K9: 10 | L9: 10 | M9: 10
A10: 1 | B10: 10 | C10: 29.46160316 | D10: 36.33591461 | E10: 37.71696472 | F10: 37.90591812 | G10: 37.92520905 | H10: 37.92666626 | I10: 37.92521286 | J10: 37.90592957 | K10: 37.71702576 | L10: 36.33614349 | M10: 29.46185112 | N10: 10
A11: 2 | B11: 10 | C11: 36.33591461 | D11: 45.60674286 | E11: 47.46155167 | F11: 47.71419907 | G11: 47.73987961 | H11: 47.74179459 | I11: 47.73987961 | J11: 47.71421051 | K11: 47.4616127 | L11: 45.60697937 | M11: 36.33614349 | N11: 10
A12: 3 | B12: 10 | C12: 37.71696472 | D12: 47.46155167 | E12: 49.40807724 | F12: 49.67278671 | G12: 49.699646 | H12: 49.70165634 | I12: 49.699646 | J12: 49.67278671 | K12: 49.40809631 | L12: 47.4616127 | M12: 37.71702576 | N12: 10
A13: 4 | B13: 10 | C13: 37.90591812 | D13: 47.71418762 | E13: 49.67277145 | F13: 49.93902588 | G13: 49.96603394 | H13: 49.96805191 | I13: 49.96603394 | J13: 49.93902588 | K13: 49.67277527 | L13: 47.71419907 | M13: 37.90592575 | N13: 10
A14: 5 | B14: 10 | C14: 37.92511749 | D14: 47.73974228 | E14: 49.69950104 | F14: 49.96590424 | G14: 49.99291992 | H14: 49.99493408 | I14: 49.99291992 | J14: 49.96590424 | K14: 49.69950104 | L14: 47.73974228 | M14: 37.92511749 | N14: 10
A15: 6 | B15: 10 | C15: 37.92511749 | D15: 47.73974228 | E15: 49.69950104 | F15: 49.96590424 | G15: 49.99291992 | H15: 49.99493408 | I15: 49.99291992 | J15: 49.96590424 | K15: 49.69950104 | L15: 47.73974228 | M15: 37.92511749 | N15: 10
A16: 7 | B16: 10 | C16: 37.90592575 | D16: 47.71419907 | E16: 49.67277527 | F16: 49.93902588 | G16: 49.96603394 | H16: 49.96805191 | I16: 49.96603394 | J16: 49.93902588 | K16: 49.67277527 | L16: 47.71419907 | M16: 37.90592575 | N16: 10
A17: 8 | B17: 10 | C17: 37.71702576 | D17: 47.4616127 | E17: 49.40809631 | F17: 49.67278671 | G17: 49.699646 | H17: 49.70165634 | I17: 49.699646 | J17: 49.67278671 | K17: 49.40809631 | L17: 47.4616127 | M17: 37.71702576 | N17: 10
A18: 9 | B18: 10 | C18: 36.33614349 | D18: 45.60697937 | E18: 47.4616127 | F18: 47.71421051 | G18: 47.73987961 | H18: 47.74179459 | I18: 47.73987961 | J18: 47.71421051 | K18: 47.4616127 | L18: 45.60697937 | M18: 36.33614349 | N18: 10
A19: 10 | B19: 10 | C19: 29.46185112 | D19: 36.33614349 | E19: 37.71702576 | F19: 37.90592957 | G19: 37.92521286 | H19: 37.92666626 | I19: 37.92521286 | J19: 37.90592957 | K19: 37.71702576 | L19: 36.33614349 | M19: 29.46185112 | N19: 10
C20: 10 | D20: 10 | E20: 10 | F20: 10 | G20: 10 | H20: 10 | I20: 10 | J20: 10 | K20: 10 | L20: 10 | M20: 10
B24: Zwischenergebnisse
C25: 41.62449417 | D25: 44.13344879 | E25: 44.22332458 | F25: 44.22518173 | G25: 44.22520477 | H25: 44.22520485 | I25: 44.22520477 | J25: 44.22518173 | K25: 44.22332458 | L25: 44.13344879 | M25: 41.62449417
C26: 44.13344879 | D26: 46.81844566 | E26: 46.91376675 | F26: 46.91571846 | G26: 46.91574215 | H26: 46.91574226 | I26: 46.91574215 | J26: 46.91571846 | K26: 46.91376675 | L26: 46.81844566 | M26: 44.13344879
C27: 44.22332458 | D27: 46.91376675 | E27: 47.00923122 | F27: 47.01118416 | G27: 47.01120785 | H27: 47.01120796 | I27: 47.01120785 | J27: 47.01118416 | K27: 47.00923122 | L27: 46.91376675 | M27: 44.22332458
C28: 44.22518173 | D28: 46.91571846 | E28: 47.01118416 | F28: 47.01312996 | G28: 47.01315716 | H28: 47.01315731 | I28: 47.01315716 | J28: 47.01312996 | K28: 47.01118416 | L28: 46.91571846 | M28: 44.22518173
C29: 44.22520477 | D29: 46.91574215 | E29: 47.01120785 | F29: 47.01315716 | G29: 47.01318085 | H29: 47.01318096 | I29: 47.01318085 | J29: 47.01315716 | K29: 47.01120785 | L29: 46.91574215 | M29: 44.22520477
C30: 44.22520477 | D30: 46.91574215 | E30: 47.01120785 | F30: 47.01315716 | G30: 47.01318085 | H30: 47.01318096 | I30: 47.01318085 | J30: 47.01315716 | K30: 47.01120785 | L30: 46.91574215 | M30: 44.22520477
C31: 44.22518173 | D31: 46.91571846 | E31: 47.01118416 | F31: 47.01312996 | G31: 47.01315716 | H31: 47.01315731 | I31: 47.01315716 | J31: 47.01312996 | K31: 47.01118416 | L31: 46.91571846 | M31: 44.22518173
C32: 44.22332458 | D32: 46.91376675 | E32: 47.00923122 | F32: 47.01118416 | G32: 47.01120785 | H32: 47.01120796 | I32: 47.01120785 | J32: 47.01118416 | K32: 47.00923122 | L32: 46.91376675 | M32: 44.22332458
C33: 44.13344879 | D33: 46.81844566 | E33: 46.91376675 | F33: 46.91571846 | G33: 46.91574215 | H33: 46.91574226 | I33: 46.91574215 | J33: 46.91571846 | K33: 46.91376675 | L33: 46.81844566 | M33: 44.13344879
C34: 41.62449417 | D34: 44.13344879 | E34: 44.22332458 | F34: 44.22518173 | G34: 44.22520477 | H34: 44.22520485 | I34: 44.22520477 | J34: 44.22518173 | K34: 44.22332458 | L34: 44.13344879 | M34: 41.62449417

Sheet Kinetik
A1: Kinetische Reaktionsgleichungen numerisch lösen
A3: kA | B3: 2 | J3: Schritweite | K3: 2
A4: kB | B4: 5
A5: deltat | B5: 0.01
A6: CA0 | B6: 1
A7: CB0 | B7: 0
A8: CC0 | B8: 0
B9: Euler | J9: Runge-Kutta
A10: t | B10: CA | C10: CB | D10: CC | E10: ΔCA | F10: ΔCB | G10: ΔCC | H10: Bilanz | J10: CA | K10: CB | L10: CC | M10: Bilanz
A11: 0 | B11: =B6 -> 1 | C11: =B7 -> 0 | D11: =B8 -> 0 | E11: =-$B$3*B11*$B$5 -> -0.02 | F11: =-E11-G11 -> 0.02 | G11: =$B$4*C11*$B$5 -> 0 | H11: =B11+C11+D11 -> 1 | J11: =B6 -> 1 | K11: =B7 -> 0 | L11: =B8 -> 0 | M11: =SUM(J11:L11) -> 1
A12: =A11+$B$5 -> 0.01 | B12: =B11+E11 -> 0.98 | C12: 0.02 | D12: 0 | E12: =-$B$3*B12*$B$5 -> -0.0196 | F12: =-E12-G12 -> 0.0186 | G12: =$B$4*C12*$B$5 -> 0.001 | H12: =B12+C12+D12 -> 1 | J12: =RKKinetikF($A$11,$A$12,J11,K11,L11,$K$3,$B$3,$B$4,1) -> 0.985 | K12: =RKKinetikF($A$11,$A$12,J11,K11,L11,$K$3,$B$3,$B$4,2) -> 0.015 | L12: =RKKinetikF($A$11,$A$12,J11,K11,L11,$K$3,$B$3,$B$4,3) -> 0 | M12: =SUM(J12:L12) -> 1
A13: =A12+$B$5 -> 0.02 | B13: 0.9604 | C13: 0.0386 | D13: 0.001 | E13: =-$B$3*B13*$B$5 -> -0.019208 | F13: 0.017278 | G13: =$B$4*C13*$B$5 -> 0.00193 | H13: 1 | J13: =RKKinetikF($A$11,$A$12,J12,K12,L12,$K$3,$B$3,$B$4,1) -> 0.970225 | K13: =RKKinetikF($A$11,$A$12,J12,K12,L12,$K$3,$B$3,$B$4,2) -> 0.0292125 | L13: =RKKinetikF($A$11,$A$12,J12,K12,L12,$K$3,$B$3,$B$4,3) -> 0.0005625 | M13: 1
A14: 0.03 | B14: 0.941192 | C14: 0.055878 | D14: 0.00293 | E14: =-$B$3*B14*$B$5 -> -0.01882384 | F14: 0.01602994 | G14: =$B$4*C14*$B$5 -> 0.0027939 | H14: 1 | J14: 0.955671625 | K14: 0.04267040625 | L14: =RKKinetikF($A$11,$A$12,J13,K13,L13,$K$3,$B$3,$B$4,3) -> 0.00165796875 | M14: 1
A15: 0.04 | B15: 0.92236816 | C15: 0.07190794 | D15: 0.0057239 | E15: -0.0184473632 | F15: 0.0148519662 | G15: 0.003595397 | H15: 1 | J15: 0.9413365506 | K15: 0.05540534039 | L15: 0.003258108984 | M15: 1
A16: 0.05 | B16: 0.9039207968 | C16: 0.0867599062 | D16: 0.009319297 | E16: -0.01807841594 | F16: 0.01374042063 | G16: 0.00433799531 | H16: 1 | J16: =RKKinetikF($A$11,$A$12,J15,K15,L15,$K$3,$B$3,$B$4,1) -> 0.9272165024 | K16: =RKKinetikF($A$11,$A$12,J15,K15,L15,$K$3,$B$3,$B$4,2) -> 0.06744768839 | L16: =RKKinetikF($A$11,$A$12,J15,K15,L15,$K$3,$B$3,$B$4,3) -> 0.005335809249 | M16: 1
A17: 0.06 | B17: 0.8858423809 | C17: 0.1005003268 | D17: 0.01365729231 | E17: -0.01771684762 | F17: 0.01269183128 | G17: 0.005025016341 | H17: 1 | J17: 0.9133082548 | K17: 0.07882664761 | L17: 0.007865097563 | M17: 1
A18: 0.07 | B18: 0.8681255332 | C18: 0.1131921581 | D18: 0.01868230865 | E18: -0.01736251066 | F18: 0.01170290276 | G18: 0.005659607905 | H18: 1 | J18: 0.899608631 | K18: 0.08957027214 | L18: 0.01082109685 | M18: 1
A19: 0.08 | B19: 0.8507630226 | C19: 0.1248950609 | D19: 0.02434191656 | E19: -0.01701526045 | F19: 0.01077050741 | G19: 0.006244753043 | H19: 1 | J19: 0.8861145015 | K19: 0.0997055164 | L19: 0.01417998205 | M19: 1
A20: 0.09 | B20: 0.8337477621 | C20: 0.1356655683 | D20: 0.0305866696 | E20: -0.01667495524 | F20: 0.009891676829 | G20: 0.006783278414 | H20: 1 | J20: 0.872822784 | K20: 0.1092582771 | L20: 0.01791893892 | M20: 1
A21: 0.1 | B21: 0.8170728069 | C21: 0.1455572451 | D21: 0.03736994801 | E21: -0.01634145614 | F21: 0.009063593883 | G21: 0.007277862255 | H21: 1 | J21: 0.8597304423 | K21: 0.1182534334 | L21: 0.02201612431 | M21: 1
A22: 0.11 | B22: 0.8007313507 | C22: 0.154620839 | D22: 0.04464781027 | E22: -0.01601462701 | F22: 0.008283585066 | G22: 0.007731041949 | H22: 1 | J22: 0.8468344856 | K22: 0.1267148863 | L22: 0.02645062806 | M22: 1
A23: 0.12 | B23: 0.7847167237 | C23: 0.162904424 | D23: 0.05237885222 | E23: -0.01569433447 | F23: 0.007549113272 | G23: 0.008145221202 | H23: 1 | J23: 0.8341319683 | K23: 0.1346655954 | L23: 0.0312024363 | M23: 1
A24: 0.13 | B24: 0.7690223893 | C24: 0.1704535373 | D24: 0.06052407342 | E24: -0.01538044779 | F24: 0.006857770919 | G24: 0.008522676866 | H24: 1 | J24: 0.8216199888 | K24: 0.1421276151 | L24: 0.03625239613 | M24: 1
A25: 0.14 | B25: 0.7536419415 | C25: 0.1773113082 | D25: 0.06904675029 | E25: -0.01507283883 | F25: 0.006207273418 | G25: 0.008865565412 | H25: 1 | J25: 0.809295689 | K25: 0.1491221293 | L25: 0.04158218169 | M25: 1
A26: 0.15 | B26: 0.7385691026 | C26: 0.1835185817 | D26: 0.0779123157 | E26: -0.01477138205 | F26: 0.00559545297 | G26: 0.009175929083 | H26: 1 | J26: 0.7971562536 | K26: 0.1556694848 | L26: 0.04717426154 | M26: 1
A27: 0.16 | B27: 0.7237977206 | C27: 0.1891140346 | D27: 0.08708824478 | E27: -0.01447595441 | F27: 0.00502025268 | G27: 0.009455701731 | H27: 1 | J27: 0.7851989098 | K27: 0.1617892229 | L27: 0.05301186722 | M27: 1
A28: 0.17 | B28: =B27+E27 -> 0.7093217662 | C28: 0.1941342873 | D28: 0.09654394651 | E28: -0.01418643532 | F28: 0.004479720958 | G28: 0.009706714365 | H28: 1 | J28: 0.7734209262 | K28: 0.1675001107 | L28: 0.05907896308 | M28: 1
A29: 0.18 | B29: 0.6951353309 | C29: 0.1986140083 | D29: 0.1062506609 | E29: -0.01390270662 | F29: 0.003972006204 | G29: 0.009930700413 | H29: 1 | J29: 0.7618196123 | K29: 0.1728201705 | L29: 0.06536021723 | M29: 1
A30: 0.19 | B30: 0.6812326242 | C30: 0.2025860145 | D30: 0.1161813613 | E30: -0.01362465248 | F30: 0.003495351761 | G30: 0.01012930072 | H30: 1 | J30: 0.7503923181 | K30: 0.1777667083 | L30: 0.07184097362 | M30: 1
A31: 0.2 | B31: 0.6676079718 | C31: 0.2060813662 | D31: 0.126310662 | E31: -0.01335215944 | F31: 0.003048091124 | G31: 0.01030406831 | H31: 1 | J31: 0.7391364333 | K31: 0.1823563415 | L31: 0.07850722518 | M31: 1
A32: 0.21 | B32: 0.6542558123 | C32: 0.2091294574 | D32: 0.1366147303 | E32: -0.01308511625 | F32: 0.002628643379 | G32: 0.01045647287 | H32: 1 | J32: 0.7280493868 | K32: 0.1866050252 | L32: 0.08534558799 | M32: 1
A33: 0.22 | B33: 0.6411706961 | C33: 0.2117581007 | D33: 0.1470712032 | E33: -0.01282341392 | F33: 0.002235508885 | G33: 0.01058790504 | H33: 1 | J33: 0.717128646 | K33: 0.1905280775 | L33: 0.09234327643 | M33: 1
A34: 0.23 | B34: 0.6283472822 | C34: 0.2139936096 | D34: 0.1576591082 | E34: -0.01256694564 | F34: =-E34-G34 -> 0.001867265162 | G34: 0.01069968048 | H34: 1 | J34: 0.7063717164 | K34: 0.1941402043 | L34: 0.09948807934 | M34: 1
A35: 0.24 | B35: 0.6157803365 | C35: 0.2158608748 | D35: 0.1683587887 | E35: -0.01231560673 | F35: 0.001522562991 | G35: 0.01079304374 | H35: 1 | J35: 0.6957761406 | K35: 0.1974555224 | L35: 0.106768337 | M35: 1
A36: 0.25 | B36: 0.6034647298 | C36: 0.2173834378 | D36: 0.1791518324 | E36: -0.0120692946 | F36: 0.001200122707 | G36: 0.01086917189 | H36: 1 | J36: 0.6853394985 | K36: 0.2004875824 | L36: 0.1141729191 | M36: 1
A37: 0.26 | B37: 0.5913954352 | C37: 0.2185835605 | D37: 0.1900210043 | E37: -0.0118279087 | F37: 0.0008987306797 | G37: 0.01092917802 | H37: 1 | J37: 0.675059406 | K37: 0.2032493905 | L37: 0.1216912034 | M37: 1
A38: 0.27 | B38: 0.5795675265 | C38: 0.2194822912 | D38: 0.2009501824 | E38: -0.01159135053 | F38: 0.0006172359717 | G38: 0.01097411456 | H38: 1 | J38: 0.6649335149 | K38: 0.2057534295 | L38: 0.1293130556 | M38: 1
A39: 0.28 | B39: 0.567976176 | C39: 0.2200995271 | D39: 0.2119242969 | E39: -0.01135952352 | F39: 0.0003545471625 | G39: 0.01100497636 | H39: 1 | J39: 0.6549595122 | K39: 0.2080116786 | L39: 0.1370288092 | M39: 1
A40: 0.29 | B40: 0.5566166524 | C40: 0.2204540743 | D40: 0.2229292733 | E40: -0.01113233305 | F40: 0.000109629334 | G40: 0.01102270371 | H40: 1 | J40: 0.6451351195 | K40: 0.2100356333 | L40: 0.1448292471 | M40: 1
A41: 0.3 | B41: 0.5454843194 | C41: 0.2205637036 | D41: 0.233951977 | E41: -0.01090968639 | F41: -0.0001184987937 | G41: 0.01102818518 | H41: 1 | J41: =RKKinetikF($A$11,$A$12,J40,K40,L40,$K$3,$B$3,$B$4,1) -> 0.6354580927 | K41: =RKKinetikF($A$11,$A$12,J40,K40,L40,$K$3,$B$3,$B$4,2) -> 0.2118363239 | L41: =RKKinetikF($A$11,$A$12,J40,K40,L40,$K$3,$B$3,$B$4,3) -> 0.1527055834 | M41: 1
A42: 0.31 | B42: 0.534574633 | C42: 0.2204452048 | D42: 0.2449801622 | E42: -0.01069149266 | F42: -0.0003307675817 | G42: 0.01102226024 | H42: 1 | J42: 0.6259262213 | K42: 0.2134243331 | L42: 0.1606494455 | M42: 1
A43: 0.32 | B43: 0.5238831403 | C43: 0.2201144373 | D43: 0.2560024224 | E43: -0.01047766281 | F43: -0.0005280590558 | G43: 0.01100572186 | H43: 1 | J43: 0.616537328 | K43: 0.214809814 | L43: 0.168652858 | M43: 1
A44: 0.33 | B44: =B43+E43 -> 0.5134054775 | C44: 0.2195863782 | D44: 0.2670081443 | E44: -0.01026810955 | F44: -0.0007112093592 | G44: 0.01097931891 | H44: 1 | J44: 0.6072892681 | K44: 0.2160025059 | L44: 0.176708226 | M44: 1
A45: 0.34 | B45: 0.503137368 | C45: 0.2188751688 | D45: 0.2779874632 | E45: -0.01006274736 | F45: -0.0008810110822 | G45: 0.01094375844 | H45: 1 | J45: 0.5981799291 | K45: 0.2170117509 | L45: 0.18480832 | M45: 1
A46: 0.35 | B46: 0.4930746206 | C46: 0.2179941578 | D46: 0.2889312216 | E46: -0.009861492412 | F46: -0.001038215475 | G46: 0.01089970789 | H46: 1 | J46: 0.5892072301 | K46: 0.2178465092 | L46: 0.1929462607 | M46: 1
A47: 0.36 | B47: 0.4832131282 | C47: 0.2169559423 | D47: 0.2998309295 | E47: -0.009664262564 | F47: -0.00118353455 | G47: 0.01084779711 | H47: 1 | J47: 0.5803691217 | K47: 0.2185153735 | L47: 0.2011155048 | M47: 1
A48: 0.37 | B48: 0.4735488656 | C48: 0.2157724077 | D48: 0.3106787266 | E48: -0.009470977313 | F48: -0.001317643074 | G48: 0.01078862039 | H48: 1 | J48: 0.5716635849 | K48: 0.2190265839 | L48: 0.2093098313 | M48: 1
A49: 0.38 | B49: 0.4640778883 | C49: 0.2144547647 | D49: 0.321467347 | E49: -0.009281557767 | F49: -0.001441180466 | G49: 0.01072273823 | H49: 1 | J49: 0.5630886311 | K49: 0.2193880407 | L49: 0.2175233282 | M49: 1
A50: 0.39 | B50: 0.4547963306 | C50: 0.2130135842 | D50: 0.3321900852 | E50: -0.009095926611 | F50: -0.001554752598 | G50: 0.01065067921 | H50: 1 | J50: 0.5546423016 | K50: 0.2196073187 | L50: 0.2257503797 | M50: 1
A51: 0.4 | B51: 0.445700404 | C51: 0.2114588316 | D51: 0.3428407645 | E51: -0.008914008079 | F51: =-E51-G51 -> -0.001658933501 | G51: 0.01057294158 | H51: 1 | J51: 0.5463226671 | K51: 0.2196916788 | L51: 0.2339856541 | M51: 1
A52: 0.41 | B52: 0.4367863959 | C52: 0.2097998981 | D52: 0.353413706 | E52: -0.008735727917 | F52: -0.001754266987 | G52: 0.0104899949 | H52: 1 | J52: 0.5381278271 | K52: 0.2196480808 | L52: 0.2422240921 | M52: 1
A53: 0.42 | B53: 0.428050668 | C53: 0.2080456311 | D53: 0.3639037009 | E53: -0.008561013359 | F53: -0.001841268196 | G53: 0.01040228156 | H53: 1 | J53: 0.5300559097 | K53: 0.2194831952 | L53: 0.2504608951 | M53: 1
A54: 0.43 | B54: 0.4194896546 | C54: 0.2062043629 | D54: 0.3743059825 | E54: -0.008389793092 | F54: -0.001920425053 | G54: 0.01031021815 | H54: 1 | J54: 0.522105071 | K54: 0.219203414 | L54: 0.2586915149 | M54: 1
A55: 0.44 | B55: 0.4110998615 | C55: 0.2042839379 | D55: 0.3846162006 | E55: -0.00822199723 | F55: -0.001992199663 | G55: 0.01021419689 | H55: 1 | J55: 0.514273495 | K55: 0.218814862 | L55: 0.266911643 | M55: 1
A56: 0.45 | B56: 0.4028778643 | C56: 0.2022917382 | D56: 0.3948303975 | E56: -0.008057557285 | F56: -0.002057029624 | G56: 0.01011458691 | H56: 1 | J56: 0.5065593926 | K56: 0.2183234071 | L56: 0.2751172003 | M56: 1
A57: 0.46 | B57: 0.394820307 | C57: 0.2002347086 | D57: 0.4049449844 | E57: -0.00789640614 | F57: -0.002115329289 | G57: 0.01001173543 | H57: 1 | J57: 0.4989610017 | K57: 0.2177346703 | L57: 0.2833043281 | M57: 1
A58: 0.47 | B58: 0.3869239008 | C58: 0.1981193793 | D58: 0.4149567199 | E58: -0.007738478017 | F58: -0.002167490947 | G58: 0.009905968964 | H58: 1 | J58: 0.4914765866 | K58: 0.2170540352 | L58: 0.2914693782 | M58: 1
A59: 0.48 | B59: 0.3791854228 | C59: 0.1959518883 | D59: 0.4248626888 | E59: -0.007583708457 | F59: -0.00221388596 | G59: 0.009797594417 | H59: 1 | J59: 0.4841044378 | K59: 0.2162866576 | L59: 0.2996089045 | M59: 1
A60: 0.49 | B60: =B59+E59 -> 0.3716017144 | C60: 0.1937380024 | D60: 0.4346602833 | E60: -0.007432034287 | F60: -0.002254865831 | G60: 0.009686900119 | H60: 1 | J60: 0.4768428713 | K60: 0.2154374745 | L60: 0.3077196542 | M60: 1
A61: 0.5 | B61: 0.3641696801 | C61: 0.1914831365 | D61: 0.4443471834 | E61: -0.007283393602 | F61: -0.002290763225 | G61: 0.009574156827 | H61: 1 | J61: 0.4696902282 | K61: 0.2145112123 | L61: 0.3157985595 | M61: 1
A62: 0.51 | B62: 0.3568862865 | C62: 0.1891923733 | D62: 0.4539213402 | E62: -0.00713772573 | F62: -0.002321892936 | G62: 0.009459618666 | H62: 1 | J62: 0.4626448748 | K62: 0.2135123953 | L62: 0.3238427299 | M62: 1
A63: 0.52 | B63: 0.3497485608 | C63: 0.1868704804 | D63: 0.4633809589 | E63: -0.006994971215 | F63: -0.002348552804 | G63: 0.009343524019 | H63: 1 | J63: 0.4557052017 | K63: 0.2124453536 | L63: 0.3318494448 | M63: 1
A64: 0.53 | B64: 0.3427535895 | C64: 0.1845219276 | D64: 0.4727244829 | E64: -0.006855071791 | F64: -0.002371024588 | G64: 0.009226096379 | H64: 1 | J64: 0.4488696236 | K64: 0.2113142308 | L64: 0.3398161455 | M64: 1
A65: 0.54 | B65: 0.3358985177 | C65: 0.182150903 | D65: 0.4819505793 | E65: -0.006717970355 | F65: -0.002389574794 | G65: 0.009107545149 | H65: 1 | J65: 0.4421365793 | K65: 0.2101229915 | L65: 0.3477404292 | M65: 1
A66: 0.55 | B66: 0.3291805474 | C66: 0.1797613282 | D66: 0.4910581244 | E66: -0.006583610948 | F66: -0.002404455462 | G66: 0.00898806641 | H66: 1 | J66: 0.4355045306 | K66: 0.208875428 | L66: 0.3556200414 | M66: 1
A67: 0.56 | B67: 0.3225969364 | C67: 0.1773568727 | D67: 0.5000461908 | E67: -0.006451938729 | F67: -0.002415904908 | G67: 0.008867843637 | H67: 1 | J67: 0.4289719626 | K67: 0.2075751675 | L67: 0.3634528699 | M67: 1
A68: 0.57 | B68: 0.3161449977 | C68: 0.1749409678 | D68: 0.5089140345 | E68: -0.006322899954 | F68: =-E68-G68 -> -0.002424148437 | G68: 0.008747048391 | H68: 1 | J68: 0.4225373832 | K68: 0.2062256781 | L68: 0.3712369387 | M68: 1
A69: 0.58 | B69: 0.3098220978 | C69: 0.1725168194 | D69: 0.5176610828 | E69: -0.006196441955 | F69: -0.002429399014 | G69: 0.008625840969 | H69: 1 | J69: 0.4161993224 | K69: 0.2048302759 | L69: 0.3789704016 | M69: 1
A70: 0.59 | B70: 0.3036256558 | C70: 0.1700874204 | D70: 0.5262869238 | E70: -0.006072513116 | F70: -0.002431857902 | G70: 0.008504371019 | H70: 1 | J70: 0.4099563326 | K70: 0.2033921304 | L70: 0.386651537 | M70: 1
A71: 0.6 | B71: 0.2975531427 | C71: 0.1676555625 | D71: 0.5347912948 | E71: -0.005951062854 | F71: -0.00243171527 | G71: 0.008382778124 | H71: 1 | J71: 0.4038069876 | K71: 0.2019142705 | L71: 0.3942787419 | M71: 1
A72: 0.61 | B72: 0.2916020798 | C72: 0.1652238472 | D72: 0.543174073 | E72: -0.005832041597 | F72: -0.002429150763 | G72: 0.00826119236 | H72: 1 | J72: 0.3977498828 | K72: 0.2003995902 | L72: 0.401850527 | M72: 1
A73: 0.62 | B73: 0.2857700382 | C73: 0.1627946964 | D73: 0.5514352653 | E73: -0.005715400765 | F73: -0.002424334057 | G73: 0.008139734822 | H73: 1 | J73: 0.3917836346 | K73: 0.1988508538 | L73: 0.4093655116 | M73: =SUM(J73:L73) -> 1
A74: 0.63 | B74: 0.2800546375 | C74: 0.1603703624 | D74: 0.5595750001 | E74: -0.00560109275 | F74: -0.002417425369 | G74: 0.008018518119 | H74: 1 | J74: 0.38590688 | K74: 0.1972707013 | L74: 0.4168224187 | M74: 1
A75: 0.64 | B75: 0.2744535447 | C75: 0.157952937 | D75: 0.5675935183 | E75: -0.005489070895 | F75: -0.002408575956 | G75: 0.007897646851 | H75: 1 | J75: 0.3801182768 | K75: 0.1956616532 | L75: 0.42422007 | M75: 1
A76: 0.65 | B76: =B75+E75 -> 0.2689644738 | C76: 0.1555443611 | D76: 0.5754911651 | E76: -0.005379289477 | F76: =-E76-G76 -> -0.002397928576 | G76: 0.007777218053 | H76: =B76+C76+D76 -> 1 | J76: 0.3744165027 | K76: 0.1940261154 | L76: 0.431557382 | M76: =SUM(J76:L76) -> 1
A77: =A76+$B$5 -> 0.66 | B77: 0.2635851844 | C77: 0.1531464325 | D77: 0.5832683832 | E77: -0.005271703687 | F77: -0.002385617937 | G77: 0.007657321624 | H77: 1 | J77: 0.3688002551 | K77: 0.1923663836 | L77: 0.4388333613 | M77: 1
A78: 0.67 | B78: 0.2583134807 | C78: 0.1507608145 | D78: 0.5909257048 | E78: =-$B$3*B78*$B$5 -> -0.005166269613 | F78: -0.002371771114 | G78: =$B$4*C78*$B$5 -> 0.007538040727 | H78: 1 | J78: 0.3632682513 | K78: 0.190684648 | L78: 0.4460471007 | M78: 1
A79: 0.68 | B79: 0.2531472111 | C79: 0.1483890434 | D79: 0.5984637455 | E79: -0.005062944221 | F79: -0.00235650795 | G79: 0.007419452171 | H79: 1 | J79: 0.3578192276 | K79: 0.1889829975 | L79: 0.453197775 | M79: 1
A80: 0.69 | B80: 0.2480842668 | C80: 0.1460325355 | D80: 0.6058831977 | E80: -0.004961685337 | F80: -0.002339941437 | G80: 0.007301626774 | H80: 1 | J80: 0.3524519391 | K80: 0.1872634235 | L80: 0.4602846374 | M80: 1
A81: 0.7 | B81: 0.2431225815 | C81: 0.143692594 | D81: 0.6131848245 | E81: -0.00486245163 | F81: -0.002322178072 | G81: 0.007184629702 | H81: 1 | J81: 0.3471651601 | K81: 0.1855278242 | L81: 0.4673070157 | M81: 1
A82: 0.71 | B82: 0.2382601299 | C82: 0.141370416 | D82: 0.6203694542 | E82: -0.004765202597 | F82: -0.002303318201 | G82: 0.007068520798 | H82: 1 | J82: 0.3419576827 | K82: 0.1837780082 | L82: 0.4742643092 | M82: 1
A83: 0.72 | B83: 0.2334949273 | C83: 0.1390670978 | D83: 0.627437975 | E83: -0.004669898545 | F83: -0.002283456343 | G83: 0.006953354888 | H83: 1 | J83: 0.3368283174 | K83: 0.1820156981 | L83: 0.4811559845 | M83: 1
A84: 0.73 | B84: 0.2288250287 | C84: 0.1367836414 | D84: 0.6343913299 | E84: -0.004576500574 | F84: -0.002262681497 | G84: 0.006839182071 | H84: 1 | J84: 0.3317758927 | K84: 0.1802425342 | L84: 0.4879815731 | M84: 1
A85: 0.74 | B85: 0.2242485282 | C85: 0.1345209599 | D85: 0.6412305119 | E85: -0.004484970563 | F85: =-E85-G85 -> -0.002241077433 | G85: 0.006726047996 | H85: 1 | J85: 0.3267992543 | K85: 0.1784600776 | L85: 0.4947406682 | M85: 1
A86: 0.75 | B86: 0.2197635576 | C86: 0.1322798825 | D86: 0.6479565599 | E86: -0.004395271152 | F86: =-E86-G86 -> -0.002218722973 | G86: 0.006613994125 | H86: 1 | J86: 0.3218972654 | K86: 0.1766698135 | L86: 0.5014329211 | M86: 1
A87: 0.76 | B87: 0.2153682864 | C87: 0.1300611595 | D87: 0.654570554 | E87: -0.004307365729 | F87: -0.002195692247 | G87: 0.006503057976 | H87: 1 | J87: 0.3170688065 | K87: 0.1748731544 | L87: 0.5080580391 | M87: 1
A88: 0.77 | B88: 0.2110609207 | C88: 0.1278654673 | D88: 0.661073612 | E88: -0.004221218414 | F88: -0.00217205495 | G88: 0.006393273364 | H88: 1 | J88: 0.3123127744 | K88: 0.1730714433 | L88: 0.5146157824 | M88: 1
A89: 0.78 | B89: 0.2068397023 | C89: 0.1256934123 | D89: 0.6674668854 | E89: -0.004136794046 | F89: -0.00214787657 | G89: 0.006284670616 | H89: 1 | J89: 0.3076280828 | K89: 0.1712659557 | L89: 0.5211059615 | M89: 1
A90: 0.79 | B90: 0.2027029082 | C90: 0.1235455358 | D90: 0.673751556 | E90: -0.004054058165 | F90: -0.002123218623 | G90: 0.006177276788 | H90: 1 | J90: 0.3030136615 | K90: 0.1694579036 | L90: 0.5275284348 | M90: 1
A91: 0.8 | B91: 0.1986488501 | C91: 0.1214223171 | D91: 0.6799288328 | E91: -0.003972977002 | F91: -0.002098138855 | G91: 0.006071115857 | H91: 1 | J91: 0.2984684566 | K91: 0.1676484372 | L91: 0.5338831062 | M91: 1
A92: 0.81 | B92: =B91+E91 -> 0.1946758731 | C92: 0.1193241783 | D92: 0.6859999486 | E92: -0.003893517462 | F92: -0.002072691452 | G92: 0.005966208914 | H92: 1 | J92: 0.2939914297 | K92: 0.1658386476 | L92: 0.5401699226 | M92: 1
A93: 0.82 | B93: 0.1907823556 | C93: 0.1172514868 | D93: 0.6919661576 | E93: -0.003815647112 | F93: -0.002046927229 | G93: 0.005862574341 | H93: 1 | J93: 0.2895815583 | K93: 0.1640295698 | L93: 0.5463888719 | M93: 1
A94: 0.83 | B94: 0.1869667085 | C94: 0.1152045596 | D94: 0.6978287319 | E94: -0.00373933417 | F94: -0.00202089381 | G94: 0.00576022798 | H94: 1 | J94: 0.2852378349 | K94: 0.1622221843 | L94: 0.5525399808 | M94: 1
A95: 0.84 | B95: 0.1832273743 | C95: 0.1131836658 | D95: 0.7035889599 | E95: -0.003664547487 | F95: -0.001994635803 | G95: 0.005659183289 | H95: 1 | J95: 0.2809592674 | K95: 0.1604174199 | L95: 0.5586233127 | M95: 1
A96: 0.85 | B96: 0.1795628268 | C96: 0.11118903 | D96: 0.7092481432 | E96: -0.003591256537 | F96: -0.001968194962 | G96: 0.005559451499 | H96: 1 | J96: 0.2767448784 | K96: 0.1586161557 | L96: 0.5646389659 | M96: 1
A97: 0.86 | B97: 0.1759715703 | C97: 0.109220835 | D97: 0.7148075947 | E97: -0.003519431406 | F97: -0.001941610345 | G97: 0.005461041751 | H97: 1 | J97: 0.2725937052 | K97: 0.156819223 | L97: 0.5705870718 | M97: 1
A98: 0.87 | B98: 0.1724521389 | C98: 0.1072792247 | D98: 0.7202686364 | E98: -0.003449042778 | F98: -0.001914918456 | G98: 0.005363961234 | H98: 1 | J98: 0.2685047996 | K98: 0.1550274077 | L98: 0.5764677926 | M98: 1
A99: 0.88 | B99: 0.1690030961 | C99: 0.1053643062 | D99: 0.7256325977 | E99: -0.003380061923 | F99: -0.001888153388 | G99: 0.005268215311 | H99: 1 | J99: 0.2644772276 | K99: 0.1532414519 | L99: 0.5822813204 | M99: 1
A100: 0.89 | B100: 0.1656230342 | C100: 0.1034761528 | D100: 0.730900813 | E100: -0.003312460684 | F100: -0.001861346957 | G100: 0.005173807642 | H100: 1 | J100: 0.2605100692 | K100: 0.1514620559 | L100: 0.5880278749 | M100: 1
A101: 0.9 | B101: 0.1623105735 | C101: 0.1016148059 | D101: 0.7360746206 | E101: -0.00324621147 | F101: -0.001834528823 | G101: 0.005080740294 | H101: 1 | J101: 0.2566024182 | K101: 0.1496898798 | L101: 0.593707702 | M101: 1
A102: 0.91 | B102: 0.1590643621 | C102: 0.09978027705 | D102: 0.7411553609 | E102: -0.003181287241 | F102: -0.001807726612 | G102: 0.004989013853 | H102: 1 | J102: 0.2527533819 | K102: 0.1479255456 | L102: 0.5993210725 | M102: 1
A103: 0.92 | B103: 0.1558830748 | C103: 0.09797255044 | D103: 0.7461443748 | E103: -0.003117661496 | F103: -0.001780966026 | G103: 0.004898627522 | H103: 1 | J103: 0.2489620812 | K103: 0.1461696384 | L103: 0.6048682804 | M103: 1
A104: 0.93 | B104: 0.1527654133 | C104: 0.09619158441 | D104: 0.7510430023 | E104: -0.003055308266 | F104: -0.001754270954 | G104: 0.004809579221 | H104: 1 | J104: 0.24522765 | K104: 0.1444227082 | L104: 0.6103496419 | M104: 1
A105: 0.94 | B105: 0.149710105 | C105: 0.09443731346 | D105: 0.7558525815 | E105: -0.002994202101 | F105: -0.001727663572 | G105: 0.004721865673 | H105: 1 | J105: =RKKinetikF($A$11,$A$12,J104,K104,L104,$K$3,$B$3,$B$4,1) -> 0.2415492352 | K105: =RKKinetikF($A$11,$A$12,J104,K104,L104,$K$3,$B$3,$B$4,2) -> 0.1426852714 | L105: =RKKinetikF($A$11,$A$12,J104,K104,L104,$K$3,$B$3,$B$4,3) -> 0.6157654934 | M105: 1
A106: 0.95 | B106: 0.1467159029 | C106: 0.09270964989 | D106: 0.7605744472 | E106: -0.002934318059 | F106: -0.001701164435 | G106: 0.004635482494 | H106: 1 | J106: 0.2379259967 | K106: 0.1409578122 | L106: 0.6211161911 | M106: 1
A107: 0.96 | B107: 0.1437815849 | C107: 0.09100848545 | D107: 0.7652099297 | E107: -0.002875631698 | F107: -0.001674792575 | G107: 0.004550424273 | H107: 1 | J107: 0.2343571067 | K107: 0.1392407842 | L107: 0.6264021091 | M107: 1
A108: 0.97 | B108: =B107+E107 -> 0.1409059532 | C108: 0.08933369288 | D108: 0.7697603539 | E108: -0.002818119064 | F108: =-E108-G108 -> -0.00164856558 | G108: 0.004466684644 | H108: 1 | J108: 0.2308417501 | K108: 0.1375346114 | L108: 0.6316236385 | M108: 1
A109: 0.98 | B109: 0.1380878341 | C109: 0.0876851273 | D109: 0.7742270386 | E109: -0.002761756683 | F109: -0.001622499682 | G109: 0.004384256365 | H109: 1 | J109: 0.2273791239 | K109: 0.1358396897 | L109: 0.6367811864 | M109: 1
A110: 0.99 | B110: 0.1353260774 | C110: 0.08606262761 | D110: 0.7786112949 | E110: -0.002706521549 | F110: -0.001596609832 | G110: 0.004303131381 | H110: 1 | J110: 0.223968437 | K110: 0.1341563882 | L110: 0.6418751748 | M110: 1
A111: 1 | B111: 0.1326195559 | C111: 0.08446601778 | D111: 0.7829144263 | E111: -0.002652391118 | F111: -0.001570909771 | G111: 0.004223300889 | H111: 1 | J111: 0.2206089105 | K111: 0.1324850502 | L111: 0.6469060393 | M111: 1

Sheet Kompression
A1: Kompressions und Expansionsvorgänge
B2: Eingabe | D2: Ausgabe | F2: arr Index
A3: Variable | B3: Eingang (1) | C3: Ausgang (2) | D3: Eingang (1) | E3: Ausgang (2)
A4: Druck P [bar] | B4: 1.01325 | C4: 4 | D4: =KompressorF(B4,B5,B6,C4,C5,C6,B8) -> 1.01325 | E4: 4 | F4: 0
A5: Temperatur T [°C] | B5: 20 | C5: 0 | D5: 20 | E5: 160.8340027 | F5: 1
A6: Volumen V [m3] | B6: 1000 | C6: 0 | D6: 1000 | E6: 375.0079232 | F6: 2
A7: Arbeit W [J] | D7: 0 | E7: 121695423.2 | F7: 3
A8: kappa | B8: 1.4
A9: n (Mole) | E9: =MolGasF(B4,B5,B6) -> 41570.92427
D11: W= | E11: =8.31*(E5-B5)/(B8-1)*E9 -> 121629308

Sheet Kubische Gleichung
B1: Lösung einer kubischen Gleichung
B2: Kubische Gleichung: | D2: =IF(AND(F4=0,F5=0,F6=0),"",IF(G6>0,"(Cardanische Formel)","(casus irreducibilis)")&" ") -> (casus irreducibilis) | F2: p | G2: =(3*F5-F4*F4)/9 -> -10.44444444 | I2: =G2*3 -> -31.33333333 | L2: über Zielwertsuche | AG2: =INDEX(AE:AE,MATCH(ROW(),AF:AF,0)) ->  | AH2: 0
B3: ax³ + bx² + cx + d = 0 | C3: a= | D3: 0.05 | F3: q | G3: =(2*F4^3/27-F4*F5/3+F6)/2 -> 7.296296296 | H3: =MIN(5,MAX(H4:H6)) -> 0 | I3: =G3*2 -> 14.59259259 | K3: 0.619561631 | L3: =D3*K3^3+D4*K3^2+D5*K3+D6-D7 -> -2.644347028 | AG3: =INDEX(AE:AE,MATCH(ROW(),AF:AF,0)) ->  | AH3: 0
B4: allgemeine Form der | C4: b= | D4: 0.4 | F4: =D4/D$3 -> 8 | H4: =IF(MOD(F4,1)=0,0,LEN(F4)-FIND(",",F4)) -> 0 | AF4: =(COUNTIF(AE$3:AE4,AE4)=1)*(MAX(AF$2:AF3)+1) -> 0 | AG4: =INDEX(AE:AE,MATCH(ROW(),AF:AF,0)) ->  | AH4: 0
B5: kubischen Gleichung | C5: c= | D5: -0.5 | F5: =D5/D$3 -> -10 | H5: =IF(MOD(F5,1)=0,0,LEN(F5)-FIND(",",F5)) -> 0 | AF5: =(COUNTIF(AE$3:AE5,AE5)=1)*(MAX(AF$2:AF4)+1) -> 0 | AG5: =INDEX(AE:AE,MATCH(ROW(),AF:AF,0)) ->  | AH5: 0
B6: =IF(AND(D7=0,D3=1),"","x³ "&IF(F4<0,"- ","")&IF(F4>0,"+ ","")&IF(F4=0,"",IF(ABS(F4)=1,"x² ",ROUND(ABS(F4),H3)&"x² "))&IF(F5>0,"+ ",IF(F5<0,"- ",""))&IF(ABS(F5)=1,"x ",IF(F5<>0,ROUND(ABS(F5),H3)&"x ",""))&IF(F6>0,"+ ",IF(F6<0,"- ",""))&IF(F6<>0,ROUND(ABS(F6),H3),"")&" = 0") -> x³ + 8x² - 10x - 50 = 0 | C6: d= | D6: -2.5 | F6: =D6/D$3-D7/D$3 -> -50 | G6: =ROUND((G3)^2+(G2)^3,9) -> -1086.111111 | H6: =IF(MOD(F6,1)=0,0,LEN(F6)-FIND(",",F6)) -> 0 | AF6: =(COUNTIF(AE$3:AE6,AE6)=1)*(MAX(AF$2:AF5)+1) -> 0
B7: =IF(B6="","","(Normalform)") -> (Normalform) | D7: 0 | E7: =IF(D7=0,""," = e ") ->  | G7: r | H7: gamma | AF7: =(COUNTIF(AE$3:AE7,AE7)=1)*(MAX(AF$2:AF6)+1) -> 0
B8: =IF(D3=0,"Tabelle quadr. Gleichung verwenden !",IF(OR(D10="falsch",D11="falsch",D12="falsch"),"Höhere "&IF(B13<>"","bzw. automatische ","")&"Rundung (Zelle B12) einstellen.","")) ->  | G8: =ABS(G2)^0.5 -> 3.231786572 | H8: =ACOS(G3/G8^3) -> 1.352917016 | AF8: =(COUNTIF(AE$3:AE8,AE8)=1)*(MAX(AF$2:AF7)+1) -> 0
B9: =IF(D3<0,"- ","")&IF(D3=0,"",IF(ABS(D3)=1,"x³ ",ABS(ROUND(D3,5))&"x³ "))&IF(D4<0,"- ","")&IF(D4>0,"+ ","")&IF(D4=0,"",IF(ABS(ROUND(D4,5))=1,"x² ",ABS(D4)&"x² "))&IF(D5>0,"+ ",IF(D5<0,"- ",""))&IF(ABS(D5)=1,"x ",IF(D5<>0,ABS(ROUND(D5,5))&"x ","")) &IF(D6>0,"+ ",IF(D6<0,"- ",""))&IF(D6<>0,ABS(D6),"")&" = "&IF(D7<0,"- ","")&ABS(D7) -> 0,05x³ + 0,4x² - 0,5x - 2,5 = 0 | E9: =IF(ISTEXT(C11),"",IF(OR(MOD(C10,1)>0,MOD(C11,1)>0,MOD(C12,1)>0),"","= diophantische Gleichung")) ->  | H9: =IF(MOD(ROUND(F10,6),1)=0,6,16) -> 16 | AF9: =(COUNTIF(AE$3:AE9,AE9)=1)*(MAX(AF$2:AF8)+1) -> 0
B10: x2 = | C10: =IF(AND(F4=0,F5=0,F6=0),0,ROUND(IF(G$6>0,(-G3+(G3*G3+(G2^3))^0.5)^(1/3)+(-G3-(G3*G3+(G2^3))^0.5)^(1/3)-F4/3,F10),IF(B13<>"",B13,IF(G6>0,H10,H9)))) -> -2.197652942 | D10: =IF(ROUND(C10^3+F4*C10^2+F5*C10+F6,5)=0,"OK","falsch") -> OK | E10: ="Extrema bei X = "&ROUND(MIN(H13,H14),4)&" und X = "&ROUND(MAX(H13,H14),4) -> Extrema bei X = -5,8985 und X = 0,5651 | F10: =G10-G11-F4/3 -> -2.197652942 | G10: =-2*G8*COS(H8/3-60*PI()/180) -> -5.348355569 | H10: =IF(MOD(ROUND((-G3+(G3*G3+(G2^3))^0.5)^(1/3)+(-G3-(G3*G3+(G2^3))^0.5)^(1/3)-F4/3,6),1)=0,6,16) ->  | AF10: =(COUNTIF(AE$3:AE10,AE10)=1)*(MAX(AF$2:AF9)+1) -> 0
B11: x3 = | C11: =IF(AND(F4=0,F5=0,F6=0),0,IF(G$6>0,"komplexe Wurzel",ROUND(F11,IF(B13<>"",B13,H11)))) -> 2.681688903 | D11: =IF(OR(C11="",G$6>0),"",IF(ROUND(C11^3+F$4*C11^2+F$5*C11+F$6,5)=0,"OK","falsch")) -> OK | E11: ="Wendepunkt bei X = "&ROUND(-G14/(G13*2),4) -> Wendepunkt bei X = -2,6667 | F11: =-G10-F4/3 -> 2.681688903 | G11: =-2*G8*COS(H8/3) -> -5.817369294 | H11: =IF(MOD(ROUND(F11,6),1)=0,6,16) -> 16 | AF11: =(COUNTIF(AE$3:AE11,AE11)=1)*(MAX(AF$2:AF10)+1) -> 0
B12: x1 = | C12: =IF(AND(F4=0,F5=0,F6=0),0,IF(G$6>0,"komplexe Wurzel",ROUND(F12,IF(B13<>"",B13,H12)))) -> -8.48403596 | D12: =IF(OR(C12="",G$6>0),"",IF(ROUND(C12^3+F$4*C12^2+F$5*C12+F$6,5)=0,"OK","falsch")) -> OK | F12: =G11-F4/3 -> -8.48403596 | H12: =IF(MOD(ROUND(F12,6),1)=0,6,16) -> 16 | AF12: =(COUNTIF(AE$3:AE12,AE12)=1)*(MAX(AF$2:AF11)+1) -> 0
F13: erste Ableitung | G13: =3*D3 -> 0.15 | H13: =IF(G13=0,-(G15-G16)/G14,IF(ISERROR((-G14+(G14*G14-4*G13*(G15-G16))^0.5)/(G13*2)),"komplexe Wurzel",(-G14+(G14*G14-4*G13*(G15-G16))^0.5)/(G13*2))) -> 0.5651199049
B14: =IF(B13<>"",B13&" Rundungsstellen manuell","automatische Rundung") -> automatische Rundung | D14: Grafik | G14: =2*D4 -> 0.8 | H14: =IF(OR(G13=0,4*G13*(G15-G16)-G14*G14=0),"es gibt nur eine Lösung",IF(ISERROR((-G14-(G14*G14-4*G13*(G15-G16))^0.5)/(G13*2)),"komplexe Wurzel",(-G14-(G14*G14-4*G13*(G15-G16))^0.5)/(G13*2))) -> -5.898453238
D15: x-Werte von: | E15: -10 | G15: =D5 -> -0.5
D16: x-Werte bis: | E16: 5
B19: Quelle: http://www.excelformeln.de/tips.html?welcher=37 | G19: x | H19: y
B20: W a l t e r F R I C K E, M o n h e i m (W F) | G20: =+E15 -> -10 | H20: =$D$3*G20^3+$D$4*G20^2+$D$5*G20+$D$6-$D$7 -> -7.5
G21: =G20+($E$16-$E$15)/29 -> -9.482758621 | H21: =$D$3*G21^3+$D$4*G21^2+$D$5*G21+$D$6-$D$7 -> -4.425304441
B22: x1= Lösung Links | G22: -8.965517241 | H22: -1.897679282
B23: x2 = Lösung Mitte | G23: -8.448275862 | H23: 0.1243900939
B24: x3 = Lösung Rechts | G24: -7.931034483 | H24: 1.682418303 | J24: Quelle: http://www.excel4managers.de/index.php?page=excel
G25: -7.413793103 | H25: 2.817919964 | J25: Lösung mit der Funktion KubischeGleichungF | M25: Hilfe
G26: -6.896551724 | H26: 3.572409693 | J26: x3 | K26: =KubischeGleichungF(D3,D4,D5,D6) -> 2.681688903 | M26: 1. K25:K30 markieren
G27: -6.379310345 | H27: 3.987402108 | J27: x1 | K27: -8.48403596 | M27: 2. KubischeGleichungF aufrufen, Parameter wählen
G28: -5.862068966 | H28: =$D$3*G28^3+$D$4*G28^2+$D$5*G28+$D$6-$D$7 -> 4.104411825 | J28: x2 | K28: -2.197652942 | M28: 3. Ergebnis steht in K26. F2, Strg+Shift+Enter, Bereich ziehen
G29: -5.344827586 | H29: 3.964953463 | J29: p | K29: -31.33333333 | M29: Sie können auch den Bereich nach der Berechnung markieren und dann F2, Strg+Shift+Enter wählen
G30: -4.827586207 | H30: 3.610541638 | J30: q | K30: 14.59259259
G31: -4.310344828 | H31: 3.082690967 | J31: D | K31: -1086.111111
G32: -3.793103448 | H32: 2.422916069
G33: -3.275862069 | H33: 1.672731559 | J33: Berechnung mit der Normalform
G34: -2.75862069 | H34: 0.8736520563 | J34: x3 | K34: =KubischeGleichungF(1,8,-10,-50) -> 2.681688903 | N34: =KubischeGleichungF(D3,D4,D5,D6) -> 2.681688903
G35: -2.24137931 | H35: 0.0671921768 | J35: x1 | K35: -8.48403596 | N35: -8.48403596
G36: -1.724137931 | H36: -0.7051334618 | J36: x2 | K36: -2.197652942 | N36: -2.197652942
G37: -1.206896552 | H37: -1.401810242 | J37: p | K37: -31.33333333 | N37: -31.33333333
G38: -0.6896551724 | H38: -1.981323548 | J38: q | K38: 14.59259259 | N38: 14.59259259
G39: -0.1724137931 | H39: -2.40215876 | J39: D | K39: -1086.111111
G40: 0.3448275862 | H40: -2.622801263
G41: 0.8620689655 | H41: -2.601736439
G42: 1.379310345 | H42: -2.29744967
G43: 1.896551724 | H43: -1.66842634
G44: 2.413793103 | H44: -0.6731518307
G45: 2.931034483 | H45: 0.7298884743
G46: 3.448275862 | H46: 2.582209193
G47: 3.965517241 | H47: 4.925324942
G48: 4.482758621 | H48: 7.800750338
G49: 5 | H49: 11.25

Sheet LLE
A1: x1 | B1: y1 | C1: gamma1 | D1: gamma2 | E1: gamma=gamma1/gamma2 | F1: gE/RT=x1ln(gamma1)+x2ln(gamma2) | G1: gE/RT=Ax1x2 | H1: g/RT=(x1ln(x1)+x2ln(x2))+Ax1x2 | M1: A_Porter: | N1: 3 | P1: A/RT | Q1: =N1/8.314/298 -> 0.001210862893
A2: 0 | B2: =YF(C2,D2,$N$2,A2) -> 0 | C2: =Gamma1PorterF($N$1,A2) -> 20.08553692 | D2: =Gamma2PorterF($N$1,A2) -> 1 | E2: =C2/D2 -> 20.08553692 | F2: =A2*LN(C2)+(1-A2)*LN(D2) -> 0 | G2: =$N$1*A2*(1-A2) -> 0 | H2: =A2*LN(A2)+(1-A2)*LN(1-A2)+A2*LN(C2)+(1-A2)*LN(D2) ->  | J2: xLLE | K2: yLLE | M2: alpha12 | N2: 3
A3: 0.01 | B3: =YF(C3,D3,$N$2,A3) -> 0.3643559271 | C3: =Gamma1PorterF($N$1,A3) -> 18.92152192 | D3: =Gamma2PorterF($N$1,A3) -> 1.000300045 | E3: =C3/D3 -> 18.91584631 | F3: =A3*LN(C3)+(1-A3)*LN(D3) -> 0.0297 | G3: =$N$1*A3*(1-A3) -> 0.0297 | H3: =A3*LN(A3)+(1-A3)*LN(1-A3)+A3*LN(C3)+(1-A3)*LN(D3) -> -0.02630153435 | J3: 0.07 | K3: 0.7487436516 | P3: Anleitung: | Q3: Werte in N1 oder N2 ändern | T3: Alle Grafiken werden automatisch generiert
A4: 0.02 | B4: =YF(C4,D4,$N$2,A4) -> 0.5216843872 | C4: 17.83566314 | D4: 1.00120072 | E4: =C4/D4 -> 17.81427318 | F4: =A4*LN(C4)+(1-A4)*LN(D4) -> 0.0588 | G4: 0.0588 | H4: =A4*LN(A4)+(1-A4)*LN(1-A4)+A4*LN(C4)+(1-A4)*LN(D4) -> -0.03923911328 | J4: =1-J3 -> 0.93 | K4: =K3 -> 0.7487436516
A5: 0.03 | B5: 0.6088578078 | C5: 16.82220938 | D5: 1.002703648 | E5: 16.77685067 | F5: 0.0873 | G5: 0.0873 | H5: -0.04744216818
A6: 0.04 | B6: 0.6638633281 | C6: 15.8758645 | D6: 1.004811538 | E6: 15.79984295 | F6: 0.1152 | G6: 0.1152 | H6: -0.05274414773 | J6: 0
A7: 0.05 | B7: 0.701441856 | C7: 14.99174925 | D7: 1.007528195 | E7: 14.87973172 | F7: 0.1425 | G7: 0.1425 | H7: -0.05601524335 | J7: 1
A8: 0.06 | B8: 0.7285101838 | C8: 14.16536641 | D8: 1.010858531 | E8: 14.01320361 | F8: 0.1692 | G8: 0.1692 | H8: -0.0577675225
A9: 0.07 | B9: 0.7487436516 | C9: 13.39256899 | D9: 1.014808576 | E9: 13.19713816 | F9: 0.1953 | G9: 0.1953 | H9: -0.05833894692
A10: 0.08 | B10: 0.764275622 | C10: 12.66953129 | D10: 1.019385505 | E10: 12.42859666 | F10: 0.2208 | G10: 0.2208 | H10: -0.05796937177
A11: 0.09 | B11: 0.7764292073 | C11: 11.99272241 | D11: 1.024597651 | E11: 11.70481154 | F11: 0.2457 | G11: 0.2457 | H11: -0.0568378231
A12: 0.1 | B12: 0.7860684399 | C12: 11.35888208 | D12: 1.030454534 | E12: 11.02317638 | F12: 0.27 | G12: 0.27 | H12: -0.05508297339
A13: 0.11 | B13: 0.7937813762 | C13: 10.76499859 | D13: 1.03696689 | E13: 10.38123656 | F13: 0.2937 | G13: 0.2937 | H13: -0.05281533692
A14: 0.12 | B14: 0.7999820415 | C14: 10.20828862 | D14: 1.044146703 | E14: 9.77668041 | F14: 0.3168 | G14: 0.3168 | H14: -0.05012499127
A15: 0.13 | B15: 0.8049703 | C15: 9.686178767 | D15: 1.052007244 | E15: 9.207330866 | F15: 0.3393 | G15: 0.3393 | H15: -0.04708670629
A16: 0.14 | B16: 0.8089686049 | C16: 9.196288695 | D16: 1.060563107 | E16: 8.671137658 | F16: 0.3612 | G16: 0.3612 | H16: -0.04376348506
A17: 0.15 | B17: 0.8121454159 | C17: 8.736415677 | D17: 1.06983026 | E17: 8.166169913 | F17: 0.3825 | G17: 0.3825 | H17: -0.04020908781
A18: 0.16 | B18: 0.8146306067 | C18: 8.304520458 | D18: 1.07982609 | E18: 7.690609199 | F18: 0.4032 | G18: 0.4032 | H18: -0.0364698794
A19: 0.17 | B19: 0.8165258858 | C19: 7.898714305 | D19: 1.09056946 | E19: 7.242742985 | F19: 0.4233 | G19: 0.4233 | H19: -0.03258621303
A20: 0.18 | B20: 0.8179120201 | C20: 7.517247147 | D20: 1.102080768 | E20: 6.820958469 | F20: 0.4428 | G20: 0.4428 | H20: -0.02859348681
A21: 0.19 | B21: 0.8188539477 | C21: 7.158496694 | D21: 1.11438201 | E21: 6.423736771 | F21: 0.4617 | G21: 0.4617 | H21: -0.02452296466
A22: 0.2 | B22: 0.8194044696 | C22: 6.820958469 | D22: 1.127496852 | E22: 6.049647464 | F22: 0.48 | G22: 0.48 | H22: -0.02040242354
A23: 0.21 | B23: 0.8196069588 | C23: 6.503236656 | D23: 1.141450703 | E23: 5.697343423 | F23: 0.4977 | G23: 0.4977 | H23: -0.01625667062
A24: 0.22 | B24: 0.8194973811 | C24: 6.204035702 | D24: 1.156270801 | E24: 5.365555971 | F24: 0.5148 | G24: 0.5148 | H24: -0.01210796143
A25: 0.23 | B25: 0.819105823 | C25: 5.922152614 | D25: 1.171986298 | E25: 5.053090317 | F25: 0.5313 | G25: 0.5313 | H25: -0.007976341497
A26: 0.24 | B26: 0.8184576625 | C26: 5.656469871 | D26: 1.188628356 | E26: 4.758821245 | F26: 0.5472 | G26: 0.5472 | H26: -0.003879928087
A27: 0.25 | B27: =YF(C27,D27,$N$2,A27) -> 0.8175744762 | C27: 5.405948925 | D27: 1.206230249 | E27: 4.48168907 | F27: 0.5625 | G27: 0.5625 | H27: 0.0001648553812
A28: 0.26 | B28: 0.816474751 | C28: 5.169624214 | D28: 1.224827478 | E28: 4.220695817 | F28: 0.5772 | G28: 0.5772 | H28: 0.004143082869
A29: 0.27 | B29: 0.8151744472 | C29: 4.946597666 | D29: 1.244457883 | E29: 3.974901627 | F29: 0.5913 | G29: 0.5913 | H29: 0.008041159871
A30: 0.28 | B30: 0.8136874493 | C30: 4.736033637 | D30: 1.265161776 | E30: 3.743421377 | F30: 0.6048 | G30: 0.6048 | H30: 0.01184668255
A31: 0.29 | B31: 0.8120259294 | C31: 4.537154258 | D31: 1.286982074 | E31: 3.525421487 | F31: 0.6177 | G31: 0.6177 | H31: 0.01554831741
A32: 0.3 | B32: 0.8102006433 | C32: 4.349235141 | D32: 1.309964451 | E32: 3.320116923 | F32: 0.63 | G32: 0.63 | H32: 0.01913569795
A33: 0.31 | B33: 0.8082211736 | C33: 4.171601438 | D33: 1.334157491 | E33: 3.126768365 | F33: 0.6417 | G33: 0.6417 | H33: 0.02259933557
A34: 0.32 | B34: =YF(C34,D34,$N$2,A34) -> 0.8060961306 | C34: 4.003624196 | D34: 1.359612863 | E34: 2.944679551 | F34: 0.6528 | G34: 0.6528 | H34: 0.02593054243
A35: 0.33 | B35: 0.8038333204 | C35: 3.844717007 | D35: 1.386385499 | E35: 2.773194764 | F35: 0.6633 | G35: 0.6633 | H35: 0.02912136429
A36: 0.34 | B36: 0.8014398859 | C36: 3.694332912 | D36: 1.41453379 | E36: 2.611696473 | F36: 0.6732 | G36: 0.6732 | H36: 0.03216452212
A37: 0.35 | B37: 0.7989224263 | C37: 3.551961549 | D37: 1.444119799 | E37: 2.459603111 | F37: 0.6825 | G37: 0.6825 | H37: 0.03505336097
A38: 0.36 | B38: 0.7962870991 | C38: 3.417126523 | D38: 1.47520948 | E38: 2.316366977 | F38: 0.6912 | G38: 0.6912 | H38: 0.03778180521
A39: 0.37 | B39: 0.7935397077 | C39: 3.28938297 | D39: 1.507872927 | E39: 2.181472265 | F39: 0.6993 | G39: 0.6993 | H39: 0.04034431932
A40: 0.38 | B40: 0.7906857777 | C40: 3.168315314 | D40: 1.542184627 | E40: 2.054433211 | F40: 0.7068 | G40: 0.7068 | H40: 0.04273587344
A41: 0.39 | B41: 0.7877306234 | C41: 3.053535196 | D41: 1.578223741 | E41: 1.934792334 | F41: 0.7137 | G41: 0.7137 | H41: 0.04495191315
A42: 0.4 | B42: =YF(C42,D42,$N$2,A42) -> 0.7846794058 | C42: 2.944679551 | D42: 1.616074402 | E42: 1.8221188 | F42: 0.72 | G42: 0.72 | H42: 0.04698833299
A43: 0.41 | B43: 0.7815371847 | C43: =Gamma1PorterF($N$1,A43) -> 2.841408841 | D43: =Gamma2PorterF($N$1,A43) -> 1.655826036 | E43: =C43/D43 -> 1.716006862 | F43: =A43*LN(C43)+(1-A43)*LN(D43) -> 0.7257 | G43: =$N$1*A43*(1-A43) -> 0.7257 | H43: =A43*LN(A43)+(1-A43)*LN(1-A43)+A43*LN(C43)+(1-A43)*LN(D43) -> 0.04884145327
A44: 0.42 | B44: 0.7783089654 | C44: =Gamma1PorterF($N$1,A44) -> 2.743405413 | D44: =Gamma2PorterF($N$1,A44) -> 1.697573706 | E44: =C44/D44 -> 1.616074402 | F44: =A44*LN(C44)+(1-A44)*LN(D44) -> 0.7308 | G44: =$N$1*A44*(1-A44) -> 0.7308 | H44: =A44*LN(A44)+(1-A44)*LN(1-A44)+A44*LN(C44)+(1-A44)*LN(D44) -> 0.05050799981
A45: 0.43 | B45: 0.7749997401 | C45: 2.65037198 | D45: 1.741418481 | E45: =C45/D45 -> 1.521961556 | F45: =A45*LN(C45)+(1-A45)*LN(D45) -> 0.7353 | G45: 0.7353 | H45: =A45*LN(A45)+(1-A45)*LN(1-A45)+A45*LN(C45)+(1-A45)*LN(D45) -> 0.05198508643
A46: 0.44 | B46: 0.7716145264 | C46: 2.562030223 | D46: 1.787467833 | E46: =C46/D46 -> 1.433329415 | F46: =A46*LN(C46)+(1-A46)*LN(D46) -> 0.7392 | G46: 0.7392 | H46: =A46*LN(A46)+(1-A46)*LN(1-A46)+A46*LN(C46)+(1-A46)*LN(D46) -> 0.05327019975
A47: 0.45 | B47: 0.768158402 | C47: 2.478119484 | D47: 1.835836067 | E47: 1.349858808 | F47: 0.7425 | G47: 0.7425 | H47: 0.05436118629
A48: 0.46 | B48: 0.7646365376 | C48: 2.398395567 | D48: 1.886644775 | E48: 1.27124915 | F48: 0.7452 | G48: 0.7452 | H48: 0.05525624154
A49: 0.47 | B49: 0.7610542268 | C49: 2.322629618 | D49: 1.940023332 | E49: 1.197217363 | F49: 0.7473 | G49: 0.7473 | H49: 0.055953901
A50: 0.48 | B50: 0.7574169156 | C50: 2.250607095 | D50: 1.996109428 | E50: 1.127496852 | F50: 0.7488 | G50: 0.7488 | H50: 0.05645303291
A51: 0.49 | B51: 0.7537302293 | C51: 2.182126805 | D51: 2.055049633 | E51: 1.061836547 | F51: 0.7497 | G51: 0.7497 | H51: 0.05675283278
A52: 0.5 | B52: 0.75 | C52: 2.117000017 | D52: 2.117000017 | E52: 1 | F52: 0.75 | G52: 0.75 | H52: 0.05685281944
A53: 0.51 | B53: 0.7462322922 | C53: 2.055049633 | D53: 2.182126805 | E53: 0.9417645336 | F53: 0.7497 | G53: 0.7497 | H53: 0.05675283278
A54: 0.52 | B54: 0.7424334295 | C54: 1.996109428 | D54: 2.250607095 | E54: 0.8869204367 | F54: 0.7488 | G54: 0.7488 | H54: 0.05645303291
A55: 0.53 | B55: 0.7386100201 | C55: 1.940023332 | D55: 2.322629618 | E55: 0.8352702114 | F55: 0.7473 | G55: 0.7473 | H55: 0.055953901
A56: 0.54 | B56: 0.7347689842 | C56: 1.886644775 | D56: 2.398395567 | E56: 0.7866278611 | F56: 0.7452 | G56: 0.7452 | H56: 0.05525624154
A57: 0.55 | B57: 0.7309175814 | C57: 1.835836067 | D57: 2.478119484 | E57: 0.7408182207 | F57: 0.7425 | G57: 0.7425 | H57: 0.05436118629
A58: 0.56 | B58: 0.7270634393 | C58: 1.787467833 | D58: 2.562030223 | E58: 0.6976763261 | F58: 0.7392 | G58: 0.7392 | H58: 0.05327019975
A59: 0.57 | B59: 0.7232145841 | C59: 1.741418481 | D59: 2.65037198 | E59: 0.6570468198 | F59: 0.7353 | G59: 0.7353 | H59: 0.05198508643
A60: 0.58 | B60: 0.7193794735 | C60: 1.697573706 | D60: 2.743405413 | E60: 0.6187833918 | F60: 0.7308 | G60: 0.7308 | H60: 0.05050799981
A61: 0.59 | B61: 0.7155670316 | C61: 1.655826036 | D61: 2.841408841 | E61: 0.5827482524 | F61: 0.7257 | G61: 0.7257 | H61: 0.04884145327
A62: 0.6 | B62: 0.7117866877 | C62: 1.616074402 | D62: 2.944679551 | E62: 0.5488116361 | F62: 0.72 | G62: 0.72 | H62: 0.04698833299
A63: 0.61 | B63: 0.7080484184 | C63: 1.578223741 | D63: 3.053535196 | E63: 0.5168513345 | F63: 0.7137 | G63: 0.7137 | H63: 0.04495191315
A64: 0.62 | B64: 0.7043627951 | C64: 1.542184627 | D64: 3.168315314 | E64: 0.486752256 | F64: 0.7068 | G64: 0.7068 | H64: 0.04273587344
A65: 0.63 | B65: 0.7007410367 | C65: 1.507872927 | D65: 3.28938297 | E65: 0.4584060113 | F65: 0.6993 | G65: 0.6993 | H65: 0.04034431932
A66: 0.64 | B66: 0.6971950687 | C66: 1.47520948 | D66: 3.417126523 | E66: 0.4317105234 | F66: 0.6912 | G66: 0.6912 | H66: 0.03778180521
A67: 0.65 | B67: =YF(C67,D67,$N$2,A67) -> 0.6937375908 | C67: 1.444119799 | D67: 3.551961549 | E67: 0.4065696597 | F67: 0.6825 | G67: 0.6825 | H67: 0.03505336097
A68: 0.66 | B68: 0.6903821535 | C68: 1.41453379 | D68: 3.694332912 | E68: 0.382892886 | F68: 0.6732 | G68: 0.6732 | H68: 0.03216452212
A69: 0.67 | B69: =YF(C69,D69,$N$2,A69) -> 0.6871432455 | C69: 1.386385499 | D69: 3.844717007 | E69: 0.3605949402 | F69: 0.6633 | G69: 0.6633 | H69: 0.02912136429
A70: 0.68 | B70: =YF(C70,D70,$N$2,A70) -> 0.6840363947 | C70: 1.359612863 | D70: 4.003624196 | E70: 0.3395955256 | F70: 0.6528 | G70: 0.6528 | H70: 0.02593054243
A71: 0.69 | B71: 0.6810782847 | C71: 1.334157491 | D71: 4.171601438 | E71: 0.3198190218 | F71: 0.6417 | G71: 0.6417 | H71: 0.02259933557
A72: 0.7 | B72: 0.6782868888 | C72: 1.309964451 | D72: 4.349235141 | E72: 0.3011942119 | F72: 0.63 | G72: 0.63 | H72: 0.01913569795
A73: 0.71 | B73: 0.6756816276 | C73: 1.286982074 | D73: 4.537154258 | E73: 0.2836540265 | F73: 0.6177 | G73: 0.6177 | H73: 0.01554831741
A74: 0.72 | B74: 0.6732835508 | C74: =Gamma1PorterF($N$1,A74) -> 1.265161776 | D74: =Gamma2PorterF($N$1,A74) -> 4.736033637 | E74: =C74/D74 -> 0.267135302 | F74: =A74*LN(C74)+(1-A74)*LN(D74) -> 0.6048 | G74: =$N$1*A74*(1-A74) -> 0.6048 | H74: =A74*LN(A74)+(1-A74)*LN(1-A74)+A74*LN(C74)+(1-A74)*LN(D74) -> 0.01184668255
A75: 0.73 | B75: 0.671115552 | C75: =Gamma1PorterF($N$1,A75) -> 1.244457883 | D75: =Gamma2PorterF($N$1,A75) -> 4.946597666 | E75: =C75/D75 -> 0.2515785531 | F75: =A75*LN(C75)+(1-A75)*LN(D75) -> 0.5913 | G75: =$N$1*A75*(1-A75) -> 0.5913 | H75: =A75*LN(A75)+(1-A75)*LN(1-A75)+A75*LN(C75)+(1-A75)*LN(D75) -> 0.008041159871
A76: 0.74 | B76: 0.6692026206 | C76: 1.224827478 | D76: 5.169624214 | E76: =C76/D76 -> 0.2369277587 | F76: =A76*LN(C76)+(1-A76)*LN(D76) -> 0.5772 | G76: 0.5772 | H76: =A76*LN(A76)+(1-A76)*LN(1-A76)+A76*LN(C76)+(1-A76)*LN(D76) -> 0.004143082869
A77: 0.75 | B77: 0.6675721383 | C77: 1.206230249 | D77: 5.405948925 | E77: =C77/D77 -> 0.2231301601 | F77: =A77*LN(C77)+(1-A77)*LN(D77) -> 0.5625 | G77: 0.5625 | H77: =A77*LN(A77)+(1-A77)*LN(1-A77)+A77*LN(C77)+(1-A77)*LN(D77) -> 0.0001648553812
A78: 0.76 | B78: 0.6662542321 | C78: 1.188628356 | D78: 5.656469871 | E78: 0.2101360712 | F78: 0.5472 | G78: 0.5472 | H78: -0.003879928087
A79: 0.77 | B79: 0.6652821937 | C79: 1.171986298 | D79: 5.922152614 | E79: 0.1978986991 | F79: 0.5313 | G79: 0.5313 | H79: -0.007976341497
A80: 0.78 | B80: 0.6646929804 | C80: 1.156270801 | D80: 6.204035702 | E80: 0.186373976 | F80: 0.5148 | G80: 0.5148 | H80: -0.01210796143
A81: 0.79 | B81: 0.6645278182 | C81: 1.141450703 | D81: 6.503236656 | E81: 0.1755204006 | F81: 0.4977 | G81: 0.4977 | H81: -0.01625667062
A82: 0.8 | B82: 0.6648329295 | C82: 1.127496852 | D82: 6.820958469 | E82: 0.1652988882 | F82: 0.48 | G82: 0.48 | H82: -0.02040242354
A83: 0.81 | B83: 0.665660417 | C83: 1.11438201 | D83: 7.158496694 | E83: 0.1556726304 | F83: 0.4617 | G83: 0.4617 | H83: -0.02452296466
A84: 0.82 | B84: 0.6670693443 | C84: 1.102080768 | D84: 7.517247147 | E84: 0.1466069621 | F84: 0.4428 | G84: 0.4428 | H84: -0.02859348681
A85: 0.83 | B85: 0.6691270644 | C85: 1.09056946 | D85: 7.898714305 | E85: 0.1380692373 | F85: 0.4233 | G85: 0.4233 | H85: -0.03258621303
A86: 0.84 | B86: 0.6719108649 | C86: 1.07982609 | D86: 8.304520458 | E86: 0.1300287109 | F86: 0.4032 | G86: 0.4032 | H86: -0.0364698794
A87: 0.85 | B87: 0.6755100223 | C87: 1.06983026 | D87: 8.736415677 | E87: 0.1224564283 | F87: 0.3825 | G87: 0.3825 | H87: -0.04020908781
A88: 0.86 | B88: 0.6800283859 | C88: 1.060563107 | D88: 9.196288695 | E88: 0.115325121 | F88: 0.3612 | G88: 0.3612 | H88: -0.04376348506
A89: 0.87 | B89: 0.685587658 | C89: 1.052007244 | D89: 9.686178767 | E89: 0.1086091088 | F89: 0.3393 | G89: 0.3393 | H89: -0.04708670629
A90: 0.88 | B90: 0.6923316003 | C90: 1.044146703 | D90: 10.20828862 | E90: 0.1022842067 | F90: 0.3168 | G90: 0.3168 | H90: -0.05012499127
A91: 0.89 | B91: 0.7004314828 | C91: 1.03696689 | D91: 10.76499859 | E91: 0.09632763823 | F91: 0.2937 | G91: 0.2937 | H91: -0.05281533692
A92: 0.9 | B92: 0.7100932266 | C92: 1.030454534 | D92: 11.35888208 | E92: 0.09071795329 | F92: 0.27 | G92: 0.27 | H92: -0.05508297339
A93: 0.91 | B93: 0.721566887 | C93: 1.024597651 | D93: 11.99272241 | E93: 0.08543495097 | F93: 0.2457 | G93: 0.2457 | H93: -0.0568378231
A94: 0.92 | B94: 0.735159422 | C94: 1.019385505 | D94: 12.66953129 | E94: 0.08045960675 | F94: 0.2208 | G94: 0.2208 | H94: -0.05796937177
A95: 0.93 | B95: 0.7512521533 | C95: 1.014808576 | D95: 13.39256899 | E95: 0.07577400402 | F95: 0.1953 | G95: 0.1953 | H95: -0.05833894692
A96: 0.94 | B96: 0.7703250644 | C96: 1.010858531 | D96: 14.16536641 | E96: 0.07136126956 | F96: 0.1692 | G96: 0.1692 | H96: -0.0577675225
A97: 0.95 | B97: 0.7929912735 | C97: 1.007528195 | D97: 14.99174925 | E97: 0.06720551274 | F97: 0.1425 | G97: 0.1425 | H97: -0.05601524335
A98: 0.96 | B98: 0.8200470249 | C98: 1.004811538 | D98: 15.8758645 | E98: 0.06329176836 | F98: 0.1152 | G98: 0.1152 | H98: -0.05274414773
A99: 0.97 | B99: 0.8525460094 | C99: 1.002703648 | D99: 16.82220938 | E99: 0.05960594271 | F99: 0.0873 | G99: 0.0873 | H99: -0.04744216818
A100: 0.98 | B100: 0.8919130435 | C100: 1.00120072 | D100: 17.83566314 | E100: 0.05613476283 | F100: 0.0588 | G100: 0.0588 | H100: -0.03923911328
A101: 0.99 | B101: =YF(C101,D101,$N$2,A101) -> 0.9401237813 | C101: 1.000300045 | D101: 18.92152192 | E101: 0.05286572874 | F101: 0.0297 | G101: 0.0297 | H101: -0.02630153435
A102: 1 | B102: =YF(C102,D102,$N$2,A102) -> 1 | C102: 1 | D102: 20.08553692 | E102: 0.04978706837 | F102: 0 | G102: 0 | I102: =MinimumF(A102) -> 

Sheet Makro
A1: Makro
B3: 2 | C3: 3 | D3: =B3*C3 -> 6
B4: 5 | C4: 5 | D4: 25

Sheet Masseinheiten
A1: Masseinheiten umrechnen am Beispiel der Reynoldsgleichung
A3: Variable | B3: Wert | C3: Maßeinheit | D3: Umrechnungsfaktor | E3: Wert in SI | F3: SI-Einheiten | G3: Listen-Adresse | J3: Einheitenliste
A4: Dichte | B4: 1000 | C4: kg/m³ | D4: =MasseinheitenF(C4,G4) -> 0 | E4: =B4*D4 -> 0 | F4: kg/m³ | G4: J5 | J4: Dichte | K4: Faktoren | L4: Geschwindigkeit | M4: Faktoren | N4: Durchmesser | O4: Faktoren | P4: Dyn. Vis. | Q4: Faktoren | R4: Masse
A5: Geschwindigkeit | B5: 10 | C5: m/s | D5: =MasseinheitenF(C5,G5) -> 0 | E5: =B5*D5 -> 0 | F5: m/s | G5: L5 | J5: kg/m³ | K5: 1 | L5: m/s | M5: 1 | N5: m | O5: 1 | P5: kg/m.s | Q5: 1 | R5: kg | S5: 1
A6: Durchmesser | B6: 100 | C6: mm | D6: 0 | E6: 0 | F6: m | G6: N5 | J6: g/cm³ | K6: 0.001 | L6: km/h | M6: =1/3.6 -> 0.2777777778 | N6: dm | O6: 0.1 | P6: g/m.s | Q6: 1000 | R6: g | S6: 0.001
A7: Dyn. Viskosität | B7: 1 | C7: Pa.s | D7: =MasseinheitenF(C7,G7) -> 0 | E7: 0 | F7: kg/m.s | G7: P5 | J7: kg/dm³ | K7: 0.001 | L7: m/min | M7: =1000/60 -> 16.66666667 | N7: cm | O7: 0.01 | P7: kg/cm.s | Q7: 100 | R7: mg | S7: 1e-06
A8: Reynold | B8: =E4*E5*E6/E7 ->  | J8: g/dm³ | K8: 1 | L8: cm/s | M8: =1000/36 -> 27.77777778 | N8: mm | O8: 0.001 | P8: g/cm.s | Q8: 0.1 | R8: d. Pfund | S8: 0.5
P9: Pa.s | Q9: 1 | R9: Zentner | S9: 50
P10: N.s/m² | Q10: 1
P11: mPa.s | Q11: 1000
P12: cP | Q12: 1000
P13: g/cm.s | Q13: 10

Sheet Matrix
A1: Matrixmultiplikation mit MMULT und manuel
C2: Matrix a
C3: Spalte k=1 | D3: Spalte k=2 | E3: Spalte k=3 | H3: Matrixregel: | Q3: =MMULT(C4:E5,C8:D10) -> 12 | R3: -6
A4: Zeile i=1 | C4: 1 | D4: 2 | E4: 3 | Q4: 39 | R4: -12
A5: Zeiel i=2 | C5: 4 | D5: 5 | E5: 6
C7: Matrix b
A8: Zeile i=1 | C8: 6 | D8: -1
A9: Zeiel i=2 | C9: 3 | D9: 2
A10: Zeiel i=3 | C10: 0 | D10: -3
A12: Zeile i=1 | C12: =MMULT(C4:E5,C8:D10) -> 12 | D12: -6
A13: Zeile i=2 | C13: 39 | D13: -12
A15: Formel mmult in C12 eintragen. C12:D13 markieren
A16: F2, STRG+UMSCHALT+EINGABE
A21: Formel | F21: i= Zeile | G21: j=Spalte für c | I21: Schema nach Falk
A22: Matrixregel beachten | F22: k=Spalte für a und b | K22: b11 | L22: b12
F23: n = kmax | K23: b21 | L23: b22
K24: b31 | L24: b32
H25: a11 | I25: a12 | J25: a13 | K25: c11 | L25: c12
H26: a21 | I26: a22 | J26: a23 | K26: c21 | L26: c22
A30: Rechenregel
C31: c11 = a11*b11+a21*b21+a23*b32 | F31: =C4*C8+D4*C9+E4*C10 -> 12 | H31: c12=a11*b12+a12*b22+a13*b32 | K31: =C4*D8+D4*D9+E4*D10 -> -6
C32: c21=a21*b11+a22*b21+a23*b31 | F32: =C5*C8+D5*C9+E5*C10 -> 39 | H32: c22=a21*b12+a22*b22+a23*b32 | K32: =C5*D8+D5*D9+E5*D10 -> -12

Sheet Menüs
A1: 1. Start des Add-Ins "Menuleiste"
A4: 1 | B4: J | C4: 1 | D4: 10 | E4: 9.47817e-09 | F4: MMBtu | G4: 9.47817e-10 | H4: 10
A6: 2. Add-Ins "User"
A9: 3. Add-Ins, User, Menü anklicken
A11: 4. Es erscheint:
A13: 5. Makro "Menulöschen"

Sheet Mischung
A1: Konzentrationsberechnung von Gemischen
A2: 1. Datenzeile: | B2: 37 | D2: <---
A4: Mischen1
A5: Lösung | B5: Menge | C5: Konz. %
A6: 1 | B6: 10 | C6: =B6/$B$16*100 -> 2.604166667
A7: 2 | B7: 50 | C7: =B7/$B$16*100 -> 13.02083333
A8: 3 | B8: 80 | C8: 20.83333333
A9: 4 | B9: 12 | C9: 3.125
A10: 5 | B10: 45 | C10: 11.71875
A11: 6 | B11: 99 | C11: 25.78125
A12: 7 | B12: 1 | C12: 0.2604166667
A13: 8 | B13: 25 | C13: 6.510416667
A14: 9 | B14: 57 | C14: 14.84375
A15: 10 | B15: 5 | C15: 1.302083333
A16: Summe: | B16: =SUM(B6:B15) -> 384
L17: P41
A18: Mischungsmengen2 berechnen | J18: Mischen2
B19: Grad | C19: 2 | J19: Lösung | K19: L1 | L19: L2 | M19: mi [kg] | N19: xGemisch
B20: Konz. der 2 Lösungen | D20: Erg. mLi | E20: mi [kg] | F20: xGemisch | J20: mi [kg] | K20: 600 | L20: 400 | M20: =SUM(K20:L20) -> 1000 | N20: =M20 -> 1000
B21: 0.05 | C21: 0.1 | D21: 600 | E21: =F21*$F$23 -> 70 | F21: 0.07 | J21: x1,i | K21: 0.05 | L21: 0.1 | M21: =$K$20*K21+$L$20*L21 -> 70 | N21: =M21/$N$20 -> 0.07
B22: =1-B21 -> 0.95 | C22: =1-C21 -> 0.9 | D22: 400 | E22: =F22*$F$23 -> 930 | F22: =1-F21 -> 0.93 | J22: x2,i | K22: =1-K21 -> 0.95 | L22: =1-L21 -> 0.9 | M22: =$K$20*K22+$L$20*L22 -> 930 | N22: =1-N21 -> 0.93
E23: mges: | F23: 1000 | M23: =SUM(M21:M22) -> 1000 | N23: =SUM(N21:N22) -> 1
A26: Mischungsmengen3 berechnen | J26: Mischen3
B27: Grad | C27: 3 | J27: Lösung | K27: L1 | L27: L2 | M27: L3 | N27: mi [kg] | O27: xGemisch
B28: Konzentrationen der 3 Lösungen | E28: Erg. mLi | F28: mi [kg] | G28: xGemisch | J28: mi [kg] | K28: 22 | L28: 110 | M28: 88 | N28: =SUM(K28:M28) -> 220 | O28: =N28 -> 220
B29: 0.1 | C29: 0.3 | D29: 0.6 | E29: 22 | F29: =G29*$G$32 -> 88 | G29: 0.4 | J29: x1,i | K29: 0.1 | L29: 0.3 | M29: =1-K29-L29 -> 0.6 | N29: 88 | O29: =N29/$O$28 -> 0.4
B30: 0.3 | C30: 0.4 | D30: 0.3 | E30: 110 | F30: =G30*$G$32 -> 77 | G30: 0.35 | J30: x2,i | K30: 0.3 | L30: 0.4 | M30: =1-K30-L30 -> 0.3 | N30: =$K$28*K30+$L$28*L30+$M$28*M30 -> 77 | O30: =N30/$O$28 -> 0.35
B31: 0.6 | C31: 0.3 | D31: 0.1 | E31: 88 | F31: =G31*$G$32 -> 55 | G31: 0.25 | J31: x3,i | K31: =1-K29-K30 -> 0.6 | L31: =1-L29-L30 -> 0.3 | M31: =1-M29-M30 -> 0.1 | N31: 55 | O31: =N31/$O$28 -> 0.25
E32: =SUM(E29:E31) -> 220 | F32: mges: | G32: 220 | N32: =SUM(N29:N31) -> 220 | O32: =SUM(O29:O31) -> 1
A34: Mischungsmengen4 berechnen | J34: Mischen4
B35: Grad | C35: 4 | J35: Lösung | K35: L1 | L35: L2 | M35: L3 | N35: L4 | O35: mi [kg] | P35: xGemisch
B36: Konzentrationen der 4 Lösungen | F36: Erg. mLi | G36: mi [kg] | H36: xGemisch | J36: mi [kg] | K36: 20 | L36: 110 | M36: 90 | N36: 50 | O36: =SUM(K36:N36) -> 270 | P36: =O36 -> 270
A37: x1,i | B37: 0.17 | C37: 0.39 | D37: 0.45 | E37: 0.33 | F37: 22 | G37: =$G$41*H37 -> 102.74 | H37: 0.3805185185 | J37: x1,i | K37: 0.17 | L37: 0.39 | M37: 0.45 | N37: 0.33 | O37: =$K$28*K37+$L$28*L37+$M$28*M37+$N$36*N37 -> 102.74 | P37: =O37/$O$36 -> 0.3805185185
A38: x2,i | B38: 0.3 | C38: 0.42 | D38: 0.28 | E38: 0.29 | F38: 110 | G38: =$G$41*H38 -> 91.94 | H38: 0.3405185185 | J38: x2,i | K38: 0.3 | L38: 0.42 | M38: =1-K38-L38 -> 0.28 | N38: 0.29 | O38: =$K$28*K38+$L$28*L38+$M$28*M38+$N$36*N38 -> 91.94 | P38: =O38/$O$36 -> 0.3405185185
A39: x3,i | B39: 0.15 | C39: 0.05 | D39: 0.12 | E39: 0.21 | F39: 88 | G39: 29.86 | H39: 0.1105925926 | J39: x3,i | K39: 0.15 | L39: 0.05 | M39: 0.12 | N39: 0.21 | O39: =$K$28*K39+$L$28*L39+$M$28*M39+$N$36*N39 -> 29.86 | P39: =O39/$O$36 -> 0.1105925926
A40: x4,i | B40: 0.38 | C40: 0.14 | D40: 0.15 | E40: 0.17 | F40: 50 | G40: 45.46 | H40: =1-H37-H38-H39 -> 0.1683703704 | J40: x4,i | K40: =1-K37-K38-K39 -> 0.38 | L40: =1-L37-L38-L39 -> 0.14 | M40: 0.15 | N40: 0.17 | O40: =$K$28*K40+$L$28*L40+$M$28*M40+$N$36*N40 -> 45.46 | P40: =O40/$O$36 -> 0.1683703704
F41: mges: | G41: 270 | H41: =SUM(H37:H40) -> 1 | O41: =SUM(O37:O40) -> 270 | P41: 1

Sheet Molekül
A1: Modellierung und Potentialberechnung des Wassermoleküls | J1: 10 | T1: 20 | AD1: 30
B3: Kartesisch [pm] | G3: Kartesisch aktuell [pm] | J3: Polar | L3: Res. | M3: Winkel | AN3: Grad | AO3: Matrix | AS3: x',y',z'
A4: Nr | B4: x0 | C4: y0 | D4: z0 | E4: r | F4: Ladung | G4: x | H4: y | I4: z | J4: phi | K4: theta | M4: x-Achse (alpha) | N4: 30 | T4: F | AN4: 20 | AO4: 1 | AP4: 0 | AQ4: 0 | AR4: 1 | AS4: =MMULT(AO4:AQ6,AR4:AR6) -> 1
A5: 1 | B5: 0 | C5: -0.5871 | D5: 0.7575 | E5: =SQRT(B5*B5+C5*C5+D5*D5) -> 0.9583802273 | F5: 1 | G5: =DrehungxyzF(B5,C5,D5,$N$4,$N$6,$N$8,1) -> 0.3463266214 | H5: =DrehungxyzF(B5,C5,D5,$N$4,$N$6,$N$8,2) -> -0.3497089392 | I5: =DrehungxyzF(B5,C5,D5,$N$4,$N$6,$N$8,3) -> 0.8223467573 | J5: =PhiF(H5,G5) -> -45.27842097 | K5: =ThetaF(I5,E5) -> 30.90066162 | T5: =CoulombF(F5,$N$12,G5,H5,I5,$N$10) -> 7.802895279e-16 | AN5: =AN4/180*PI() -> 0.3490658504 | AO5: 0 | AP5: =COS(AN5) -> 0.9396926208 | AQ5: =SIN(AN5) -> 0.3420201433 | AR5: 1.5 | AS5: 2.093579218
A6: 2 | B6: 0 | C6: -0.29355 | D6: 0.37875 | E6: =SQRT(B6*B6+C6*C6+D6*D6) -> 0.4791901136 | F6: -2 | G6: 0.1731633107 | H6: -0.1748544696 | I6: 0.4111733786 | J6: =PhiF(H6,G6) -> -45.27842086 | K6: =ThetaF(I6,E6) -> 30.90066172 | M6: y-Achse (beta) | N6: 30 | T6: =CoulombF(F6,$N$12,G6,H6,I6,$N$10) -> -2.586825371e-15 | AC6: alpha | AD6: SF | AE6: Beta | AF6: SF | AG6: Gamma | AH6: SF | AO6: 0 | AP6: =-SIN(AN5) -> -0.3420201433 | AQ6: =COS(AN5) -> 0.9396926208 | AR6: 2 | AS6: 1.366355027
A7: 3 | B7: 0 | C7: 0 | D7: 0 | E7: 0 | F7: 8 | G7: 0 | H7: 0 | I7: 0 | J7: 0 | K7: 90 | T7: 1.634182542e-14 | AC7: 36 | AD7: -0.08684167516 | AE7: 36 | AF7: -0.2070393033 | AG7: 36 | AH7: -0.08566354236
A8: 4 | B8: 0 | C8: 0.5 | D8: 0 | E8: 0.5 | F8: -4 | G8: 0.1082531755 | H8: 0.4375 | I8: -0.2165063509 | J8: 76.10211318 | K8: =ThetaF(I8,E8) -> 115.6589062 | M8: z -Achse(gamma) | N8: 30 | T8: -2.178910057e-14 | AC8: 72 | AD8: 0.5458775577 | AE8: 72 | AF8: -0.4586563688 | AG8: 72 | AH8: 0.5379510426 | AN8: 30 | AO8: =COS(AN9) -> 0.8660254038 | AP8: 0 | AQ8: =SIN(AN9) -> 0.5 | AR8: =AS4 -> 1 | AS8: =MMULT(AO8:AQ10,AR8:AR10) -> 1.549202917
A9: 5 | B9: 0 | C9: -0.5871 | D9: -0.7575 | E9: 0.9583802273 | F9: 1 | G9: -0.6005483786 | H9: -0.6777160608 | I9: -0.3139032427 | J9: -48.45470217 | K9: 109.1192392 | T9: 6.239386407e-16 | AC9: 108 | AD9: 1.244592312 | AE9: 108 | AF9: -0.4586563688 | AG9: 108 | AH9: 1.11979895 | AN9: =AN8/180*PI() -> 0.5235987756 | AO9: 0 | AP9: 1 | AQ9: 0 | AR9: =AS5 -> 2.093579218 | AS9: 2.093579218
A10: 6 | B10: 0 | C10: -0.29355 | D10: -0.37875 | E10: 0.4791901136 | F10: -2 | G10: -0.3002741893 | H10: -0.3388580304 | I10: -0.1569516214 | J10: -48.4547021 | K10: 109.1192391 | M10: Abstand der Referenzladung auf y-Achse [pm] | N10: 1 | T10: -2.141966306e-15 | AC10: 144 | AD10: 1.800139705 | AE10: 144 | AF10: -0.2070393033 | AG10: 144 | AH10: 1.708667187 | AO10: =-SIN(AN9) -> -0.5 | AP10: 0 | AQ10: =COS(AN9) -> 0.8660254038 | AR10: 1.366355027 | AS10: 0.6832981636
A11: Nullpunkt | B11: 0 | C11: 0 | D11: 0 | E11: 0 | G11: 0 | H11: 0 | I11: 0 | J11: 0 | K11: 90 | S11: S | T11: =SUM(T5:T10) -> -8.77183865e-15 | AC11: 180 | AD11: 1.661547058 | AE11: 180 | AF11: 0.1246629656 | AG11: 180 | AH11: 1.982188351
A12: Reserve | M12: Ladung | N12: =P12-10 -> 1 | P12: 11 | AC12: 216 | AD12: 1.683223308 | AE12: 216 | AF12: 0.3923729711 | AG12: 216 | AH12: 1.602017194 | AN12: 40 | AO12: =COS(AN13) -> 0.7660444431 | AP12: =-SIN(AN13) -> -0.6427876097 | AQ12: 0 | AR12: =AS8 -> 1.549202917 | AS12: =MMULT(AO12:AQ14,AR12:AR14) -> -0.1589684952
AC13: 252 | AD13: 1.774950926 | AE13: 252 | AF13: 0.5421086309 | AG13: 252 | AH13: 1.403831646 | AN13: =AN12/180*PI() -> 0.6981317008 | AO13: =SIN(AN13) -> 0.6427876097 | AP13: =COS(AN13) -> 0.7660444431 | AQ13: 0 | AR13: =AS9 -> 2.093579218 | AS13: 2.599583166
AC14: 288 | AD14: 1.169877781 | AE14: 288 | AF14: 0.5421086309 | AG14: 288 | AH14: 1.067587296 | AO14: 0 | AP14: 0 | AQ14: 0 | AR14: =AS10 -> 0.6832981636 | AS14: 0
AC15: 324 | AD15: 0.4717749416 | AE15: 324 | AF15: 0.3923729711 | AG15: 324 | AH15: 0.4703039797
AC16: 360 | AD16: -0.1304647763 | AE16: 360 | AF16: 0.1246629656 | AG16: 360 | AH16: -0.1332263458
B34: Blasengröße
B35: x | C35: y | D35: z | AH35: Definitionen nach Bartsch:
B36: =1+G5 -> 1.346326621 | C36: =1+H5 -> 0.6502910608 | D36: 1.822346757
B37: =1+G6 -> 1.173163311 | C37: 0.8251455304 | D37: 1.411173379
B38: 1 | C38: 1 | D38: 1 | AI38: z | AJ38: P (r;phi;teta)
B39: 1.108253175 | C39: 1.4375 | D39: 0.7834936491
B40: 0.3994516214 | C40: 0.3222839392 | D40: 0.6860967573
B41: 0.6997258107 | C41: 0.6611419696 | D41: 0.8430483786 | AJ41: teta
AI43: 0 | AL43: y
AJ45: phi
AH46: x
C70: winkel alpha dreht sich um die x-Achse
C71: winkel theta dreht sich um die y-Achse
C72: winkel phi dreht sich um die z-Achse

Sheet Molgewicht
A1: Berechnen des Molgewichts aus der Summenformel | AA1: Atomtabelle
A2: Beispiele | Z2: Nr. | AA2: Atom | AB2: Atomgewicht
A3: Formel | B3: MG [g/mol] | C3: Name | Z3: 1 | AA3: C | AB3: 12
A4: CCl4 | B4: =MolgewichtF(A4) -> 0 | C4: Tetrachlorkohlenstoff | Z4: 2 | AA4: H | AB4: 1
A5: H2O | B5: 0 | C5: Wasser | Z5: 3 | AA5: S | AB5: 32
A6: C6H6 | B6: 0 | C6: Benzol | Z6: 4 | AA6: N | AB6: 14
A7: C2H6O | B7: 0 | C7: Ethanol, Methylether | Z7: 5 | AA7: O | AB7: 16
A8: C2H5OH | B8: 0 | C8: Ethanol, Methylether | Z8: 6 | AA8: Cl | AB8: 35.5
A9: CH3OCH3 | B9: 0 | C9: Methylether
A10: C2H5OC2H5 | B10: 0 | C10: Ethylether
A11: Cl2CCCl2 | B11: 0 | C11: Tetrachlorethylen
A12: C6H5CH3 | B12: 0 | C12: Toluol
A13: C10H8 | B13: 0 | C13: Naphthalin

Sheet Newton
A1: Nullstellensuche nach dem Newton-Raphson Verfahren
A3: a | B3: 1
A4: b | B4: 1
A5: y0 | B5: 10
A7: Lfd Nr. | B7: x | C7: p
A8: 1 | B8: 2 | C8: =NewtonNullstelleF($B$5,$B$3,$B$4,B8) -> -5
A9: 2 | B9: 2.1 | C9: =NewtonNullstelleF($B$5,$B$3,$B$4,B9) -> -4.59
A10: 3 | B10: 2.2 | C10: =NewtonNullstelleF($B$5,$B$3,$B$4,B10) -> -4.16
A11: 4 | B11: 2.3 | C11: -3.71
A12: 5 | B12: 2.4 | C12: -3.24
A13: 6 | B13: 2.5 | C13: -2.75
A14: 7 | B14: 2.6 | C14: -2.24
A15: 8 | B15: 2.7 | C15: -1.71
A16: 9 | B16: 2.8 | C16: -1.16
A17: 10 | B17: 2.9 | C17: =NewtonNullstelleF($B$5,$B$3,$B$4,B17) -> -0.59
A18: 11 | B18: 3 | C18: =NewtonNullstelleF($B$5,$B$3,$B$4,B18) -> 0
A19: 12 | B19: 3.1 | C19: 0.61
A20: 13 | B20: 3.2 | C20: 1.24
A21: 14 | B21: 3.3 | C21: 1.89
A22: 15 | B22: 3.4 | C22: 2.56
A23: 16 | B23: 3.5 | C23: 3.25
A24: 17 | B24: 3.6 | C24: 3.96
A25: 18 | B25: 3.7 | C25: 4.69
A26: 19 | B26: 3.8 | C26: 5.44
A27: 20 | B27: 3.9 | C27: 6.21

Sheet Polymer
A1: Polymerisation und die Poisson- sowie Schulz-Flory-Verteilung
A3: α (U) | C3: 0.99
A4: ν | C4: 100
A5: mode | C5: 0
C6: Poisson | D6: Poisson | E6: Poisson | F6: Schulz-Flory | G6: Schulz-Flory
A7: P | B7: P-1 | C7: wp | D7: Excel | E7: VBA | F7: wp | G7: VBA
A8: 1 | B8: =A8-1 -> 0 | C8: =A8/($C$4+1)*POISSON(B8,$C$4,$C$5) -> 0 | D8: =A8/($C$4+1)*EXP(-$C$4)*$C$4^B8/FACT(B8) -> 3.683243541e-46 | E8: =PoissonF(A8,$C$4) -> 3.683243541e-46 | F8: =A8*(1-$C$3)^2*$C$3^(B8) -> 0.0001 | G8: =SchulzFloryF(A8,$C$3) -> 0.0001
A9: 2 | B9: =A9-1 -> 1 | C9: =A9/($C$4+1)*POISSON(B9,$C$4,$C$5) -> 0 | D9: =A9/($C$4+1)*EXP(-$C$4)*$C$4^B9/FACT(B9) -> 7.366487081e-44 | E9: =PoissonF(A9,$C$4) -> 7.366487081e-44 | F9: =A9*(1-$C$3)^2*$C$3^(B9) -> 0.000198 | G9: =SchulzFloryF(A9,$C$3) -> 0.000198
A10: 3 | B10: 2 | C10: 0 | D10: 5.524865311e-42 | E10: 5.524865311e-42 | F10: 0.00029403 | G10: 0.00029403
A11: 4 | B11: 3 | C11: 0 | D11: 2.455495694e-40 | E11: 2.455495694e-40 | F11: 0.0003881196 | G11: 0.0003881196
A12: 5 | B12: 4 | C12: 0 | D12: 7.673424043e-39 | E12: 7.673424043e-39 | F12: 0.000480298005 | G12: 0.000480298005
A13: 6 | B13: 5 | C13: 0 | D13: 1.84162177e-37 | E13: 1.84162177e-37 | F13: 0.0005705940299 | G13: 0.0005705940299
A14: 7 | B14: 6 | C14: 0 | D14: 3.58093122e-36 | E14: 3.58093122e-36 | F14: 0.0006590361046 | G14: 0.0006590361046
A15: 8 | B15: 7 | C15: 0 | D15: 5.846418318e-35 | E15: 5.846418318e-35 | F15: 0.0007456522783 | G15: 0.0007456522783
A16: 9 | B16: 8 | C16: 0 | D16: 8.22152576e-34 | E16: 8.22152576e-34 | F16: 0.000830470225 | G16: 0.000830470225
A17: 10 | B17: 9 | C17: 0 | D17: 1.01500318e-32 | E17: 1.01500318e-32 | F17: 0.0009135172475 | G17: 0.0009135172475
A18: 11 | B18: 10 | C18: 0 | D18: 1.116503498e-31 | E18: 1.116503498e-31 | F18: 0.0009948202825 | G18: 0.0009948202825
A19: 12 | B19: 11 | C19: 0 | D19: 1.107276197e-30 | E19: 1.107276197e-30 | F19: 0.001074405905 | G19: 0.001074405905
A20: 13 | B20: 12 | C20: 0 | D20: 9.996243442e-30 | E20: 9.996243442e-30 | F20: 0.001152300333 | G20: 0.001152300333
A21: 14 | B21: 13 | C21: 0 | D21: 8.280911727e-29 | E21: 8.280911727e-29 | F21: 0.001228529432 | G21: 0.001228529432
A22: 15 | B22: 14 | C22: 0 | D22: 6.337432444e-28 | E22: 6.337432444e-28 | F22: 0.001303118719 | G22: 0.001303118719
A23: 16 | B23: 15 | C23: 0 | D23: 4.506618627e-27 | E23: 4.506618627e-27 | F23: 0.001376093367 | G23: 0.001376093367
A24: 17 | B24: 16 | C24: 0 | D24: 2.992676432e-26 | E24: 2.992676432e-26 | F24: 0.001447478211 | G24: 0.001447478211
A25: 18 | B25: 17 | C25: 0 | D25: 1.863950719e-25 | E25: 1.863950719e-25 | F25: 0.001517297748 | G25: 0.001517297748
A26: 19 | B26: 18 | C26: 0 | D26: 1.09305752e-24 | E26: 1.09305752e-24 | F26: 0.001585576147 | G26: 0.001585576147
A27: 20 | B27: 19 | C27: 0 | D27: 6.055720334e-24 | E27: 6.055720334e-24 | F27: 0.001652337248 | G27: 0.001652337248
A28: 21 | B28: 20 | C28: 0 | D28: 3.179253176e-23 | E28: 3.179253176e-23 | F28: 0.001717604569 | G28: 0.001717604569
A29: 22 | B29: 21 | C29: 0 | D29: 1.586021992e-22 | E29: 1.586021992e-22 | F29: 0.00178140131 | G29: 0.00178140131
A30: 23 | B30: 22 | C30: 0 | D30: 7.536881369e-22 | E30: 7.536881369e-22 | F30: 0.001843750356 | G30: 0.001843750356
A31: 24 | B31: 23 | C31: 0 | D31: 3.419379071e-21 | E31: 3.419379071e-21 | F31: 0.001904674281 | G31: 0.001904674281
A32: 25 | B32: 24 | C32: 0 | D32: 1.484105499e-20 | E32: 1.484105499e-20 | F32: 0.001964195352 | G32: 0.001964195352
A33: 26 | B33: 25 | C33: 0 | D33: 6.173878878e-20 | E33: 6.173878878e-20 | F33: 0.002022335534 | G33: 0.002022335534
A34: 27 | B34: 26 | C34: 0 | D34: 2.465898368e-19 | E34: 2.465898368e-19 | F34: 0.002079116494 | G34: 0.002079116494
A35: 28 | B35: 27 | C35: 0 | D35: 9.471214584e-19 | E35: 9.471214584e-19 | F35: 0.0021345596 | G35: 0.0021345596
A36: 29 | B36: 28 | C36: 0 | D36: 3.503382945e-18 | E36: 3.503382945e-18 | F36: 0.002188685933 | G36: 0.002188685933
A37: 30 | B37: 29 | C37: 0 | D37: 1.249720432e-17 | E37: 1.249720432e-17 | F37: 0.002241516283 | G37: 0.002241516283
A38: 31 | B38: 30 | C38: 0 | D38: 4.3045926e-17 | E38: 4.3045926e-17 | F38: 0.002293071158 | G38: 0.002293071158
A39: 32 | B39: 31 | C39: 0 | D39: 1.433371105e-16 | E39: 1.433371105e-16 | F39: 0.002343370783 | G39: 0.002343370783
A40: 33 | B40: 32 | C40: 0 | D40: 4.619262351e-16 | E40: 4.619262351e-16 | F40: 0.002392435109 | G40: 0.002392435109
A41: 34 | B41: 33 | C41: 0 | D41: 1.442193939e-15 | E41: 1.442193939e-15 | F41: 0.002440283811 | G41: 0.002440283811
A42: 35 | B42: 34 | C42: 0 | D42: 4.36650414e-15 | E42: 4.36650414e-15 | F42: 0.002486936295 | G42: 0.002486936295
A43: 36 | B43: 35 | C43: 1.283217543e-14 | D43: 1.283217543e-14 | E43: 1.283217543e-14 | F43: 0.002532411702 | G43: 0.002532411702
A44: 37 | B44: 36 | C44: 3.663506875e-14 | D44: 3.663506875e-14 | E44: 3.663506875e-14 | F44: 0.002576728907 | G44: 0.002576728907
A45: 38 | B45: 37 | C45: 1.016897452e-13 | D45: 1.016897452e-13 | E45: 1.016897452e-13 | F45: 0.002619906526 | G45: 0.002619906526
A46: 39 | B46: 38 | C46: 2.746468189e-13 | D46: 2.746468189e-13 | E46: 2.746468189e-13 | F46: 0.002661962921 | G46: 0.002661962921
A47: 40 | B47: 39 | C47: 7.222796025e-13 | D47: 7.222796025e-13 | E47: 7.222796025e-13 | F47: 0.002702916196 | G47: 0.002702916196
A48: 41 | B48: 40 | C48: 1.850841482e-12 | D48: 1.850841482e-12 | E48: 1.850841482e-12 | F48: 0.00274278421 | G48: 0.00274278421
A49: 42 | B49: 41 | C49: 4.624351114e-12 | D49: 4.624351114e-12 | E49: 4.624351114e-12 | F49: 0.002781584572 | G49: 0.002781584572
A50: 43 | B50: 42 | C50: 1.127251122e-11 | D50: 1.127251122e-11 | E50: 1.127251122e-11 | F50: 0.002819334648 | G50: 0.002819334648
A51: 44 | B51: 43 | C51: 2.682479684e-11 | D51: 2.682479684e-11 | E51: 2.682479684e-11 | F51: 0.002856051565 | G51: 0.002856051565
A52: 45 | B52: 44 | C52: 6.235102572e-11 | D52: 6.235102572e-11 | E52: 6.235102572e-11 | F52: 0.002891752209 | G52: 0.002891752209
A53: 46 | B53: 45 | C53: 1.416368979e-10 | D53: 1.416368979e-10 | E53: 1.416368979e-10 | F53: 0.002926453236 | G53: 0.002926453236
A54: 47 | B54: 46 | C54: 3.145999151e-10 | D54: 3.145999151e-10 | E54: 3.145999151e-10 | F54: 0.002960171067 | G54: 0.002960171067
A55: 48 | B55: 47 | C55: 6.836032559e-10 | D55: 6.836032559e-10 | E55: 6.836032559e-10 | F55: 0.002992921895 | G55: 0.002992921895
A56: 49 | B56: 48 | C56: 1.45384373e-09 | D56: 1.45384373e-09 | E56: 1.45384373e-09 | F56: 0.003024721691 | G56: 0.003024721691
A57: 50 | B57: 49 | C57: 3.027579613e-09 | D57: 3.027579613e-09 | E57: 3.027579613e-09 | F57: 0.003055586198 | G57: 0.003055586198
A58: 51 | B58: 50 | C58: 6.17626241e-09 | D58: 6.17626241e-09 | E58: 6.17626241e-09 | F58: 0.003085530942 | G58: 0.003085530942
A59: 52 | B59: 51 | C59: 1.234777568e-08 | D59: 1.234777568e-08 | E59: 1.234777568e-08 | F59: 0.003114571234 | G59: 0.003114571234
A60: 53 | B60: 52 | C60: 2.420237096e-08 | D60: 2.420237096e-08 | E60: 2.420237096e-08 | F60: 0.003142722166 | G60: 0.003142722166
A61: 54 | B61: 53 | C61: 4.652645183e-08 | D61: 4.652645183e-08 | E61: 4.652645183e-08 | F61: 0.003169998622 | G61: 0.003169998622
A62: 55 | B62: 54 | C62: 8.775565331e-08 | D62: 8.775565331e-08 | E62: 8.775565331e-08 | F62: 0.003196415278 | G62: 0.003196415278
A63: 56 | B63: 55 | C63: 1.624567466e-07 | D63: 1.624567466e-07 | E63: 1.624567466e-07 | F63: 0.0032219866 | G63: 0.0032219866
A64: 57 | B64: 56 | C64: 2.952817142e-07 | D64: 2.952817142e-07 | E64: 2.952817142e-07 | F64: 0.003246726854 | G64: 0.003246726854
A65: 58 | B65: 57 | C65: 5.271264828e-07 | D65: 5.271264828e-07 | E65: 5.271264828e-07 | F65: 0.003270650105 | G65: 0.003270650105
A66: 59 | B66: 58 | C66: 9.245083972e-07 | D66: 9.245083972e-07 | E66: 9.245083972e-07 | F66: 0.003293770217 | G66: 0.003293770217
A67: 60 | B67: 59 | C67: 1.593522087e-06 | D67: 1.593522087e-06 | E67: 1.593522087e-06 | F67: 0.003316100863 | G67: 0.003316100863
A68: 61 | B68: 60 | C68: 2.700134647e-06 | D68: 2.700134647e-06 | E68: 2.700134647e-06 | F68: 0.003337655519 | G68: 0.003337655519
A69: 62 | B69: 61 | C69: 4.499014999e-06 | D69: 4.499014999e-06 | E69: 4.499014999e-06 | F69: 0.003358447471 | G69: 0.003358447471
A70: 63 | B70: 62 | C70: 7.373515736e-06 | D70: 7.373515736e-06 | E70: 7.373515736e-06 | F70: 0.003378489819 | G70: 0.003378489819
A71: 64 | B71: 63 | C71: 1.18897709e-05 | D71: 1.18897709e-05 | E71: 1.18897709e-05 | F71: 0.003397795475 | G71: 0.003397795475
A72: 65 | B72: 64 | C72: 1.886804465e-05 | D72: 1.886804465e-05 | E72: 1.886804465e-05 | F72: 0.003416377169 | G72: 0.003416377169
A73: 66 | B73: =A73-1 -> 65 | C73: =A73/($C$4+1)*POISSON(B73,$C$4,$C$5) -> 2.947434193e-05 | D73: =A73/($C$4+1)*EXP(-$C$4)*$C$4^B73/FACT(B73) -> 2.947434193e-05 | E73: =PoissonF(A73,$C$4) -> 2.947434193e-05 | F73: =A73*(1-$C$3)^2*$C$3^(B73) -> 0.003434247449 | G73: =SchulzFloryF(A73,$C$3) -> 0.003434247449
A74: 67 | B74: 66 | C74: 4.533473162e-05 | D74: 4.533473162e-05 | E74: 4.533473162e-05 | F74: 0.003451418687 | G74: 0.003451418687
A75: 68 | B75: 67 | C75: 6.867368568e-05 | D75: 6.867368568e-05 | E75: 6.867368568e-05 | F75: 0.003467903074 | G75: 0.003467903074
A76: 69 | B76: 68 | C76: 0.0001024758718 | D76: 0.0001024758718 | E76: 0.0001024758718 | F76: 0.003483712633 | G76: 0.003483712633
A77: 70 | B77: 69 | C77: 0.0001506681585 | D77: 0.0001506681585 | E77: 0.0001506681585 | F77: 0.003498859209 | G77: 0.003498859209
A78: 71 | B78: 70 | C78: 0.0002183150868 | D78: 0.0002183150868 | E78: 0.0002183150868 | F78: 0.003513354483 | G78: 0.003513354483
A79: 72 | B79: 71 | C79: 0.000311816827 | D79: 0.000311816827 | E79: 0.000311816827 | F79: 0.003527209966 | G79: 0.003527209966
A80: 73 | B80: 72 | C80: 0.0004390939115 | D80: 0.0004390939115 | E80: 0.0004390939115 | F80: 0.003540437003 | G80: 0.003540437003
A81: 74 | B81: 73 | C81: 0.0006097382145 | D81: 0.0006097382145 | E81: 0.0006097382145 | F81: 0.003553046779 | G81: 0.003553046779
A82: 75 | B82: 74 | C82: 0.0008351052974 | D82: 0.0008351052974 | E82: 0.0008351052974 | F82: 0.003565050315 | G82: 0.003565050315
A83: 76 | B83: 75 | C83: 0.001128320046 | D83: 0.001128320046 | E83: 0.001128320046 | F83: 0.003576458476 | G83: 0.003576458476
A84: 77 | B84: 76 | C84: 0.001504166267 | D84: 0.001504166267 | E84: 0.001504166267 | F84: 0.003587281969 | G84: 0.003587281969
A85: 78 | B85: 77 | C85: 0.001978832329 | D85: 0.001978832329 | E85: 0.001978832329 | F85: 0.003597531346 | G85: 0.003597531346
A86: 79 | B86: 78 | C86: 0.002569489711 | D86: 0.002569489711 | E86: 0.002569489711 | F86: 0.003607217007 | G86: 0.003607217007
A87: 80 | B87: 79 | C87: 0.003293689743 | D87: 0.003293689743 | E87: 0.003293689743 | F87: 0.003616349202 | G87: 0.003616349202
A88: 81 | B88: 80 | C88: 0.004168576081 | D88: 0.004168576081 | E88: 0.004168576081 | F88: 0.003624938031 | G88: 0.003624938031
A89: 82 | B89: 81 | C89: 0.005209925906 | D89: 0.005209925906 | E89: 0.005209925906 | F89: 0.003632993449 | G89: 0.003632993449
A90: 83 | B90: 82 | C90: 0.006431050716 | D90: 0.006431050716 | E90: 0.006431050716 | F90: 0.003640525265 | G90: 0.003640525265
A91: 84 | B91: 83 | C91: 0.007841606331 | D91: 0.007841606331 | E91: 0.007841606331 | F91: 0.003647543145 | G91: 0.003647543145
A92: 85 | B92: 84 | C92: 0.009446379509 | D92: 0.009446379509 | E92: 0.009446379509 | F92: 0.003654056615 | G92: 0.003654056615
A93: 86 | B93: 85 | C93: 0.01124413339 | D93: 0.01124413339 | E93: 0.01124413339 | F93: 0.003660075061 | G93: 0.003660075061
A94: 87 | B94: 86 | C94: 0.01322660364 | D94: 0.01322660364 | E94: 0.01322660364 | F94: 0.003665607733 | G94: 0.003665607733
A95: 88 | B95: 87 | C95: 0.01537773973 | D95: 0.01537773973 | E95: 0.01537773973 | F95: 0.003670663743 | G95: 0.003670663743
A96: 89 | B96: 88 | C96: 0.01767328043 | D96: 0.01767328043 | E96: 0.01767328043 | F96: 0.003675252073 | G96: 0.003675252073
A97: 90 | B97: 89 | C97: 0.02008073777 | D97: 0.02008073777 | E97: 0.02008073777 | F97: 0.00367938157 | G97: 0.00367938157
A98: 91 | B98: 90 | C98: 0.0225598412 | D98: 0.0225598412 | E98: 0.0225598412 | F98: 0.003683060951 | G98: 0.003683060951
A99: 92 | B99: 91 | C99: 0.02506346323 | D99: 0.02506346323 | E99: 0.02506346323 | F99: 0.003686298807 | G99: 0.003686298807
A100: 93 | B100: 92 | C100: 0.02753901324 | D100: 0.02753901324 | E100: 0.02753901324 | F100: 0.0036891036 | G100: 0.0036891036
A101: 94 | B101: 93 | C101: 0.02993024909 | D101: 0.02993024909 | E101: 0.02993024909 | F101: 0.003691483667 | G101: 0.003691483667
A102: 95 | B102: 94 | C102: 0.03217942128 | D102: 0.03217942128 | E102: 0.03217942128 | F102: 0.003693447222 | G102: 0.003693447222
A103: 96 | B103: 95 | C103: 0.03422963371 | D103: 0.03422963371 | E103: 0.03422963371 | F103: 0.003695002357 | G103: 0.003695002357
A104: 97 | B104: 96 | C104: 0.03602728375 | D104: 0.03602728375 | E104: 0.03602728375 | F104: 0.003696157046 | G104: 0.003696157046
A105: 98 | B105: 97 | C105: 0.037524432 | D105: 0.037524432 | E105: 0.037524432 | F105: 0.00369691914 | G105: 0.00369691914
A106: 99 | B106: 98 | C106: 0.03868095344 | D106: 0.03868095344 | E106: 0.03868095344 | F106: 0.003697296376 | G106: 0.003697296376
A107: 100 | B107: 99 | C107: 0.03946633347 | D107: 0.03946633347 | E107: 0.03946633347 | F107: 0.003697296376 | G107: 0.003697296376
A108: 101 | B108: 100 | C108: 0.03986099681 | D108: 0.03986099681 | E108: 0.03986099681 | F108: 0.003696926647 | G108: 0.003696926647
A109: 102 | B109: 101 | C109: 0.03985708925 | D109: 0.03985708925 | E109: 0.03985708925 | F109: 0.003696194582 | G109: 0.003696194582
A110: 103 | B110: 102 | C110: 0.0394586716 | D110: 0.0394586716 | E110: 0.0394586716 | F110: 0.003695107466 | G110: 0.003695107466
A111: 104 | B111: 103 | C111: 0.03868132572 | D111: 0.03868132572 | E111: 0.03868132572 | F111: 0.003693672473 | G111: 0.003693672473
A112: 105 | B112: 104 | C112: 0.03755121303 | D112: 0.03755121303 | E112: 0.03755121303 | F112: 0.003691896669 | G112: 0.003691896669
A113: 106 | B113: 105 | C113: 0.0361036606 | D113: 0.0361036606 | E113: 0.0361036606 | F113: 0.003689787014 | G113: 0.003689787014
A114: 107 | B114: 106 | C114: 0.03438137846 | D114: 0.03438137846 | E114: 0.03438137846 | F114: 0.003687350362 | G114: 0.003687350362
A115: 108 | B115: 107 | C115: 0.03243242968 | D115: 0.03243242968 | E115: 0.03243242968 | F115: 0.003684593464 | G115: 0.003684593464
A116: 109 | B116: 108 | C116: 0.03030808329 | D116: 0.03030808329 | E116: 0.03030808329 | F116: 0.00368152297 | G116: 0.00368152297
A117: 110 | B117: 109 | C117: 0.02806067807 | D117: 0.02806067807 | E117: 0.02806067807 | F117: 0.003678145426 | G117: 0.003678145426
A118: 111 | B118: 110 | C118: 0.02574161377 | D118: 0.02574161377 | E118: 0.02574161377 | F118: 0.00367446728 | G118: 0.00367446728
A119: 112 | B119: 111 | C119: 0.02339956775 | D119: 0.02339956775 | E119: 0.02339956775 | F119: 0.003670494883 | G119: 0.003670494883
A120: 113 | B120: 112 | C120: 0.02107901112 | D120: 0.02107901112 | E120: 0.02107901112 | F120: 0.003666234487 | G120: 0.003666234487
A121: 114 | B121: 113 | C121: 0.01881907172 | D121: 0.01881907172 | E121: 0.01881907172 | F121: 0.00366169225 | G121: 0.00366169225
A122: 115 | B122: 114 | C122: 0.0166527643 | D122: 0.0166527643 | E122: 0.0166527643 | F122: 0.003656874234 | G122: 0.003656874234
A123: 116 | B123: 115 | C123: 0.01460658343 | D123: 0.01460658343 | E123: 0.01460658343 | F123: 0.003651786409 | G123: 0.003651786409
A124: 117 | B124: 116 | C124: 0.01270043298 | D124: 0.01270043298 | E124: 0.01270043298 | F124: 0.003646434653 | G124: 0.003646434653
A125: 118 | B125: 117 | C125: 0.0109478493 | D125: 0.0109478493 | E125: 0.0109478493 | F125: 0.003640824753 | G125: 0.003640824753
A126: 119 | B126: 118 | C126: 0.009356464142 | D126: 0.009356464142 | E126: 0.009356464142 | F126: 0.003634962409 | G126: 0.003634962409
A127: 120 | B127: 119 | C127: 0.007928646967 | D127: 0.007928646967 | E127: 0.007928646967 | F127: 0.003628853228 | G127: 0.003628853228
A128: 121 | B128: 120 | C128: 0.006662265854 | D128: 0.006662265854 | E128: 0.006662265854 | F128: 0.003622502735 | G128: 0.003622502735
A129: 122 | B129: 121 | C129: 0.00555150901 | D129: 0.00555150901 | E129: 0.00555150901 | F129: 0.003615916366 | G129: 0.003615916366
A130: 123 | B130: 122 | C130: 0.004587715723 | D130: 0.004587715723 | E130: 0.004587715723 | F130: 0.003609099475 | G130: 0.003609099475
A131: 124 | B131: 123 | C131: 0.003760174167 | D131: 0.003760174167 | E131: 0.003760174167 | F131: 0.003602057329 | G131: 0.003602057329
A132: 125 | B132: 124 | C132: 0.003056853348 | D132: 0.003056853348 | E132: 0.003056853348 | F132: 0.003594795117 | G132: 0.003594795117
A133: 126 | B133: 125 | C133: 0.00246504654 | D133: 0.00246504654 | E133: 0.00246504654 | F133: 0.003587317943 | G133: 0.003587317943
A134: 127 | B134: 126 | C134: 0.001971913017 | D134: 0.001971913017 | E134: 0.001971913017 | F134: 0.003579630833 | G134: 0.003579630833
A135: 128 | B135: 127 | C135: 0.0015649133 | D135: 0.0015649133 | E135: 0.0015649133 | F135: 0.003571738734 | G135: 0.003571738734
A136: 129 | B136: 128 | C136: 0.001232139989 | D136: 0.001232139989 | E136: 0.001232139989 | F136: 0.003563646513 | G136: 0.003563646513
A137: 130 | B137: =A137-1 -> 129 | C137: =A137/($C$4+1)*POISSON(B137,$C$4,$C$5) -> 0.0009625515204 | D137: =A137/($C$4+1)*EXP(-$C$4)*$C$4^B137/FACT(B137) -> 0.0009625515204 | E137: =PoissonF(A137,$C$4) -> 0.0009625515204 | F137: =A137*(1-$C$3)^2*$C$3^(B137) -> 0.003555358963 | G137: =SchulzFloryF(A137,$C$3) -> 0.003555358963
A138: 131 | B138: 130 | C138: 0.0007461198176 | D138: 0.0007461198176 | E138: 0.0007461198176 | F138: 0.0035468808 | G138: 0.0035468808
A139: 132 | B139: 131 | C139: 0.0005739048769 | D139: 0.0005739048769 | E139: 0.0005739048769 | F139: 0.003538216663 | G139: 0.003538216663
A140: 133 | B140: 132 | C140: 0.0004380701827 | D140: 0.0004380701827 | E140: 0.0004380701827 | F140: 0.003529371122 | G140: 0.003529371122
A141: 134 | B141: 133 | C141: 0.0003318525891 | D141: 0.0003318525891 | E141: 0.0003318525891 | F141: 0.003520348669 | G141: 0.003520348669
A142: 135 | B142: 134 | C142: 0.000249499329 | D142: 0.000249499329 | E142: 0.000249499329 | F142: 0.003511153729 | G142: 0.003511153729
A143: 136 | B143: 135 | C143: 0.0001861833128 | D143: 0.0001861833128 | E143: 0.0001861833128 | F143: 0.003501790652 | G143: 0.003501790652
A144: 137 | B144: 136 | C144: 0.0001379061086 | D144: 0.0001379061086 | E144: 0.0001379061086 | F144: 0.003492263722 | G144: 0.003492263722
A145: 138 | B145: 137 | C145: 0.0001013961478 | D145: 0.0001013961478 | E145: 0.0001013961478 | F145: 0.003482577151 | G145: 0.003482577151
A146: 139 | B146: 138 | C146: 7.400790038e-05 | D146: 7.400790038e-05 | E146: 7.400790038e-05 | F146: 0.003472735085 | G146: 0.003472735085
A147: 140 | B147: 139 | C147: 5.362613764e-05 | D147: 5.362613764e-05 | E147: 5.362613764e-05 | F147: 0.003462741603 | G147: 0.003462741603
A148: 141 | B148: 140 | C148: 3.857798677e-05 | D148: 3.857798677e-05 | E148: 3.857798677e-05 | F148: 0.003452600716 | G148: 0.003452600716
A149: 142 | B149: 141 | C149: 2.755431881e-05 | D149: 2.755431881e-05 | E149: 2.755431881e-05 | F149: 0.003442316374 | G149: 0.003442316374
A150: 143 | B150: 142 | C150: 1.954110092e-05 | D150: 1.954110092e-05 | E150: 1.954110092e-05 | F150: 0.003431892458 | G150: 0.003431892458
A151: 144 | B151: 143 | C151: 1.376066572e-05 | D151: 1.376066572e-05 | E151: 1.376066572e-05 | F151: 0.003421332789 | G151: 0.003421332789
A152: 145 | B152: 144 | C152: 9.622379093e-06 | D152: 9.622379093e-06 | E152: 9.622379093e-06 | F152: 0.003410641124 | G152: 0.003410641124
A153: 146 | B153: 145 | C153: 6.681889882e-06 | D153: 6.681889882e-06 | E153: 6.681889882e-06 | F153: 0.003399821159 | G153: 0.003399821159
A154: 147 | B154: 146 | C154: 4.607983733e-06 | D154: 4.607983733e-06 | E154: 4.607983733e-06 | F154: 0.003388876529 | G154: 0.003388876529
A155: 148 | B155: 147 | C155: 3.156007185e-06 | D155: 3.156007185e-06 | E155: 3.156007185e-06 | F155: 0.00337781081 | G155: 0.00337781081
A156: 149 | B156: 148 | C156: 2.146845647e-06 | D156: 2.146845647e-06 | E156: 2.146845647e-06 | F156: 0.003366627517 | G156: 0.003366627517
A157: 150 | B157: 149 | C157: 1.450506045e-06 | D157: 1.450506045e-06 | E157: 1.450506045e-06 | F157: 0.00335533011 | G157: 0.00335533011
A158: 151 | B158: 150 | C158: 9.734507236e-07 | D158: 9.734507236e-07 | E158: 9.734507236e-07 | F158: 0.003343921987 | G158: 0.003343921987
A159: 152 | B159: 151 | C159: 6.489386868e-07 | D159: 6.489386868e-07 | E159: 6.489386868e-07 | F159: 0.003332406494 | G159: 0.003332406494
A160: 153 | B160: 152 | C160: 4.297421186e-07 | D160: 4.297421186e-07 | E160: 4.297421186e-07 | F160: 0.003320786919 | G160: 0.003320786919
A161: 154 | B161: 153 | C161: 2.827130004e-07 | D161: 2.827130004e-07 | E161: 2.827130004e-07 | F161: 0.003309066495 | G161: 0.003309066495
A162: 155 | B162: 154 | C162: 1.847719475e-07 | D162: 1.847719475e-07 | E162: 1.847719475e-07 | F162: 0.0032972484 | G162: 0.0032972484
A163: 156 | B163: 155 | C163: 1.1997679e-07 | F163: 0.003285335761 | G163: 0.003285335761
A164: 157 | B164: 156 | C164: 7.740120001e-08 | F164: 0.003273331649 | G164: 0.003273331649
A165: 158 | B165: 157 | C165: 4.961414095e-08 | F165: 0.003261239086 | G165: 0.003261239086
A166: 159 | B166: 158 | C166: 3.160009778e-08 | F166: 0.003249061042 | G166: 0.003249061042
A167: 160 | B167: 159 | C167: 1.999927078e-08 | F167: 0.003236800434 | G167: 0.003236800434
A168: 161 | B168: 160 | C168: 1.257766639e-08 | F168: 0.003224460132 | G168: 0.003224460132
A169: 162 | B169: 161 | C169: 7.860738223e-09 | F169: 0.003212042957 | G169: 0.003212042957
A170: 163 | B170: 162 | C170: 4.882260061e-09 | F170: 0.003199551679 | G170: 0.003199551679
A171: 164 | B171: 163 | C171: 3.013627348e-09 | F171: 0.003186989022 | G171: 0.003186989022
A172: 165 | B172: 164 | C172: 1.848782393e-09 | F172: 0.003174357663 | G172: 0.003174357663
A173: 166 | B173: 165 | C173: 1.12726493e-09 | F173: 0.003161660232 | G173: 0.003161660232
A174: 167 | B174: 166 | C174: 6.831660739e-10 | F174: 0.003148899314 | G174: 0.003148899314
A175: 168 | B175: 167 | C175: 4.115310711e-10 | F175: 0.003136077449 | G175: 0.003136077449
A176: 169 | B176: 168 | C176: 2.4641706e-10 | F176: 0.003123197131 | G176: 0.003123197131
A177: 170 | B177: 169 | C177: 1.466716859e-10 | F177: 0.003110260811 | G177: 0.003110260811
A178: 171 | B178: 170 | C178: 8.678497675e-11 | F178: 0.003097270898 | G178: 0.003097270898
A179: 172 | B179: 171 | C179: 5.104824049e-11 | F179: 0.003084229758 | G179: 0.003084229758
A180: 173 | B180: 172 | C180: 2.985176313e-11 | F180: 0.003071139713 | G180: 0.003071139713
A181: 174 | B181: 173 | C181: 1.735509634e-11 | F181: 0.003058003046 | G181: 0.003058003046
A182: 175 | B182: 174 | C182: 1.003151625e-11 | F182: 0.003044821998 | G182: 0.003044821998
A183: 176 | B183: 175 | C183: 5.765050972e-12 | F183: 0.003031598771 | G183: 0.003031598771
A184: 177 | B184: 176 | C184: 3.294208491e-12 | F184: 0.003018335527 | G184: 0.003018335527
A185: 178 | B185: 177 | C185: 1.871649626e-12 | F185: 0.003005034387 | G185: 0.003005034387
A186: 179 | B186: 178 | C186: 1.057395793e-12 | F186: 0.002991697437 | G186: 0.002991697437
A187: 180 | B187: 179 | C187: 5.940240402e-13 | F187: 0.002978326722 | G187: 0.002978326722
A188: 181 | B188: 180 | C188: 3.318467632e-13 | F188: 0.002964924252 | G188: 0.002964924252
A189: 182 | B189: 181 | C189: 1.843536855e-13 | F189: 0.002951491998 | G189: 0.002951491998
A190: 183 | B190: 182 | C190: 1.0184979e-13 | F190: 0.002938031897 | G190: 0.002938031897
A191: 184 | B191: 183 | C191: 5.595975205e-14 | F191: 0.002924545849 | G191: 0.002924545849
A192: 185 | B192: 184 | C192: 0 | F192: 0.002911035719 | G192: 0.002911035719
A193: 186 | B193: 185 | C193: 0 | F193: 0.002897503337 | G193: 0.002897503337
A194: 187 | B194: 186 | C194: 0 | F194: 0.002883950499 | G194: 0.002883950499
A195: 188 | B195: 187 | C195: 0 | F195: 0.002870378967 | G195: 0.002870378967
A196: 189 | B196: 188 | C196: 0 | F196: 0.002856790471 | G196: 0.002856790471
A197: 190 | B197: 189 | C197: 0 | F197: 0.002843186706 | G197: 0.002843186706
A198: 191 | B198: 190 | C198: 0 | F198: 0.002829569339 | G198: 0.002829569339
A199: 192 | B199: 191 | C199: 0 | F199: 0.002815939999 | G199: 0.002815939999
A200: 193 | B200: 192 | C200: 0 | F200: 0.00280230029 | G200: 0.00280230029
A201: 194 | B201: =A201-1 -> 193 | C201: =A201/($C$4+1)*POISSON(B201,$C$4,$C$5) -> 0 | D201: =A201/($C$4+1)*EXP(-$C$4)*$C$4^B201/FACT(B201) ->  | E201: =PoissonF(A201,$C$4) ->  | F201: =A201*(1-$C$3)^2*$C$3^(B201) -> 0.002788651781 | G201: =SchulzFloryF(A201,$C$3) -> 0.002788651781
... 6 more rows

Sheet Polynom
A1: Polynom in Excel und in VBA
A3: Zelle: | B3: 1 | C3: =1+2*B3+3*B3*B3 -> 6
A4: VBA: | B4: 1 | C4: =Polynomf(B4) -> 6

Sheet Regression
A1: Lineare Regression aus Meßdaten
A2: y = a + bx
A3: a | B3: 2
A4: b | B4: 3
A6: Ldf Nr. | B6: x | C6: y | D6: Fehler | E6: y_ideal | F6: y-Regr | N6: ySolver | O6: (y - ySolver)2
A7: 1 | B7: 1 | C7: =$B$3+$B$4*B7+D7 -> 7.15 | D7: 2.15 | E7: =$B$3+$B$4*B7 -> 5 | F7: =$I$25+$I$26*B7 -> 6.798428571 | N7: =$L$25+$L$26*B7 -> 6.798428468 | O7: =(C7-N7)^2 -> 0.1236025424
A8: 2 | B8: 2 | C8: 9.34 | D8: 1.34 | E8: =$B$3+$B$4*B8 -> 8 | F8: =$I$25+$I$26*B8 -> 9.82675188 | N8: =$L$25+$L$26*B8 -> 9.826751674 | O8: =(C8-N8)^2 -> 0.2369271926
A9: 3 | B9: 3 | C9: 15.59 | D9: 4.59 | E9: 11 | F9: 12.85507519 | N9: 12.85507488 | O9: 7.479815405
A10: 4 | B10: 4 | C10: 12.45 | D10: -1.55 | E10: 14 | F10: 15.8833985 | N10: 15.88339809 | O10: 11.78822243
A11: 5 | B11: 5 | C11: 21.81 | D11: 4.81 | E11: 17 | F11: 18.9117218 | N11: 18.91172129 | O11: 8.400019453
A12: 6 | B12: 6 | C12: 21.53 | D12: 1.53 | E12: 20 | F12: 21.94004511 | N12: 21.9400445 | O12: 0.1681364934
A13: 7 | B13: 7 | C13: 20.32 | D13: -2.68 | E13: 23 | F13: 24.96836842 | N13: 24.96836771 | O13: 21.60732235
A14: 8 | B14: 8 | C14: 27.55 | D14: 1.55 | E14: 26 | F14: 27.99669173 | N14: 27.99669092 | O14: 0.1995327738
A15: 9 | B15: 9 | C15: 28.91 | D15: -0.09 | E15: 29 | F15: 31.02501504 | N15: 31.02501412 | O15: 4.473284737
A16: 10 | B16: 10 | C16: 40.91 | D16: 8.91 | E16: 32 | F16: 34.05333835 | N16: 34.05333733 | O16: 47.01382298
A17: 11 | B17: 11 | C17: 35.72 | D17: 0.72 | E17: 35 | F17: 37.08166165 | N17: 37.08166054 | O17: 1.854119415
A18: 12 | B18: 12 | C18: 32.11 | D18: -5.89 | E18: 38 | F18: 40.10998496 | N18: 40.10998374 | O18: 63.99973988
A19: 13 | B19: 13 | C19: 48.98 | D19: 7.98 | E19: 41 | F19: 43.13830827 | N19: 43.13830695 | O19: 34.1253777
A20: 14 | B20: 14 | C20: 49.29 | D20: 5.29 | E20: 44 | F20: 46.16663158 | N20: 46.16663016 | O20: 9.755439181
A21: 15 | B21: 15 | C21: 46.95 | D21: -0.05 | E21: 47 | F21: 49.19495489 | N21: 49.19495336 | O21: 5.039815602
A22: 16 | B22: 16 | C22: 55.9 | D22: 5.9 | E22: 50 | F22: 52.2232782 | N22: 52.22327657 | O22: 13.51829518
A23: 17 | B23: 17 | C23: 62.01 | D23: 9.01 | E23: 53 | F23: 55.2516015 | N23: 55.25159978 | O23: 45.67597358
A24: 18 | B24: 18 | C24: 48.96 | D24: -7.04 | E24: 56 | F24: 58.27992481 | H24: Regression mit VBA | K24: Solver | N24: 58.27992298 | O24: 86.86096442
A25: 19 | B25: 19 | C25: 66.09 | D25: 7.09 | E25: 59 | F25: 61.30824812 | H25: a= | I25: 3.770105263 | K25: a= | L25: 3.770105261 | N25: 61.30824619 | O25: 22.8651695
A26: 20 | B26: 20 | C26: 59.78 | D26: -2.22 | E26: 62 | F26: 64.33657143 | H26: b= | I26: 3.028323308 | K26: b= | L26: 3.028323207 | N26: 64.3365694 | O26: 20.76232467
O27: =SUM(O7:O26) -> 405.9479055

Sheet RungeKutta
A1: Runge Kutta als Funktion: D5 anklicken, auf fx klicken
A2: Vergleich mit Euler und Theorie
A3: A = x0 | B3: 0
A4: E =Xende | B4: 1
A5: y0 | B5: 1 | D5: =RungeK4(B3,B4,B5,B6) -> 1.64872061 | E5: Runge-Kutta | F5: Abweichung | G5: =($D$6-D5)/$D$6*100 -> 4.005350553e-05 | H5: %
A6: 2^N Schritte | B6: 3 | C6: =2^3 -> 8 | D6: =EXP(0.5) -> 1.648721271 | E6: theoretisch
A9: Euler:
A10: x | B10: y | C10: Δx | D10: Funktion | E10: Nr.
A11: 0 | B11: 1 | C11: 0.125 | D11: =A11*B11 -> 0 | E11: 0
A12: =A11+C11 -> 0.125 | B12: =B11+D11*$C$11 -> 1 | C12: 0.125 | D12: 0.125 | E12: 1
A13: 0.25 | B13: 1.015625 | C13: 0.125 | D13: 0.25390625 | E13: 2
A14: 0.375 | B14: 1.047363281 | C14: 0.125 | D14: 0.3927612305 | E14: 3
A15: 0.5 | B15: 1.096458435 | C15: 0.125 | D15: 0.5482292175 | E15: 4
A16: 0.625 | B16: 1.164987087 | C16: 0.125 | D16: 0.7281169295 | E16: 5
A17: 0.75 | B17: 1.256001703 | C17: 0.125 | D17: 0.9420012776 | E17: 6
A18: 0.875 | B18: 1.373751863 | C18: 0.125 | D18: 1.20203288 | E18: 7
A19: 1 | B19: 1.524005973 | C19: 0.125 | D19: 1.524005973 | E19: 8 | F19: Abweichung | G19: =($D$6-D19)/$D$6*100 -> 7.564365169 | H19: %

Sheet Simpson
A1: Integration nach Simpson. Anwendung in I7, Fx anklicken
A3: Lfd. Nr. | B3: x | C3: Rechteck | E3: Trapez | H3: VBA-Lösung
A4: 1 | B4: 1 | C4: =B4^2*0.2 -> 0.2 | E4: 1 | F4: 0 | H4: Anfang | I4: 1
A5: 2 | B5: 1.2 | C5: 0.288 | E5: =(B5+B4)/2 -> 1.1 | F5: =E5^2*0.2 -> 0.242 | H5: Ende | I5: 3
A6: 3 | B6: 1.4 | C6: 0.392 | E6: =(B6+B5)/2 -> 1.3 | F6: =E6^2*0.2 -> 0.338 | H6: n | I6: 10
A7: 4 | B7: 1.6 | C7: 0.512 | E7: 1.5 | F7: 0.45 | H7: Integral | I7: =IntSimpF(I5,I4,I6) -> 8.666666667
A8: 5 | B8: 1.8 | C8: 0.648 | E8: 1.7 | F8: 0.578
A9: 6 | B9: 2 | C9: 0.8 | E9: 1.9 | F9: 0.722
A10: 7 | B10: 2.2 | C10: 0.968 | E10: 2.1 | F10: 0.882
A11: 8 | B11: 2.4 | C11: 1.152 | E11: 2.3 | F11: 1.058
A12: 9 | B12: 2.6 | C12: 1.352 | E12: 2.5 | F12: 1.25
A13: 10 | B13: 2.8 | C13: 1.568 | E13: 2.7 | F13: 1.458
A14: 11 | B14: 3 | E14: 2.9 | F14: 1.682
A15: Summe: | C15: =SUM(C4:C13) -> 7.88 | F15: =SUM(F5:F14) -> 8.66

Sheet SLE
A1: Fest-Flüssiggleichgewicht
A2: Stoff | C2: Tm [°C] | D2: hm [J/mol]
A3: 1 | B3: 1,2-Dichlorethan | C3: -35.5 | D3: 8750.4
A4: 2 | B4: Benzol | C4: 5.53 | D4: 9958.7
A6: x1 | B6: T1[°C] | C6: T2 [°C] | D6: T2-T1 | F6: T | G6: T [K] | H6: x2 | I6: 1-x2 | J6: x1
A7: 0 | B7: =SLETF(A7,$D$3,$C$3,$D$4,$C$4,1) -> -221.9283463 | C7: =SLETF(A7,$D$3,$C$3,$D$4,$C$4,2) -> 5.529993516 | D7: =SLETF(A7,$D$3,$C$3,$D$4,$C$4,0) -> 5.529993516 | F7: 5 | G7: =F7+273.15 -> 278.15 | H7: =SLEx12F(F7,$D$4,$C$4) -> 0.9918439135 | I7: =1-H7 -> 0.008156086496 | J7: =SLEx21F(F7,$D$3,$C$3) -> 
A8: 0.01 | B8: =SLETF(A8,$D$3,$C$3,$D$4,$C$4,1) -> -156.6490173 | C8: =SLETF(A8,$D$3,$C$3,$D$4,$C$4,2) -> 4.879855532 | D8: =SLETF(A8,$D$3,$C$3,$D$4,$C$4,0) -> 4.879855532 | F8: 0 | G8: =F8+273.15 -> 273.15 | H8: =SLEx12F(F8,$D$4,$C$4) -> 0.916664826 | I8: =1-H8 -> 0.08333517402 | J8: =SLEx21F(F8,$D$3,$C$3) -> 
A9: 0.02 | B9: -146.9670761 | C9: 4.226183111 | D9: 4.226183111 | F9: -5 | G9: 268.15 | H9: 0.8446974323 | I9: 0.1553025677
A10: 0.03 | B10: -140.5193782 | C10: 3.568919977 | D10: 3.568919977 | F10: -10 | G10: 263.15 | H10: 0.775965448 | I10: 0.224034552
A11: 0.04 | B11: -135.5300174 | C11: 2.9080016 | D11: 2.9080016 | F11: -15 | G11: 258.15 | H11: 0.7104864307 | I11: 0.2895135693
A12: 0.05 | B12: -131.3936887 | C12: 2.243361616 | D12: 2.243361616 | F12: -20 | G12: 253.15 | H12: 0.6482712846 | I12: 0.3517287154
A13: 0.06 | B13: -127.8248408 | C13: 1.57493175 | D13: 1.57493175 | F13: -25 | G13: 248.15 | H13: 0.589323763 | I13: 0.410676237
A14: 0.07 | B14: -124.6641789 | C14: 0.9026417425 | D14: 0.9026417425 | F14: -30 | G14: 243.15 | H14: 0.5336399718 | I14: 0.4663600282
A15: 0.08 | B15: -121.813028 | C15: 0.226419267 | D15: 0.226419267 | F15: -35 | G15: 238.15 | H15: 0.4812078827 | I15: 0.5187921173 | J15: =SLEx21F(F15,$D$3,$C$3) -> 
A16: 0.09 | B16: -119.2056845 | C16: -0.453810151 | D16: -0.453810151 | F16: -40 | G16: 233.15 | H16: 0.4320068613 | I16: 0.5679931387 | J16: 0.9180772941
A17: 0.1 | B17: -116.796016 | C17: -1.138123225 | D17: -1.138123225 | F17: -45 | G17: 228.15 | H17: 0.3860072212 | I17: 0.6139927788 | J17: 0.8316039461
A18: 0.11 | B18: -114.5502865 | C18: -1.826598998 | D18: -1.826598998 | F18: -50 | G18: 223.15 | H18: 0.3431698124 | I18: 0.6568301876 | J18: 0.7499435127
A19: 0.12 | B19: -112.4430175 | C19: -2.519318945 | D19: -2.519318945 | F19: -55 | G19: 218.15 | H19: 0.303445657 | I19: 0.696554343 | J19: 0.6731051256
A20: 0.13 | B20: -110.4544562 | C20: -3.216367072 | D20: -3.216367072 | F20: -60 | G20: 213.15 | H20: 0.2667756435 | I20: 0.7332243565 | J20: 0.6010834526
A21: 0.14 | B21: -108.5689533 | C21: -3.917830029 | D21: -3.917830029
A22: 0.15 | B22: -106.7738814 | C22: -4.623797221 | D22: -4.623797221
A23: 0.16 | B23: -105.0588916 | C23: -5.334360933 | D23: -5.334360933
A24: 0.17 | B24: -103.4153867 | C24: -6.049616459 | D24: -6.049616459
A25: 0.18 | B25: -101.8361404 | C25: -6.769662234 | D25: -6.769662234
A26: 0.19 | B26: -100.315015 | C26: -7.494599981 | D26: -7.494599981
A27: 0.2 | B27: -98.84674967 | C27: =SLETF(A27,$D$3,$C$3,$D$4,$C$4,2) -> -8.224534865 | D27: -8.224534865
A28: 0.21 | B28: =SLETF(A28,$D$3,$C$3,$D$4,$C$4,1) -> -97.42679762 | C28: =SLETF(A28,$D$3,$C$3,$D$4,$C$4,2) -> -8.959575648 | D28: =SLETF(A28,$D$3,$C$3,$D$4,$C$4,0) -> -8.959575648
A29: 0.22 | B29: -96.0512001 | C29: -9.699834867 | D29: -9.699834867
A30: 0.23 | B30: -94.71648728 | C30: -10.44542901 | D30: -10.44542901
A31: 0.24 | B31: -93.41959932 | C31: -11.19647872 | D31: -11.19647872
A32: 0.25 | B32: -92.15782301 | C32: -11.95310897 | D32: -11.95310897
A33: 0.26 | B33: -90.92874021 | C33: -12.71544933 | D33: -12.71544933
A34: 0.27 | B34: -89.73018576 | C34: -13.48363415 | D34: -13.48363415
A35: 0.28 | B35: -88.56021262 | C35: -14.25780283 | D35: -14.25780283
A36: 0.29 | B36: -87.41706293 | C36: -15.0381001 | D36: -15.0381001
A37: 0.3 | B37: -86.29914377 | C37: -15.82467626 | D37: -15.82467626
A38: 0.31 | B38: -85.20500671 | C38: -16.61768752 | D38: -16.61768752
A39: 0.32 | B39: -84.13333049 | C39: -17.41729629 | D39: -17.41729629
A40: 0.33 | B40: -83.08290621 | C40: -18.22367155 | D40: -18.22367155
A41: 0.34 | B41: -82.0526247 | C41: -19.03698919 | D41: -19.03698919
A42: 0.35 | B42: -81.04146559 | C42: -19.85743243 | D42: -19.85743243
A43: 0.36 | B43: -80.04848787 | C43: =SLETF(A43,$D$3,$C$3,$D$4,$C$4,2) -> -20.68519225 | D43: -20.68519225
A44: 0.37 | B44: =SLETF(A44,$D$3,$C$3,$D$4,$C$4,1) -> -79.07282169 | C44: =SLETF(A44,$D$3,$C$3,$D$4,$C$4,2) -> -21.5204678 | D44: =SLETF(A44,$D$3,$C$3,$D$4,$C$4,0) -> -21.5204678
A45: 0.38 | B45: -78.1136612 | C45: -22.36346694 | D45: -22.36346694
A46: 0.39 | B46: -77.1702583 | C46: -23.21440673 | D46: -23.21440673
A47: 0.4 | B47: -76.24191708 | C47: -24.07351404 | D47: -24.07351404
A48: 0.41 | B48: -75.32798904 | C48: -24.94102611 | D48: -24.94102611
A49: 0.42 | B49: -74.42786871 | C49: -25.81719127 | D49: -25.81719127
A50: 0.43 | B50: -73.54098988 | C50: -26.70226961 | D50: -26.70226961
A51: 0.44 | B51: -72.66682218 | C51: -27.59653381 | D51: -27.59653381
A52: 0.45 | B52: -71.80486808 | C52: -28.50026992 | D52: -28.50026992
A53: 0.46 | B53: -70.95466012 | C53: -29.41377835 | D53: -29.41377835
A54: 0.47 | B54: -70.11575853 | C54: -30.33737481 | D54: -30.33737481
A55: 0.48 | B55: -69.28774899 | C55: -31.27139146 | D55: -31.27139146
A56: 0.49 | B56: -68.4702407 | C56: -32.21617802 | D56: -32.21617802
A57: 0.5 | B57: -67.66286456 | C57: -33.17210317 | D57: -33.17210317
A58: 0.51 | B58: -66.86527156 | C58: -34.1395559 | D58: -34.1395559
A59: 0.52 | B59: -66.07713133 | C59: =SLETF(A59,$D$3,$C$3,$D$4,$C$4,2) -> -35.11894712 | D59: -35.11894712
A60: 0.53 | B60: -65.29813077 | C60: =SLETF(A60,$D$3,$C$3,$D$4,$C$4,2) -> -36.11071136 | D60: -36.11071136
A61: 0.54 | B61: -64.52797289 | C61: -37.11530869 | D61: -37.11530869
A62: 0.55 | B62: -63.76637565 | C62: -38.1332268 | D62: -38.1332268
A63: 0.56 | B63: -63.01307097 | C63: -39.16498335 | D63: -39.16498335
A64: 0.57 | B64: -62.2678038 | C64: -40.2111285 | D64: -40.2111285
A65: 0.58 | B65: -61.53033127 | C65: -41.27224781 | D65: -41.27224781
A66: 0.59 | B66: -60.80042188 | C66: -42.34896541 | D66: -42.34896541
A67: 0.6 | B67: -60.07785485 | C67: -43.44194757 | D67: -43.44194757
A68: 0.61 | B68: -59.36241938 | C68: -44.5519067 | D68: -44.5519067
A69: 0.62 | B69: -58.65391408 | C69: -45.67960579 | D69: -45.67960579
A70: 0.63 | B70: -57.95214641 | C70: -46.82586354 | D70: -46.82586354
A71: 0.64 | B71: -57.25693212 | C71: -47.99155997 | D71: -47.99155997
A72: 0.65 | B72: -56.56809482 | C72: -49.17764296 | D72: -49.17764296
A73: 0.66 | B73: -55.88546549 | C73: -50.38513559 | D73: -50.38513559
A74: 0.67 | B74: -55.20888206 | C74: -51.61514452 | D74: -51.61514452
A75: 0.68 | B75: -54.53818906 | C75: =SLETF(A75,$D$3,$C$3,$D$4,$C$4,2) -> -52.86886965 | D75: -52.86886965
A76: 0.69 | B76: =SLETF(A76,$D$3,$C$3,$D$4,$C$4,1) -> -53.87323724 | C76: =SLETF(A76,$D$3,$C$3,$D$4,$C$4,2) -> -54.14761517 | D76: =SLETF(A76,$D$3,$C$3,$D$4,$C$4,0) -> -53.87323724
A77: 0.7 | B77: -53.21388322 | C77: -55.45280239 | D77: -53.21388322
A78: 0.71 | B78: -52.55998921 | C78: -56.78598459 | D78: -52.55998921
A79: 0.72 | B79: -51.91142266 | C79: =SLETF(A79,$D$3,$C$3,$D$4,$C$4,2) -> -58.14886438 | D79: -51.91142266
A80: 0.73 | B80: -51.26805608 | C80: =SLETF(A80,$D$3,$C$3,$D$4,$C$4,2) -> -59.54331399 | D80: -51.26805608
A81: 0.74 | B81: -50.62976668 | C81: -60.97139931 | D81: -50.62976668
A82: 0.75 | B82: -49.9964362 | C82: -62.43540828 | D82: -49.9964362
A83: 0.76 | B83: -49.36795068 | C83: -63.9378849 | D83: -49.36795068
A84: 0.77 | B84: -48.74420023 | C84: -65.48167 | D84: -48.74420023
A85: 0.78 | B85: -48.12507882 | C85: -67.06995073 | D85: -48.12507882
A86: 0.79 | B86: -47.51048413 | C86: -68.70632088 | D86: -47.51048413
A87: 0.8 | B87: -46.90031738 | C87: -70.39485528 | D87: -46.90031738
A88: 0.81 | B88: -46.29448311 | C88: -72.14020219 | D88: -46.29448311
A89: 0.82 | B89: -45.6928891 | C89: -73.94769962 | D89: -45.6928891
A90: 0.83 | B90: -45.09544615 | C90: -75.82352298 | D90: -45.09544615
A91: 0.84 | B91: -44.502068 | C91: -77.7748755 | D91: -44.502068
A92: 0.85 | B92: -43.91267119 | C92: -79.81023683 | D92: -43.91267119
A93: 0.86 | B93: -43.32717492 | C93: -81.93969328 | D93: -43.32717492
A94: 0.87 | B94: -42.74550092 | C94: -84.17538418 | D94: -42.74550092
A95: 0.88 | B95: -42.16757341 | C95: =SLETF(A95,$D$3,$C$3,$D$4,$C$4,2) -> -86.53211813 | D95: -42.16757341
A96: 0.89 | B96: -41.5933189 | C96: =SLETF(A96,$D$3,$C$3,$D$4,$C$4,2) -> -89.02824392 | D96: -41.5933189
A97: 0.9 | B97: -41.02266619 | C97: -91.68691582 | D97: -41.02266619
A98: 0.91 | B98: -40.45554619 | C98: -94.53799243 | D98: -40.45554619
A99: 0.92 | B99: -39.89189191 | C99: -97.62099821 | D99: -39.89189191
A100: 0.93 | B100: -39.3316383 | C100: -100.9899645 | D100: -39.3316383
A101: 0.94 | B101: -38.77472223 | C101: -104.7218182 | D101: -38.77472223
A102: 0.95 | B102: -38.2210824 | C102: -108.9320449 | D102: -38.2210824
A103: 0.96 | B103: -37.67065925 | C103: -113.8069936 | D103: -37.67065925
A104: 0.97 | B104: -37.12339492 | C104: -119.6805325 | D104: -37.12339492
A105: 0.98 | B105: -36.57923314 | C105: -127.2599065 | D105: -36.57923314
A106: 0.99 | B106: -36.03811923 | C106: -138.618084 | D106: -36.03811923
A107: 1 | B107: -35.50000537 | C107: -214.4826938 | D107: -35.50000537

Sheet Steigung
A1: Steigung und Minimum einer Funktion, numerisch
A3: a | B3: 1
A4: b | B4: 2
A5: c | B5: 0.5
A8: Lfd. Nr. | B8: x | C8: y | D8: 1. Ableitung | E8: 2. Ableitung | F8: y' | G8: y''
A9: 1 | B9: 1 | C9: =Steigf($B$3,$B$4,$B$5,B9) -> 3 | D9: =ErsteAbleitungSteigung($B$4,$B$5,B9) -> 1 | E9: =ZweiteAbleitungSteigung($B$4,$B$5,B9) -> -0.5 | F9: =NumErsteAbl($B$3,$B$4,$B$5,B9,0) -> 1.000012501 | G9: =NumErsteAbl($B$3,$B$4,$B$5,B9,2) -> -0.5000156258
A10: 2 | B10: 2 | C10: =Steigf($B$3,$B$4,$B$5,B10) -> 3.828427125 | D10: =ErsteAbleitungSteigung($B$4,$B$5,B10) -> 0.7071067812 | E10: =ZweiteAbleitungSteigung($B$4,$B$5,B10) -> -0.1767766953 | F10: =NumErsteAbl($B$3,$B$4,$B$5,B10,0) -> 0.7071089909 | G10: =NumErsteAbl($B$3,$B$4,$B$5,B10,2) -> -0.1767780764
A11: 3 | B11: 3 | C11: 4.464101615 | D11: 0.5773502692 | E11: -0.09622504486 | F11: 0.5773510711 | G11: -0.09622537898
A12: 4 | B12: 4 | C12: 5 | D12: 0.5 | E12: -0.0625 | F12: 0.5000003906 | G12: -0.06250012207
A13: 5 | B13: 5 | C13: 5.472135955 | D13: 0.4472135955 | E13: -0.04472135955 | F13: 0.4472138191 | G13: -0.04472141546
A14: 6 | B14: 6 | C14: 5.898979486 | D14: 0.4082482905 | E14: -0.03402069087 | F14: 0.4082484322 | G14: -0.03402072041
A15: 7 | B15: 7 | C15: 6.291502622 | D15: 0.377964473 | E15: -0.02699746236 | F15: 0.3779645694 | G15: -0.02699747957
A16: 8 | B16: 8 | C16: 6.656854249 | D16: 0.3535533906 | E16: -0.02209708691 | F16: 0.3535534595 | G16: -0.02209709771
A17: 9 | B17: 9 | C17: 7 | D17: 0.3333333333 | E17: -0.01851851852 | F17: 0.3333333849 | G17: -0.01851852566
A18: 10 | B18: 10 | C18: 7.32455532 | D18: 0.316227766 | E18: -0.0158113883 | F18: 0.3162278054 | G18: -0.01581139324
A20: Funktionswerte an der Stelle x=1 | H20: Funktion | I20: Differenz
A21: x1= | B21: 0.99 | C21: y1= | D21: =Steigf($B$3,$B$4,$B$5,B21) -> 2.989974874 | E21: a= | F21: =G26 -> 1.749979687 | G21: y'= | H21: =G27+2*G28 -> 1.000012501 | I21: =(D23-D21)/(B23-B21) -> 1.000012501
A22: x2= | B22: 1 | C22: y2= | D22: =Steigf($B$3,$B$4,$B$5,B22) -> 3 | E22: b= | F22: =G27 -> 1.500028126 | G22: y''= | H22: =2*G28 -> -0.5000156258 | I22: =(D23-2*D22+D21)/((0.5*(B23-B21))^2) -> -0.5000156258
A23: x3= | B23: 1.01 | C23: y3= | D23: 3.009975124 | E23: c= | F23: -0.2500078129
B25: Große Matrix | E25: Kleine Matrix | F25: Matrix | G25: VBA | H25: y-Kontrolle
A26: 1 | B26: 1 | C26: =B21 -> 0.99 | D26: =C26^2 -> 0.9801 | E26: =D21 -> 2.989974874 | F26: =MMULT(MINVERSE(B26:D28),E26:E28) -> 1.749979687 | G26: 1.749979687 | H26: =$F$26+$F$27*C26+$F$28*D26 -> 2.989974874
A27: 2 | B27: 1 | C27: =B22 -> 1 | D27: =C27^2 -> 1 | E27: =D22 -> 3 | F27: 1.500028126 | G27: 1.500028126 | H27: =$F$26+$F$27*C27+$F$28*D27 -> 3
A28: 3 | B28: 1 | C28: 1.01 | D28: 1.0201 | E28: =D23 -> 3.009975124 | F28: -0.2500078129 | G28: -0.2500078129 | H28: =$F$26+$F$27*C28+$F$28*D28 -> 3.009975124
A30: Inverse Matrix | B30: 5050 | C30: -10050 | D30: 5000
B31: -9999 | C31: 20000 | D31: -10000
B32: 4950 | C32: -9950 | D32: 5000

Sheet Verbrennung
A1: Verbrennungsberechnung
A2: Eingabe Brennstoff | E2: Ergebnisse Luft | H2: Ergebnisse Rauchgas | K2: Sonstiges
A3: Auswahl | B3: =IF(B4=1,"Formel","Gew. %") -> Formel | C3: =IF(C10<>100,"Fehler","OK") -> OK
A4: Elemente | B4: 1 | C4: 0 | D4: kg | E4: O2-Bedarf [kg] | F4: 373.3333333 | H4: Rauchgas | I4: kg | K4: Brennstoff
A5: C | B5: 2 | C5: 80 | D5: 80 | E5: Luftbedarf [kg] | F5: 1777.777778 | H5: CO2 | I5: 293.3333333 | K5: Molgewicht [kmol/kg] | L5: 30
A6: H | B6: 6 | C6: 20 | D6: 20 | H6: H2O | I6: 180
A7: S | D7: 0 | H7: SO2 | I7: 0
A8: N | D8: 0 | H8: N2 | I8: 1404.444444
A9: O | D9: 0 | H9: Gesamt | I9: =SUM(I5:I8) -> 1877.777778
A10: Menge [kg] | B10: 100 | C10: =SUM(C5:C9) -> 100 | D10: =SUM(D5:D9) -> 100
A11: Bildungsenthalpie [kJ/kg] | B11: -2788.49 | H11: Heizwert [kJ/kg] | I11: -47602.14333
A15: Modul | B15: Verbrennung

Sheet VLE
A1: Dampf-Flüssiggleichgewicht
A3: Verdampfungsgrad | B3: D/G= | C3: 0.8 | E3: Konvergenz | F3: 7.194646358e-05 | H3: Schritte: | I3: 100
A4: Stoff | B4: α | C4: xi0 | D4: xi | E4: α*x | F4: yi | H4: K=yi/xi | I4: xi,R
A5: 1 | B5: 5 | C5: 0.05 | D5: 0.02685028397 | E5: =B5*D5 -> 0.1342514199 | F5: =E5/$E$15 -> 0.05407067021 | G5: =IF(((F5-D5)>0),"y ist größer","y ist kleiner") -> y ist größer | H5: =F5/D5 -> 2.013783923 | I5: =(C5-$C$3*F5)/(1-$C$3) -> 0.03371731918
A6: 2 | B6: 4.8 | C6: 0.06 | D6: 0.03419968526 | E6: 0.1641584892 | F6: 0.06611594531 | G6: =IF(((F6-D6)>0),"y ist größer","y ist kleiner") -> y ist größer | H6: =F6/D6 -> 1.933232566 | I6: =(C6-$C$3*F6)/(1-$C$3) -> 0.03553621877
A7: 3 | B7: 4.2 | C7: 0.1 | D7: 0.06465455614 | E7: 0.2715491358 | F7: 0.1093682568 | G7: y ist größer | H7: 1.691578496 | I7: 0.06252697275
A8: 4 | B8: 3.9 | C8: 0.2 | D8: 0.1377269167 | E8: 0.5371349751 | F8: 0.2163347555 | G8: y ist größer | H8: 1.57075146 | I8: 0.1346609779
A9: 5 | B9: 3.5 | C9: 0.03 | D9: 0.02264151699 | E9: 0.07924530947 | F9: 0.03191658605 | G9: y ist größer | H9: 1.409648746 | I9: 0.02233365582
A10: 6 | B10: 3.2 | C10: 0.1 | D10: 0.08136361921 | E10: 0.2603635815 | F10: 0.1048631989 | G10: y ist größer | H10: 1.288821711 | I10: 0.08054720429
A11: 7 | B11: 2.9 | C11: 0.145 | D11: 0.1279941629 | E11: 0.3711830725 | F11: 0.1494965008 | G11: y ist größer | H11: 1.167994676 | I11: 0.1270139967
A12: 8 | B12: 1.7 | C12: 0.04 | D12: 0.05353543963 | E12: 0.09101024737 | F12: 0.0366549946 | G12: y ist kleiner | H12: 0.684686534 | I12: 0.05338002158
A13: 9 | B13: 1.4 | C13: 0.2 | D13: 0.3073949518 | E13: 0.4303529325 | F13: 0.1733275634 | G13: y ist kleiner | H13: 0.5638594986 | I13: 0.3066897465
A14: 10 | B14: 1 | C14: =1-SUM(C5:C13) -> 0.075 | D14: 0.1436388673 | E14: 0.1436388673 | F14: 0.05785152837 | G14: y ist kleiner | H14: 0.4027567847 | I14: 0.1435938865
D15: =SUM(D5:D14) -> 1 | E15: =SUM(E5:E14) -> 2.482888031 | F15: =SUM(F5:F14) -> 1 | I15: =SUM(I5:I14) -> 1
C16: =IF(C14<0,"Fehler: Summe xi >1","OK") -> OK
A19: α1 | B19: 3
B20: x1 | C20: x2 | D20: αx1 | E20: Σαx | F20: y1 | G20: Diagonale
A21: 0 | B21: 0 | C21: =1-B21 -> 1 | D21: =$B$19*B21 -> 0 | E21: =D21+C21 -> 1 | F21: 0 | G21: =B21 -> 0
A22: 1 | B22: 0.05 | C22: =1-B22 -> 0.95 | D22: =$B$19*B22 -> 0.15 | E22: =D22+C22 -> 1.1 | F22: =D22/E22 -> 0.1363636364 | G22: =B22 -> 0.05
A23: 2 | B23: 0.1 | C23: =1-B23 -> 0.9 | D23: =$B$19*B23 -> 0.3 | E23: =D23+C23 -> 1.2 | F23: =D23/E23 -> 0.25 | G23: 0.1
A24: 3 | B24: 0.15 | C24: =1-B24 -> 0.85 | D24: =$B$19*B24 -> 0.45 | E24: =D24+C24 -> 1.3 | F24: =D24/E24 -> 0.3461538462 | G24: 0.15
A25: 4 | B25: 0.2 | C25: 0.8 | D25: 0.6 | E25: 1.4 | F25: 0.4285714286 | G25: 0.2
A26: 5 | B26: 0.25 | C26: 0.75 | D26: 0.75 | E26: 1.5 | F26: 0.5 | G26: 0.25
A27: 6 | B27: 0.3 | C27: 0.7 | D27: 0.9 | E27: 1.6 | F27: 0.5625 | G27: 0.3
A28: 7 | B28: 0.35 | C28: 0.65 | D28: 1.05 | E28: 1.7 | F28: 0.6176470588 | G28: 0.35
A29: 8 | B29: 0.4 | C29: 0.6 | D29: 1.2 | E29: 1.8 | F29: 0.6666666667 | G29: 0.4
A30: 9 | B30: 0.45 | C30: 0.55 | D30: 1.35 | E30: 1.9 | F30: 0.7105263158 | G30: 0.45
A31: 10 | B31: 0.5 | C31: 0.5 | D31: 1.5 | E31: 2 | F31: 0.75 | G31: 0.5
A32: 11 | B32: 0.55 | C32: 0.45 | D32: 1.65 | E32: 2.1 | F32: 0.7857142857 | G32: 0.55
A33: 12 | B33: 0.6 | C33: 0.4 | D33: 1.8 | E33: 2.2 | F33: 0.8181818182 | G33: 0.6
A34: 13 | B34: 0.65 | C34: 0.35 | D34: 1.95 | E34: 2.3 | F34: 0.847826087 | G34: 0.65
A35: 14 | B35: 0.7 | C35: 0.3 | D35: 2.1 | E35: 2.4 | F35: 0.875 | G35: 0.7
A36: 15 | B36: 0.75 | C36: 0.25 | D36: 2.25 | E36: 2.5 | F36: 0.9 | G36: 0.75
A37: 16 | B37: 0.8 | C37: 0.2 | D37: 2.4 | E37: 2.6 | F37: 0.9230769231 | G37: 0.8
A38: 17 | B38: 0.85 | C38: 0.15 | D38: 2.55 | E38: 2.7 | F38: 0.9444444444 | G38: 0.85
A39: 18 | B39: 0.9 | C39: 0.1 | D39: 2.7 | E39: 2.8 | F39: 0.9642857143 | G39: 0.9
A40: 19 | B40: 0.95 | C40: 0.05 | D40: 2.85 | E40: 2.9 | F40: 0.9827586207 | G40: 0.95
A41: 20 | B41: 1 | C41: 0 | D41: 3 | E41: 3 | F41: 1 | G41: 1

Sheet WatStoff
A1: Wärme und Stoffaustausch
A3: Wärmeaustauscher
A4: k [W/m²K] | B4: 1000
A5: A [m²] | B5: 250
A6: A Anzahl | B6: 20
A7: ΔA [m²] | B7: =B5/B6 -> 12.5
A8: Strom 1 | D8: Strom2
A9: m1 [kg/s] | B9: 100 | D9: m2 [kg/s] | E9: 100
A10: T1 [°C] | B10: 20 | D10: T2 [°C] | E10: 90
A11: Cp1 [J/kg/K] | B11: 4100 | D11: Cp2 [J/kg/K] | E11: 2500
A14: Lfd Nr. | B14: A Summe % | C14: T1 [°C] | D14: Q1* [W] | E14: T2 [°C] | F14: Q2* [W] | G14: Δϑ [°C] | H14: ΔQw*=k*ΔA*Δϑ [W] | I14: ΔT1 [°C] | J14: ΔT2 [°C] | K14: Summe Q
A15: 1 | B15: 0 | C15: =E10 -> 90 | D15: 0 | E15: 20 | F15: 0 | G15: =C15-E15 -> 70 | H15: =$B$4*$B$7*G15 -> 875000 | I15: =-H15/($B$9*$B$11) -> -2.134146341 | J15: =H15/($E$9*$E$11) -> 3.5 | K15: =D15 -> 0
A16: 2 | B16: 5 | C16: =C15+I15 -> 87.86585366 | D16: =$B$9*$B$11*(C15-C16) -> 875000 | E16: =E15+J15 -> 23.5 | F16: =$E$9*$E$11*(E15-E16) -> -875000 | G16: 64.36585366 | H16: =$B$4*$B$7*G16 -> 804573.1707 | I16: =-H16/($B$9*$B$11) -> -1.962373587 | J16: =H16/($E$9*$E$11) -> 3.218292683 | K16: =D16 -> 875000
A17: 3 | B17: 10 | C17: 85.90348007 | D17: =$B$9*$B$11*(C16-C17) -> 804573.1707 | E17: =E16+J16 -> 26.71829268 | F17: =$E$9*$E$11*(E16-E17) -> -804573.1707 | G17: 59.18518739 | H17: =$B$4*$B$7*G17 -> 739814.8424 | I17: =-H17/($B$9*$B$11) -> -1.804426445 | J17: =H17/($E$9*$E$11) -> 2.959259369 | K17: =K16+D17 -> 1679573.171
A18: 4 | B18: 15 | C18: 84.09905363 | D18: 739814.8424 | E18: 29.67755205 | F18: -739814.8424 | G18: 54.42150157 | H18: =$B$4*$B$7*G18 -> 680268.7697 | I18: =-H18/($B$9*$B$11) -> -1.659192121 | J18: =H18/($E$9*$E$11) -> 2.721075079 | K18: =K17+D18 -> 2419388.013
A19: 5 | B19: 20 | C19: 82.43986151 | D19: 680268.7697 | E19: 32.39862713 | F19: -680268.7697 | G19: 50.04123437 | H19: 625515.4297 | I19: -1.525647389 | J19: 2.502061719 | K19: 3099656.783
A20: 6 | B20: 25 | C20: 80.91421412 | D20: 625515.4297 | E20: 34.90068885 | F20: -625515.4297 | G20: 46.01352527 | H20: 575169.0658 | I20: -1.40285138 | J20: 2.300676263 | K20: 3725172.212
A21: 7 | B21: 30 | C21: 79.51136274 | D21: 575169.0658 | E21: 37.20136511 | F21: -575169.0658 | G21: 42.30999762 | H21: 528874.9703 | I21: -1.289938952 | J21: 2.115499881 | K21: 4300341.278
A22: 8 | B22: 35 | C22: 78.22142378 | D22: 528874.9703 | E22: 39.31686499 | F22: -528874.9703 | G22: 38.90455879 | H22: 486306.9849 | I22: -1.186114597 | J22: 1.945227939 | K22: 4829216.249
A23: 9 | B23: 40 | C23: 77.03530919 | D23: 486306.9849 | E23: 41.26209293 | F23: -486306.9849 | G23: 35.77321625 | H23: 447165.2032 | I23: -1.090646837 | J23: 1.788660813 | K23: 5315523.233
A24: 10 | B24: 45 | C24: 75.94466235 | D24: 447165.2032 | E24: 43.05075375 | F24: -447165.2032 | G24: 32.8939086 | H24: 411173.8575 | I24: -1.002863067 | J24: 1.64469543 | K24: 5762688.437
A25: 11 | B25: 50 | C25: 74.94179928 | D25: 411173.8575 | E25: 44.69544918 | F25: -411173.8575 | G25: 30.24635011 | H25: 378079.3763 | I25: -0.9221448203 | J25: 1.512317505 | K25: 6173862.294
A26: 12 | B26: 55 | C26: 74.01965446 | D26: 378079.3763 | E26: 46.20776668 | F26: -378079.3763 | G26: 27.81188778 | H26: 347648.5973 | I26: -0.8479234079 | J26: 1.390594389 | K26: 6551941.67
A27: 13 | B27: 60 | C27: 73.17173105 | D27: 347648.5973 | E27: 47.59836107 | F27: -347648.5973 | G27: 25.57336998 | H27: 319667.1248 | I27: -0.7796759141 | J27: 1.278668499 | K27: 6899590.268
A28: 14 | B28: 65 | C28: 72.39205514 | D28: 319667.1248 | E28: 48.87702957 | F28: -319667.1248 | G28: 23.51502557 | H28: 293937.8196 | I28: -0.7169215113 | J28: 1.175751279 | K28: 7219257.393
A29: 15 | B29: 70 | C29: 71.67513363 | D29: 293937.8196 | E29: 50.05278085 | F29: -293937.8196 | G29: 21.62235278 | H29: 270279.4098 | I29: -0.6592180726 | J29: 1.081117639 | K29: 7513195.212
A30: 16 | B30: 75 | C30: 71.01591556 | D30: 270279.4098 | E30: 51.13389849 | F30: -270279.4098 | G30: 19.88201707 | H30: 248525.2134 | I30: -0.606159057 | J30: 0.9941008534 | K30: 7783474.622
A31: 17 | B31: 80 | C31: 70.4097565 | D31: 248525.2134 | E31: 52.12799934 | F31: -248525.2134 | G31: 18.28175716 | H31: 228521.9645 | I31: -0.5573706451 | J31: 0.9140878579 | K31: 8031999.835
A32: 18 | B32: 85 | C32: 69.85238585 | D32: 228521.9645 | E32: 53.0420872 | F32: -228521.9645 | G32: 16.81029866 | H32: 210128.7332 | I32: -0.5125091053 | J32: 0.8405149328 | K32: 8260521.8
A33: 19 | B33: 90 | C33: 69.33987675 | D33: 210128.7332 | E33: 53.88260213 | F33: -210128.7332 | G33: 15.45727462 | H33: 193215.9327 | I33: -0.4712583725 | J33: 0.7728637309 | K33: 8470650.533
A34: 20 | B34: 95 | C34: 68.86861838 | D34: 193215.9327 | E34: 54.65546586 | F34: -193215.9327 | G34: 14.21315251 | H34: 177664.4064 | I34: -0.4333278205 | J34: 0.7106576257 | K34: 8663866.466
A35: 21 | B35: 100 | C35: 68.43529056 | D35: 177664.4064 | E35: 55.36612349 | F35: -177664.4064 | G35: 13.06916707 | H35: 0 | I35: 0 | J35: 0 | K35: 8841530.872
D36: =SUM(D15:D35) -> 8841530.872 | E36: =E35+J35 -> 55.36612349 | F36: =SUM(F15:F35) -> -8841530.872 | H36: =SUM(H15:H35) -> 8841530.872
A37: Mittlere Temperaturdifferenz
A38: Δϑm[°C] | B38: =D36/(B4*B5) -> 35.36612349
A39: LMTD | B39: =((C35-E35)-(C15-E15))/(LN((C35-E35)/(C15-E15))) -> 33.92295009
A41: Stoffaustausch
A42: Mengen
A43: Feststoff [g] | C43: 1
A44: Wassermenge [g] | C44: 5
A45: Dichte [g/cm³] | C45: 1
A46: Wasservolumen[cm³] | C46: =C44/1 -> 5
A47: Zeitabschnitt Δt [s] | C47: 0.5
A49: Feststoffdaten
A50: Dichte [g/cm³] | C50: 2.16
A51: V0 [cm³] | C51: =C43/C50 -> 0.462962963
A52: C0 [g/cm³] | C52: 0.264
A53: k [cm/s] | C53: 0.4
A55: Würfel
A56: d0 [cm] | C56: =C51^(1/3) -> 0.7735981389
A57: A0 [cm²] | C57: =6*C56*C56 -> 3.590724483
A59: Kugel
A60: d0 [cm³] | C60: =(C51*6/PI())^(1/3) -> 0.9598039705
A61: A0 [cm²] | C61: =C60*C60*PI() -> 2.894109488
A64: Lfd Nr. | B64: t [s] | C64: m_fest [g] | D64: m_Lösung [g] | E64: V_Lösung=Vw+Vf [cm³] | F64: C Lösung [g_Feststoff/cm³_Lösung] | G64: ΔC [g_Feststoff/cm³_Lösung] | H64: dm*_fest [g/s] | I64: dm_fest [g] | J64: dV_fest [cm³] | K64: V_fest [cm³] | L64: d_Würfel [cm] | M64: A_Würfel [cm²] | N64: Konz. Lösung [g/cm³]
A65: 1 | B65: 0 | C65: =C43 -> 1 | D65: 0 | E65: =C46 -> 5 | F65: 0 | G65: =$C$52-F65 -> 0.264 | H65: =$C$53*C57*G65 -> 0.3791805054 | I65: =H65*$C$47 -> 0.1895902527 | J65: =I65/$C$50 -> 0.08777326515 | K65: =C51-J65 -> 0.3751896978 | L65: =K65^(1/3) -> 0.7212463609 | M65: =6*L65^2 -> 3.121177879 | N65: =F65*100 -> 0
A66: 2 | B66: =A65*$C$47 -> 0.5 | C66: =IF((C65-I65)>0,C65-I65,0) -> 0.8104097473 | D66: =D65+I65 -> 0.1895902527 | E66: =$C$46+D66/$C$50 -> 5.087773265 | F66: =D66/E66 -> 0.03726389578 | G66: =$C$52-F66 -> 0.2267361042 | H66: =$C$53*M65*G66 -> 0.2830734851 | I66: =H66*$C$47 -> 0.1415367426 | J66: =I66/$C$50 -> 0.0655262697 | K66: =IF((K65-J66)>0,(K65-J66),0) -> 0.3096634281 | L66: =K66^(1/3) -> 0.6765449227 | M66: =6*L66^2 -> 2.746278194 | N66: =F66*100 -> 3.726389578
A67: 3 | B67: =A66*$C$47 -> 1 | C67: 0.6688730047 | D67: 0.3311269953 | E67: =$C$46+D67/$C$50 -> 5.153299535 | F67: =D67/E67 -> 0.06425533642 | G67: =$C$52-F67 -> 0.1997446636 | H67: =$C$53*M66*G67 -> 0.2194217656 | I67: =H67*$C$47 -> 0.1097108828 | J67: =I67/$C$50 -> 0.05079207537 | K67: =IF((K66-J67)>0,(K66-J67),0) -> 0.2588713527 | L67: =K67^(1/3) -> 0.6373255524 | M67: =6*L67^2 -> 2.437103158 | N67: 6.425533642
A68: 4 | B68: 1.5 | C68: 0.5591621219 | D68: 0.4408378781 | E68: 5.20409161 | F68: 0.08470986122 | G68: =$C$52-F68 -> 0.1792901388 | H68: =$C$53*M67*G68 -> 0.1747794254 | I68: =H68*$C$47 -> 0.08738971269 | J68: =I68/$C$50 -> 0.04045820032 | K68: 0.2184131524 | L68: =K68^(1/3) -> 0.6022261307 | M68: =6*L68^2 -> 2.176057875 | N68: 8.470986122
A69: 5 | B69: 2 | C69: 0.4717724092 | D69: 0.5282275908 | E69: 5.244549811 | F69: 0.1007193391 | G69: 0.1632806609 | H69: 0.1421232672 | I69: 0.07106163361 | J69: 0.03289890445 | K69: 0.185514248 | L69: 0.5703293961 | M69: 1.95165372 | N69: 10.07193391
A70: 6 | B70: 2.5 | C70: 0.4007107756 | D70: 0.5992892244 | E70: 5.277448715 | F70: 0.1135566174 | G70: 0.1504433826 | H70: 0.117445355 | I70: 0.05872267749 | J70: 0.02718642476 | K70: 0.1583278232 | L70: 0.540985652 | M70: 1.755992854 | N70: 11.35566174
A71: 7 | B71: 3 | C71: 0.3419880981 | D71: 0.6580119019 | E71: 5.30463514 | F71: 0.1240447052 | G71: 0.1399552948 | H71: 0.09830419906 | I71: 0.04915209953 | J71: 0.02275560164 | K71: 0.1355722216 | L71: 0.5137165661 | M71: 1.583428262 | N71: 12.40447052
A72: 8 | B72: 3.5 | C72: 0.2928359986 | D72: 0.7071640014 | E72: 5.327390741 | F72: 0.1327411552 | G72: 0.1312588448 | H72: =$C$53*M71*G72 -> 0.08313558577 | I72: 0.04156779288 | J72: 0.01924434856 | K72: 0.116327873 | L72: 0.4881589571 | M72: 1.429795004 | N72: 13.27411552
A73: 9 | B73: 4 | C73: 0.2512682057 | D73: 0.7487317943 | E73: 5.34663509 | F73: 0.1400379457 | G73: 0.1239620543 | H73: 0.07089613039 | I73: 0.0354480652 | J73: 0.01641114129 | K73: 0.09991673172 | L73: 0.4640300152 | M73: 1.29194313 | N73: 14.00379457
A74: 10 | B74: 4.5 | C74: 0.2158201405 | D74: 0.7841798595 | E74: 5.363046231 | F74: 0.1462191124 | G74: 0.1177808876 | H74: 0.06086648346 | I74: 0.03043324173 | J74: 0.01408946376 | K74: 0.08582726796 | L74: 0.4411047788 | M74: 1.167440555 | N74: 14.62191124
A75: 11 | B75: 5 | C75: =IF((C74-I74)>0,C74-I74,0) -> 0.1853868988 | D75: 0.8146131012 | E75: 5.377135695 | F75: 0.1514957307 | G75: 0.1125042693 | H75: 0.05253681864 | I75: 0.02626840932 | J75: 0.01216130061 | K75: 0.07366596735 | L75: 0.4192009891 | M75: 1.054376816 | N75: 15.14957307
A76: 12 | B76: 5.5 | C76: =IF((C75-I75)>0,C75-I75,0) -> 0.1591184895 | D76: 0.8408815105 | E76: 5.389296996 | F76: 0.1560280518 | G76: 0.1079719482 | H76: 0.04553724759 | I76: 0.0227686238 | J76: 0.01054102954 | K76: 0.06312493781 | L76: 0.3981685813 | M76: 0.951229315 | N76: 15.60280518
A77: 13 | B77: 6 | C77: 0.1363498657 | D77: 0.8636501343 | E77: 5.399838025 | F77: 0.1599400075 | G77: 0.1040599925 | H77: 0.03959396615 | I77: 0.01979698307 | J77: 0.009165269941 | K77: 0.05395966787 | L77: 0.3778821891 | M77: 0.8567696931 | N77: 15.99400075
A78: 14 | B78: 6.5 | C78: 0.1165528826 | D78: 0.8834471174 | E78: 5.409003295 | F78: 0.1633290034 | G78: 0.1006709966 | H78: =$C$53*M77*G78 -> 0.03450074356 | I78: 0.01725037178 | J78: 0.007986283231 | K78: 0.04597338464 | L78: 0.3582356693 | M78: 0.7699967687 | N78: 16.33290034
A79: 15 | B79: =A78*$C$47 -> 7 | C79: 0.09930251082 | D79: 0.9006974892 | E79: 5.416989578 | F79: 0.1662727011 | G79: 0.09772729887 | H79: 0.03009988174 | I79: 0.01504994087 | J79: 0.006967565217 | K79: 0.03900581942 | L79: 0.3391380109 | M79: 0.6900875426 | N79: 16.62727011
A80: 16 | B80: 7.5 | C80: 0.08425256995 | D80: 0.9157474301 | E80: 5.423957144 | F80: 0.1688338248 | G80: 0.09516617521 | H80: 0.02626919679 | I80: 0.0131345984 | J80: 0.006080832591 | K80: 0.03292498683 | L80: 0.3205102109 | M80: 0.6163607718 | N80: 16.88338248
A81: 17 | B81: 8 | C81: 0.07111797155 | D81: 0.9288820284 | E81: 5.430037976 | F81: 0.1710636339 | G81: 0.09293636609 | H81: 0.02291293213 | I81: 0.01145646607 | J81: 0.005303919476 | K81: 0.02762106735 | L81: 0.3022828343 | M81: 0.5482494714 | N81: 17.10636339
A82: 18 | B82: 8.5 | C82: 0.05966150549 | D82: 0.9403384945 | E82: 5.435341896 | F82: 0.1730044793 | G82: 0.09099552069 | H82: 0.01995529845 | I82: 0.009977649224 | J82: 0.004619282048 | K82: 0.02300178531 | L82: 0.284394056 | M82: 0.4852798746 | N82: 17.30044793
A83: 19 | B83: 9 | C83: 0.04968385626 | D83: 0.9503161437 | E83: 5.439961178 | F83: 0.1746917143 | G83: 0.08930828572 | H83: 0.01733580548 | I83: 0.008667902739 | J83: 0.004012917935 | K83: 0.01898886737 | L83: 0.2667880383 | M83: 0.4270551444 | N83: 17.46917143
A84: 20 | B84: 9.5 | C84: 0.04101595352 | D84: 0.9589840465 | E84: 5.443974096 | F84: 0.1761551451 | G84: 0.08784485495 | H84: 0.01500583888 | I84: 0.007502919442 | J84: 0.003473573816 | K84: 0.01551529356 | L84: 0.2494135242 | M84: 0.3732426364 | N84: 17.61551451
A85: 21 | B85: 10 | C85: 0.03351303408 | D85: 0.9664869659 | E85: 5.447447669 | F85: 0.1774201469 | G85: 0.08657985307 | H85: 0.01292611705 | I85: 0.006463058523 | J85: 0.002992156724 | K85: 0.01252313683 | L85: 0.2322225423 | M85: 0.3235638549 | N85: 17.74201469

Sheet Tabelle1
A1: x | B1: y | C1: z
A2: 1 | B2: 2 | C2: 1 | D2: 6.5 | F2: =MMULT(MINVERSE(A$2:C$4),D$2:D$4) -> 1.5
A3: 0 | B3: 1 | C3: 2 | D3: 5.2 | F3: 1.6 | H3: http://website.erhard-rainer.com/mathematik/lineare-gleichungssysteme/lsen-von-gleichungssystemen-in-excel-als-matrix
A4: 3 | B4: 2 | C4: 1 | D4: 9.5 | F4: 1.8
A5: =TRANSPOSE(MMULT(MINVERSE($A2:$C4),$D2:$D4)) -> 1.5 | B5: 1.6 | C5: 1.8
C11: 3

Sheet Tabelle2
A1: nicht benötigt
A4: 1
A5: 2
A6: 3
A7: 4
A8: 5
A9: 6
A10: 7
A11: 8
A12: 9
A13: 10
A14: 11
A15: 12
A16: 13
A17: 14
A18: 15
A19: 16
A20: 17
A21: 18
A22: 19
A23: 20
A24: 21
